Workbook

Sheet Control
A1: State Inventory Tool - Emissions from Natural Gas and Oil Systems Version 2025.2
A2: This module provides default activity data, emission factors, and other relevant metrics for 1990-2022. Emissions Factors are proxied for 2023-2025.
A4: 1. Choose a State.
A5: This is very important - it selects the correct default variables for your state.
A7: 2. - 5. Enter emission factors and activity data for natural gas production and proceed to the respective worksheets to enter activity data.
A8: Either type in the value or click the default box.
A9: Emission factors express the amount of methane emitted per activity unit (e.g. per mile of pipeline, per transmission compressor station, etc.) or the amount of carbon dioxide emitted per activity unit (e.g. per Btu of natural gas vented and flared) each year. The default values are based on national data. Please use state-specific data whenever possible.
A11: Natural Gas Emission Factors
C12: Activity | F12: Default Emission Factor | H12: Factor Used | I12: Use Default? (Check for Yes)
A13: 2. Enter Emission Factors and Activity Data for Natural Gas Production
C14: Metric tons of CH4 per Well | F14: Variable by year
C15: Metric tons of CH4 per shallow water off-shore platforms in the Gulf of Mexico and Pacific | F15: =ShallowWaterEF -> 8899
C16: Metric tons of CH4 per deepwater off-shore platforms in the Gulf of Mexico and Pacific | F16: =DeepWaterEF -> 93836
A19: 3. Enter Emission Factors and Activity Data for Natural Gas Transmission
C20: Metric tons of CH4 per mile of gathering pipeline | F20: 0.4
C21: Metric tons of CH4 per gas processing plant | F21: 1249.95
C22: Metric tons of CH4 per gas transmission compressor station | F22: 983.66
C23: Metric tons of CH4 per gas storage compressor station | F23: 964.15
C24: Metric tons of CH4 per mile of transmission pipeline | F24: 0.62
C25: Metric tons of CH4 per LNG storage compressor station | F25: 1184.99
A26: 4. Enter Emission Factors and Activity Data for Natural Gas Distribution Two methodologies for calculating emissions are presented below. If you have emission factors and data available for the preferred methodology, please estimate emissions for this methodology. Otherwise, please use the alternate methodology.
C27: Preferred Methodology
C28: Metric tons of CH4 per mile of cast iron distribution pipeline | F28: 5.8
C29: Metric tons of CH4 per mile of unprotected steel distribution pipeline | F29: 2.12
C30: Metric tons of CH4 per mile of protected steel distribution pipeline | F30: 0.06
C31: Metric tons of CH4 per mile of plastic distribution pipeline | F31: 0.37
C32: Alternate Methodology
C33: Metric tons of CH4 per mile of distribution pipeline | F33: 0.54
C35: Metric tons of CH4 per service | F35: 0.02
C36: Metric tons of CH4 per unprotected steel services | F36: 0.03
C37: Metric tons of CH4 per protected steel services | F37: 0.003
A39: 5. Enter Emission Factors and Activity Data for Natural Gas Venting and Flaring
C40: Metric tons of CO2 per Billion BTUs of natural gas vented and flared | F40: 54.71
A42: Petroleum Systems Emission Factors
A44: 6. Enter Emission Factors and Activity Data for Petroleum Systems
C45: Activity | D45: Units | F45: Default Emission Factor | H45: =F45 -> Default Emission Factor | I45: Use Default? (Check for Yes)
C47: Oil Production | D47: kg CH4/1000 barrels (bbl) | F47: Variable by year
C48: Oil Refining | D48: kg CH4/1000 bbl | F48: Variable by year
C49: Oil Transportation | D49: kg CH4/1000 bbl | F49: Variable by year
A51: 7. Proceed to the Additional Emission Sources worksheet.
A57: ="8. Proceed to Summary worksheet for emissions summary for "&ListData!D2&"." -> 8. Proceed to Summary worksheet for emissions summary for Select a State . . ..
A64: 9. Export the results for use in the Synthesis Tool.
A72: Constants
A73: The default GWPs used in this module are from the IPCC Fifth Assessment Report (AR5) but can be adjusted in the cells below to reflect other sources.
C74: kg/Gg | D74: 1000000
C75: kg/metric ton | D75: 1000
C76: Kbarrels/MMbarrels | D76: 1000
C77: days/year | D77: 365
C78: Methane Global Warming Potential | D78: 28
C79: metric tons CO2 / metric ton C | D79: =44/12 -> 3.666666667

Sheet Dataframe (hidden)
A1: Emissions (MMTCO2 Eq.) | B1: Category | C1: 1990 | D1: 1991 | E1: 1992 | F1: 1993 | G1: 1994 | H1: 1995 | I1: 1996 | J1: 1997 | K1: 1998 | L1: 1999 | M1: 2000 | N1: 2001 | O1: 2002 | P1: 2003 | Q1: 2004 | R1: 2005 | S1: 2006 | T1: 2007 | U1: 2008 | V1: 2009 | W1: 2010 | X1: 2011 | Y1: 2012 | Z1: 2013 | AA1: 2014 | AB1: 2015 | AC1: 2016 | AD1: 2017 | AE1: 2018 | AF1: 2019 | AG1: 2020 | AH1: 2021 | AI1: 2022 | AJ1: 2023 | AK1: 2024 | AL1: 2025
A2: Natural Gas | B2: Energy - Natural Gas and Oil Systems - Natural Gas | C2: =Summary!C12 -> 0 | D2: =Summary!D12 -> - | E2: =Summary!E12 -> - | F2: =Summary!F12 -> - | G2: =Summary!G12 -> - | H2: =Summary!H12 -> - | I2: =Summary!I12 -> - | J2: =Summary!J12 -> - | K2: =Summary!K12 -> - | L2: =Summary!L12 -> - | M2: =Summary!M12 -> - | N2: =Summary!N12 -> - | O2: =Summary!O12 -> - | P2: =Summary!P12 -> - | Q2: =Summary!Q12 -> - | R2: =Summary!R12 -> - | S2: =Summary!S12 -> - | T2: =Summary!T12 -> - | U2: =Summary!U12 -> - | V2: =Summary!V12 -> - | W2: =Summary!W12 -> - | X2: =Summary!X12 -> - | Y2: =Summary!Y12 -> - | Z2: =Summary!Z12 -> - | AA2: =Summary!AA12 -> - | AB2: =Summary!AB12 -> - | AC2: =Summary!AC12 -> - | AD2: =Summary!AD12 -> - | AE2: =Summary!AE12 -> - | AF2: =Summary!AF12 -> - | AG2: =Summary!AG12 -> - | AH2: =Summary!AH12 -> - | AI2: =Summary!AI12 -> - | AJ2: =Summary!AJ12 -> - | AK2: =Summary!AK12 -> - | AL2: =Summary!AL12 -> -
A3: Oil | B3: Energy - Natural Gas and Oil Systems - Oil | C3: =Summary!C13 -> 0 | D3: =Summary!D13 -> 0 | E3: =Summary!E13 -> 0 | F3: =Summary!F13 -> 0 | G3: =Summary!G13 -> 0 | H3: =Summary!H13 -> 0 | I3: =Summary!I13 -> 0 | J3: =Summary!J13 -> 0 | K3: =Summary!K13 -> 0 | L3: =Summary!L13 -> 0 | M3: =Summary!M13 -> 0 | N3: =Summary!N13 -> 0 | O3: =Summary!O13 -> 0 | P3: =Summary!P13 -> 0 | Q3: =Summary!Q13 -> 0 | R3: =Summary!R13 -> 0 | S3: =Summary!S13 -> 0 | T3: =Summary!T13 -> 0 | U3: =Summary!U13 -> 0 | V3: =Summary!V13 -> 0 | W3: =Summary!W13 -> 0 | X3: =Summary!X13 -> 0 | Y3: =Summary!Y13 -> 0 | Z3: =Summary!Z13 -> 0 | AA3: =Summary!AA13 -> 0 | AB3: =Summary!AB13 -> 0 | AC3: =Summary!AC13 -> 0 | AD3: =Summary!AD13 -> 0 | AE3: =Summary!AE13 -> 0 | AF3: =Summary!AF13 -> 0 | AG3: =Summary!AG13 -> 0 | AH3: =Summary!AH13 -> 0 | AI3: =Summary!AI13 -> 0 | AJ3: =Summary!AJ13 -> 0 | AK3: =Summary!AK13 -> 0 | AL3: =Summary!AL13 -> 0

Sheet Dataframe_Sum (hidden)
A1: Emissions (MMTCO2 Eq.) | B1: Category | C1: 1990 | D1: 1991 | E1: 1992 | F1: 1993 | G1: 1994 | H1: 1995 | I1: 1996 | J1: 1997 | K1: 1998 | L1: 1999 | M1: 2000 | N1: 2001 | O1: 2002 | P1: 2003 | Q1: 2004 | R1: 2005 | S1: 2006 | T1: 2007 | U1: 2008 | V1: 2009 | W1: 2010 | X1: 2011 | Y1: 2012 | Z1: 2013 | AA1: 2014 | AB1: 2015 | AC1: 2016 | AD1: 2017 | AE1: 2018 | AF1: 2019 | AG1: 2020 | AH1: 2021 | AI1: 2022 | AJ1: 2023 | AK1: 2024 | AL1: 2025
A2: Total | B2: Energy - Natural Gas and Oil Systems | C2: =Summary!C12+Summary!C13 -> 0 | D2: =Summary!D12+Summary!D13 ->  | E2: =Summary!E12+Summary!E13 ->  | F2: =Summary!F12+Summary!F13 ->  | G2: =Summary!G12+Summary!G13 ->  | H2: =Summary!H12+Summary!H13 ->  | I2: =Summary!I12+Summary!I13 ->  | J2: =Summary!J12+Summary!J13 ->  | K2: =Summary!K12+Summary!K13 ->  | L2: =Summary!L12+Summary!L13 ->  | M2: =Summary!M12+Summary!M13 ->  | N2: =Summary!N12+Summary!N13 ->  | O2: =Summary!O12+Summary!O13 ->  | P2: =Summary!P12+Summary!P13 ->  | Q2: =Summary!Q12+Summary!Q13 ->  | R2: =Summary!R12+Summary!R13 ->  | S2: =Summary!S12+Summary!S13 ->  | T2: =Summary!T12+Summary!T13 ->  | U2: =Summary!U12+Summary!U13 ->  | V2: =Summary!V12+Summary!V13 ->  | W2: =Summary!W12+Summary!W13 ->  | X2: =Summary!X12+Summary!X13 ->  | Y2: =Summary!Y12+Summary!Y13 ->  | Z2: =Summary!Z12+Summary!Z13 ->  | AA2: =Summary!AA12+Summary!AA13 ->  | AB2: =Summary!AB12+Summary!AB13 ->  | AC2: =Summary!AC12+Summary!AC13 ->  | AD2: =Summary!AD12+Summary!AD13 ->  | AE2: =Summary!AE12+Summary!AE13 ->  | AF2: =Summary!AF12+Summary!AF13 ->  | AG2: =Summary!AG12+Summary!AG13 ->  | AH2: =Summary!AH12+Summary!AH13 ->  | AI2: =Summary!AI12+Summary!AI13 ->  | AJ2: =Summary!AJ12+Summary!AJ13 ->  | AK2: =Summary!AK12+Summary!AK13 ->  | AL2: =Summary!AL12+Summary!AL13 -> 

Sheet Natural Gas - Production
B1: ="2. Emissions from Natural Gas Production Activities in "&ListData!D2 -> 2. Emissions from Natural Gas Production Activities in Select a State . . .
B2: =VLOOKUP(StateID,ListData!$B$3:$D$53,3,FALSE) -> XX
B3: =Region -> 
B4: Natural Gas - Production | D4: 1990
D6: Activity Data | F6: Emission Factor | H6: Metric Tons CH4 | J6: MMTCO2E | L6: MMTCE
F7: metric tons CH4 per year per activity unit
B8: Total number of wells | E8: x | F8: =VLOOKUP($B$3,WellEFbyRegion,D4-1988,FALSE) ->  | G8: = | H8: =D8*F8 ->  | I8: = | J8: =H8*MethGWP*10^-6 ->  | K8: = | L8: =J8/CO2_C -> 
B9: Number of shallow water off-shore platforms in the Gulf of Mexico and Pacific | E9: x | F9: =Control!$H$15 -> 0 | G9: = | H9: =D9*F9 -> 0 | I9: = | J9: =H9*MethGWP*10^-6 -> 0 | K9: = | L9: =J9/CO2_C -> 0
B10: Number of deepwater off-shore platforms in the Gulf of Mexico and Pacific | E10: x | F10: =Control!$H$16 -> 0 | G10: = | H10: =D10*F10 -> 0 | I10: = | J10: =H10*MethGWP*10^-6 -> 0 | K10: = | L10: =J10/CO2_C -> 0
B11: Total | H11: =SUM(H8:H10) ->  | I11: = | J11: =H11*MethGWP*10^-6 ->  | K11: = | L11: =J11/CO2_C -> 
B13: Natural Gas - Production | D13: =D4+1 -> 1991
D15: Activity Data | F15: Emission Factor | H15: Metric Tons CH4 | J15: MMTCO2E | L15: MMTCE
F16: metric tons CH4 per year per activity unit
B17: Total number of wells | E17: x | F17: =VLOOKUP($B$3,WellEFbyRegion,D13-1988,FALSE) ->  | G17: = | H17: =D17*F17 ->  | I17: = | J17: =H17*MethGWP*10^-6 ->  | K17: = | L17: =J17/CO2_C -> 
B18: Number of shallow water off-shore platforms in the Gulf of Mexico and Pacific | E18: x | F18: =Control!$H$15 -> 0 | G18: = | H18: =D18*F18 -> 0 | I18: = | J18: =H18*MethGWP*10^-6 -> 0 | K18: = | L18: =J18/CO2_C -> 0
B19: Number of deepwater off-shore platforms in the Gulf of Mexico and Pacific | E19: x | F19: =Control!$H$16 -> 0 | G19: = | H19: =D19*F19 -> 0 | I19: = | J19: =H19*MethGWP*10^-6 -> 0 | K19: = | L19: =J19/CO2_C -> 0
B20: Total | H20: =SUM(H17:H19) ->  | I20: = | J20: =H20*MethGWP*10^-6 ->  | K20: = | L20: =J20/CO2_C -> 
B22: Natural Gas - Production | D22: =D13+1 -> 1992
D24: Activity Data | F24: Emission Factor | H24: Metric Tons CH4 | J24: MMTCO2E | L24: MMTCE
F25: metric tons CH4 per year per activity unit
B26: Total number of wells | E26: x | F26: =VLOOKUP($B$3,WellEFbyRegion,D22-1988,FALSE) ->  | G26: = | H26: =D26*F26 ->  | I26: = | J26: =H26*MethGWP*10^-6 ->  | K26: = | L26: =J26/CO2_C -> 
B27: Number of shallow water off-shore platforms in the Gulf of Mexico and Pacific | E27: x | F27: =Control!$H$15 -> 0 | G27: = | H27: =D27*F27 -> 0 | I27: = | J27: =H27*MethGWP*10^-6 -> 0 | K27: = | L27: =J27/CO2_C -> 0
B28: Number of deepwater off-shore platforms in the Gulf of Mexico and Pacific | E28: x | F28: =Control!$H$16 -> 0 | G28: = | H28: =D28*F28 -> 0 | I28: = | J28: =H28*MethGWP*10^-6 -> 0 | K28: = | L28: =J28/CO2_C -> 0
B29: Total | H29: =SUM(H26:H28) ->  | I29: = | J29: =H29*MethGWP*10^-6 ->  | K29: = | L29: =J29/CO2_C -> 
B31: Natural Gas - Production | D31: =D22+1 -> 1993
D33: Activity Data | F33: Emission Factor | H33: Metric Tons CH4 | J33: MMTCO2E | L33: MMTCE
F34: metric tons CH4 per year per activity unit
B35: Total number of wells | E35: x | F35: =VLOOKUP($B$3,WellEFbyRegion,D31-1988,FALSE) ->  | G35: = | H35: =D35*F35 ->  | I35: = | J35: =H35*MethGWP*10^-6 ->  | K35: = | L35: =J35/CO2_C -> 
B36: Number of shallow water off-shore platforms in the Gulf of Mexico and Pacific | E36: x | F36: =Control!$H$15 -> 0 | G36: = | H36: =D36*F36 -> 0 | I36: = | J36: =H36*MethGWP*10^-6 -> 0 | K36: = | L36: =J36/CO2_C -> 0
B37: Number of deepwater off-shore platforms in the Gulf of Mexico and Pacific | E37: x | F37: =Control!$H$16 -> 0 | G37: = | H37: =D37*F37 -> 0 | I37: = | J37: =H37*MethGWP*10^-6 -> 0 | K37: = | L37: =J37/CO2_C -> 0
B38: Total | H38: =SUM(H35:H37) ->  | I38: = | J38: =H38*MethGWP*10^-6 ->  | K38: = | L38: =J38/CO2_C -> 
B40: Natural Gas - Production | D40: =D31+1 -> 1994
D42: Activity Data | F42: Emission Factor | H42: Metric Tons CH4 | J42: MMTCO2E | L42: MMTCE
F43: metric tons CH4 per year per activity unit
B44: Total number of wells | E44: x | F44: =VLOOKUP($B$3,WellEFbyRegion,D40-1988,FALSE) ->  | G44: = | H44: =D44*F44 ->  | I44: = | J44: =H44*MethGWP*10^-6 ->  | K44: = | L44: =J44/CO2_C -> 
B45: Number of shallow water off-shore platforms in the Gulf of Mexico and Pacific | E45: x | F45: =Control!$H$15 -> 0 | G45: = | H45: =D45*F45 -> 0 | I45: = | J45: =H45*MethGWP*10^-6 -> 0 | K45: = | L45: =J45/CO2_C -> 0
B46: Number of deepwater off-shore platforms in the Gulf of Mexico and Pacific | E46: x | F46: =Control!$H$16 -> 0 | G46: = | H46: =D46*F46 -> 0 | I46: = | J46: =H46*MethGWP*10^-6 -> 0 | K46: = | L46: =J46/CO2_C -> 0
B47: Total | H47: =SUM(H44:H46) ->  | I47: = | J47: =H47*MethGWP*10^-6 ->  | K47: = | L47: =J47/CO2_C -> 
B49: Natural Gas - Production | D49: =D40+1 -> 1995
D51: Activity Data | F51: Emission Factor | H51: Metric Tons CH4 | J51: MMTCO2E | L51: MMTCE
F52: metric tons CH4 per year per activity unit
B53: Total number of wells | E53: x | F53: =VLOOKUP($B$3,WellEFbyRegion,D49-1988,FALSE) ->  | G53: = | H53: =D53*F53 ->  | I53: = | J53: =H53*MethGWP*10^-6 ->  | K53: = | L53: =J53/CO2_C -> 
B54: Number of shallow water off-shore platforms in the Gulf of Mexico and Pacific | E54: x | F54: =Control!$H$15 -> 0 | G54: = | H54: =D54*F54 -> 0 | I54: = | J54: =H54*MethGWP*10^-6 -> 0 | K54: = | L54: =J54/CO2_C -> 0
B55: Number of deepwater off-shore platforms in the Gulf of Mexico and Pacific | E55: x | F55: =Control!$H$16 -> 0 | G55: = | H55: =D55*F55 -> 0 | I55: = | J55: =H55*MethGWP*10^-6 -> 0 | K55: = | L55: =J55/CO2_C -> 0
B56: Total | H56: =SUM(H53:H55) ->  | I56: = | J56: =H56*MethGWP*10^-6 ->  | K56: = | L56: =J56/CO2_C -> 
B58: Natural Gas - Production | D58: =D49+1 -> 1996
D60: Activity Data | F60: Emission Factor | H60: Metric Tons CH4 | J60: MMTCO2E | L60: MMTCE
F61: metric tons CH4 per year per activity unit
B62: Total number of wells | E62: x | F62: =VLOOKUP($B$3,WellEFbyRegion,D58-1988,FALSE) ->  | G62: = | H62: =D62*F62 ->  | I62: = | J62: =H62*MethGWP*10^-6 ->  | K62: = | L62: =J62/CO2_C -> 
B63: Number of shallow water off-shore platforms in the Gulf of Mexico and Pacific | E63: x | F63: =Control!$H$15 -> 0 | G63: = | H63: =D63*F63 -> 0 | I63: = | J63: =H63*MethGWP*10^-6 -> 0 | K63: = | L63: =J63/CO2_C -> 0
B64: Number of deepwater off-shore platforms in the Gulf of Mexico and Pacific | E64: x | F64: =Control!$H$16 -> 0 | G64: = | H64: =D64*F64 -> 0 | I64: = | J64: =H64*MethGWP*10^-6 -> 0 | K64: = | L64: =J64/CO2_C -> 0
B65: Total | H65: =SUM(H62:H64) ->  | I65: = | J65: =H65*MethGWP*10^-6 ->  | K65: = | L65: =J65/CO2_C -> 
B67: Natural Gas - Production | D67: =D58+1 -> 1997
D69: Activity Data | F69: Emission Factor | H69: Metric Tons CH4 | J69: MMTCO2E | L69: MMTCE
F70: metric tons CH4 per year per activity unit
B71: Total number of wells | E71: x | F71: =VLOOKUP($B$3,WellEFbyRegion,D67-1988,FALSE) ->  | G71: = | H71: =D71*F71 ->  | I71: = | J71: =H71*MethGWP*10^-6 ->  | K71: = | L71: =J71/CO2_C -> 
B72: Number of shallow water off-shore platforms in the Gulf of Mexico and Pacific | E72: x | F72: =Control!$H$15 -> 0 | G72: = | H72: =D72*F72 -> 0 | I72: = | J72: =H72*MethGWP*10^-6 -> 0 | K72: = | L72: =J72/CO2_C -> 0
B73: Number of deepwater off-shore platforms in the Gulf of Mexico and Pacific | E73: x | F73: =Control!$H$16 -> 0 | G73: = | H73: =D73*F73 -> 0 | I73: = | J73: =H73*MethGWP*10^-6 -> 0 | K73: = | L73: =J73/CO2_C -> 0
B74: Total | H74: =SUM(H71:H73) ->  | I74: = | J74: =H74*MethGWP*10^-6 ->  | K74: = | L74: =J74/CO2_C -> 
B76: Natural Gas - Production | D76: =D67+1 -> 1998
D78: Activity Data | F78: Emission Factor | H78: Metric Tons CH4 | J78: MMTCO2E | L78: MMTCE
F79: metric tons CH4 per year per activity unit
B80: Total number of wells | E80: x | F80: =VLOOKUP($B$3,WellEFbyRegion,D76-1988,FALSE) ->  | G80: = | H80: =D80*F80 ->  | I80: = | J80: =H80*MethGWP*10^-6 ->  | K80: = | L80: =J80/CO2_C -> 
B81: Number of shallow water off-shore platforms in the Gulf of Mexico and Pacific | E81: x | F81: =Control!$H$15 -> 0 | G81: = | H81: =D81*F81 -> 0 | I81: = | J81: =H81*MethGWP*10^-6 -> 0 | K81: = | L81: =J81/CO2_C -> 0
B82: Number of deepwater off-shore platforms in the Gulf of Mexico and Pacific | E82: x | F82: =Control!$H$16 -> 0 | G82: = | H82: =D82*F82 -> 0 | I82: = | J82: =H82*MethGWP*10^-6 -> 0 | K82: = | L82: =J82/CO2_C -> 0
B83: Total | H83: =SUM(H80:H82) ->  | I83: = | J83: =H83*MethGWP*10^-6 ->  | K83: = | L83: =J83/CO2_C -> 
B85: Natural Gas - Production | D85: =D76+1 -> 1999
D87: Activity Data | F87: Emission Factor | H87: Metric Tons CH4 | J87: MMTCO2E | L87: MMTCE
F88: metric tons CH4 per year per activity unit
B89: Total number of wells | E89: x | F89: =VLOOKUP($B$3,WellEFbyRegion,D85-1988,FALSE) ->  | G89: = | H89: =D89*F89 ->  | I89: = | J89: =H89*MethGWP*10^-6 ->  | K89: = | L89: =J89/CO2_C -> 
B90: Number of shallow water off-shore platforms in the Gulf of Mexico and Pacific | E90: x | F90: =Control!$H$15 -> 0 | G90: = | H90: =D90*F90 -> 0 | I90: = | J90: =H90*MethGWP*10^-6 -> 0 | K90: = | L90: =J90/CO2_C -> 0
B91: Number of deepwater off-shore platforms in the Gulf of Mexico and Pacific | E91: x | F91: =Control!$H$16 -> 0 | G91: = | H91: =D91*F91 -> 0 | I91: = | J91: =H91*MethGWP*10^-6 -> 0 | K91: = | L91: =J91/CO2_C -> 0
B92: Total | H92: =SUM(H89:H91) ->  | I92: = | J92: =H92*MethGWP*10^-6 ->  | K92: = | L92: =J92/CO2_C -> 
B94: Natural Gas - Production | D94: =D85+1 -> 2000
D96: Activity Data | F96: Emission Factor | H96: Metric Tons CH4 | J96: MMTCO2E | L96: MMTCE
F97: metric tons CH4 per year per activity unit
B98: Total number of wells | E98: x | F98: =VLOOKUP($B$3,WellEFbyRegion,D94-1988,FALSE) ->  | G98: = | H98: =D98*F98 ->  | I98: = | J98: =H98*MethGWP*10^-6 ->  | K98: = | L98: =J98/CO2_C -> 
B99: Number of shallow water off-shore platforms in the Gulf of Mexico and Pacific | E99: x | F99: =Control!$H$15 -> 0 | G99: = | H99: =D99*F99 -> 0 | I99: = | J99: =H99*MethGWP*10^-6 -> 0 | K99: = | L99: =J99/CO2_C -> 0
B100: Number of deepwater off-shore platforms in the Gulf of Mexico and Pacific | E100: x | F100: =Control!$H$16 -> 0 | G100: = | H100: =D100*F100 -> 0 | I100: = | J100: =H100*MethGWP*10^-6 -> 0 | K100: = | L100: =J100/CO2_C -> 0
B101: Total | H101: =SUM(H98:H100) ->  | I101: = | J101: =H101*MethGWP*10^-6 ->  | K101: = | L101: =J101/CO2_C -> 
B103: Natural Gas - Production | D103: =D94+1 -> 2001
D105: Activity Data | F105: Emission Factor | H105: Metric Tons CH4 | J105: MMTCO2E | L105: MMTCE
F106: metric tons CH4 per year per activity unit
B107: Total number of wells | E107: x | F107: =VLOOKUP($B$3,WellEFbyRegion,D103-1988,FALSE) ->  | G107: = | H107: =D107*F107 ->  | I107: = | J107: =H107*MethGWP*10^-6 ->  | K107: = | L107: =J107/CO2_C -> 
B108: Number of shallow water off-shore platforms in the Gulf of Mexico and Pacific | E108: x | F108: =Control!$H$15 -> 0 | G108: = | H108: =D108*F108 -> 0 | I108: = | J108: =H108*MethGWP*10^-6 -> 0 | K108: = | L108: =J108/CO2_C -> 0
B109: Number of deepwater off-shore platforms in the Gulf of Mexico and Pacific | E109: x | F109: =Control!$H$16 -> 0 | G109: = | H109: =D109*F109 -> 0 | I109: = | J109: =H109*MethGWP*10^-6 -> 0 | K109: = | L109: =J109/CO2_C -> 0
B110: Total | H110: =SUM(H107:H109) ->  | I110: = | J110: =H110*MethGWP*10^-6 ->  | K110: = | L110: =J110/CO2_C -> 
B112: Natural Gas - Production | D112: =D103+1 -> 2002
D114: Activity Data | F114: Emission Factor | H114: Metric Tons CH4 | J114: MMTCO2E | L114: MMTCE
F115: metric tons CH4 per year per activity unit
B116: Total number of wells | E116: x | F116: =VLOOKUP($B$3,WellEFbyRegion,D112-1988,FALSE) ->  | G116: = | H116: =D116*F116 ->  | I116: = | J116: =H116*MethGWP*10^-6 ->  | K116: = | L116: =J116/CO2_C -> 
B117: Number of shallow water off-shore platforms in the Gulf of Mexico and Pacific | E117: x | F117: =Control!$H$15 -> 0 | G117: = | H117: =D117*F117 -> 0 | I117: = | J117: =H117*MethGWP*10^-6 -> 0 | K117: = | L117: =J117/CO2_C -> 0
B118: Number of deepwater off-shore platforms in the Gulf of Mexico and Pacific | E118: x | F118: =Control!$H$16 -> 0 | G118: = | H118: =D118*F118 -> 0 | I118: = | J118: =H118*MethGWP*10^-6 -> 0 | K118: = | L118: =J118/CO2_C -> 0
B119: Total | H119: =SUM(H116:H118) ->  | I119: = | J119: =H119*MethGWP*10^-6 ->  | K119: = | L119: =J119/CO2_C -> 
B121: Natural Gas - Production | D121: =D112+1 -> 2003
D123: Activity Data | F123: Emission Factor | H123: Metric Tons CH4 | J123: MMTCO2E | L123: MMTCE
F124: metric tons CH4 per year per activity unit
B125: Total number of wells | E125: x | F125: =VLOOKUP($B$3,WellEFbyRegion,D121-1988,FALSE) ->  | G125: = | H125: =D125*F125 ->  | I125: = | J125: =H125*MethGWP*10^-6 ->  | K125: = | L125: =J125/CO2_C -> 
B126: Number of shallow water off-shore platforms in the Gulf of Mexico and Pacific | E126: x | F126: =Control!$H$15 -> 0 | G126: = | H126: =D126*F126 -> 0 | I126: = | J126: =H126*MethGWP*10^-6 -> 0 | K126: = | L126: =J126/CO2_C -> 0
B127: Number of deepwater off-shore platforms in the Gulf of Mexico and Pacific | E127: x | F127: =Control!$H$16 -> 0 | G127: = | H127: =D127*F127 -> 0 | I127: = | J127: =H127*MethGWP*10^-6 -> 0 | K127: = | L127: =J127/CO2_C -> 0
B128: Total | H128: =SUM(H125:H127) ->  | I128: = | J128: =H128*MethGWP*10^-6 ->  | K128: = | L128: =J128/CO2_C -> 
B130: Natural Gas - Production | D130: =D121+1 -> 2004
D132: Activity Data | F132: Emission Factor | H132: Metric Tons CH4 | J132: MMTCO2E | L132: MMTCE
F133: metric tons CH4 per year per activity unit
B134: Total number of wells | E134: x | F134: =VLOOKUP($B$3,WellEFbyRegion,D130-1988,FALSE) ->  | G134: = | H134: =D134*F134 ->  | I134: = | J134: =H134*MethGWP*10^-6 ->  | K134: = | L134: =J134/CO2_C -> 
B135: Number of shallow water off-shore platforms in the Gulf of Mexico and Pacific | E135: x | F135: =Control!$H$15 -> 0 | G135: = | H135: =D135*F135 -> 0 | I135: = | J135: =H135*MethGWP*10^-6 -> 0 | K135: = | L135: =J135/CO2_C -> 0
B136: Number of deepwater off-shore platforms in the Gulf of Mexico and Pacific | E136: x | F136: =Control!$H$16 -> 0 | G136: = | H136: =D136*F136 -> 0 | I136: = | J136: =H136*MethGWP*10^-6 -> 0 | K136: = | L136: =J136/CO2_C -> 0
B137: Total | H137: =SUM(H134:H136) ->  | I137: = | J137: =H137*MethGWP*10^-6 ->  | K137: = | L137: =J137/CO2_C -> 
B139: Natural Gas - Production | D139: =D130+1 -> 2005
D141: Activity Data | F141: Emission Factor | H141: Metric Tons CH4 | J141: MMTCO2E | L141: MMTCE
F142: metric tons CH4 per year per activity unit
B143: Total number of wells | E143: x | F143: =VLOOKUP($B$3,WellEFbyRegion,D139-1988,FALSE) ->  | G143: = | H143: =D143*F143 ->  | I143: = | J143: =H143*MethGWP*10^-6 ->  | K143: = | L143: =J143/CO2_C -> 
B144: Number of shallow water off-shore platforms in the Gulf of Mexico and Pacific | E144: x | F144: =Control!$H$15 -> 0 | G144: = | H144: =D144*F144 -> 0 | I144: = | J144: =H144*MethGWP*10^-6 -> 0 | K144: = | L144: =J144/CO2_C -> 0
B145: Number of deepwater off-shore platforms in the Gulf of Mexico and Pacific | E145: x | F145: =Control!$H$16 -> 0 | G145: = | H145: =D145*F145 -> 0 | I145: = | J145: =H145*MethGWP*10^-6 -> 0 | K145: = | L145: =J145/CO2_C -> 0
B146: Total | H146: =SUM(H143:H145) ->  | I146: = | J146: =H146*MethGWP*10^-6 ->  | K146: = | L146: =J146/CO2_C -> 
B148: Natural Gas - Production | D148: =D139+1 -> 2006
D150: Activity Data | F150: Emission Factor | H150: Metric Tons CH4 | J150: MMTCO2E | L150: MMTCE
F151: metric tons CH4 per year per activity unit
B152: Total number of wells | E152: x | F152: =VLOOKUP($B$3,WellEFbyRegion,D148-1988,FALSE) ->  | G152: = | H152: =D152*F152 ->  | I152: = | J152: =H152*MethGWP*10^-6 ->  | K152: = | L152: =J152/CO2_C -> 
B153: Number of shallow water off-shore platforms in the Gulf of Mexico and Pacific | E153: x | F153: =Control!$H$15 -> 0 | G153: = | H153: =D153*F153 -> 0 | I153: = | J153: =H153*MethGWP*10^-6 -> 0 | K153: = | L153: =J153/CO2_C -> 0
B154: Number of deepwater off-shore platforms in the Gulf of Mexico and Pacific | E154: x | F154: =Control!$H$16 -> 0 | G154: = | H154: =D154*F154 -> 0 | I154: = | J154: =H154*MethGWP*10^-6 -> 0 | K154: = | L154: =J154/CO2_C -> 0
B155: Total | H155: =SUM(H152:H154) ->  | I155: = | J155: =H155*MethGWP*10^-6 ->  | K155: = | L155: =J155/CO2_C -> 
B157: Natural Gas - Production | D157: =D148+1 -> 2007
D159: Activity Data | F159: Emission Factor | H159: Metric Tons CH4 | J159: MMTCO2E | L159: MMTCE
F160: metric tons CH4 per year per activity unit
B161: Total number of wells | E161: x | F161: =VLOOKUP($B$3,WellEFbyRegion,D157-1988,FALSE) ->  | G161: = | H161: =D161*F161 ->  | I161: = | J161: =H161*MethGWP*10^-6 ->  | K161: = | L161: =J161/CO2_C -> 
B162: Number of shallow water off-shore platforms in the Gulf of Mexico and Pacific | E162: x | F162: =Control!$H$15 -> 0 | G162: = | H162: =D162*F162 -> 0 | I162: = | J162: =H162*MethGWP*10^-6 -> 0 | K162: = | L162: =J162/CO2_C -> 0
B163: Number of deepwater off-shore platforms in the Gulf of Mexico and Pacific | E163: x | F163: =Control!$H$16 -> 0 | G163: = | H163: =D163*F163 -> 0 | I163: = | J163: =H163*MethGWP*10^-6 -> 0 | K163: = | L163: =J163/CO2_C -> 0
B164: Total | H164: =SUM(H161:H163) ->  | I164: = | J164: =H164*MethGWP*10^-6 ->  | K164: = | L164: =J164/CO2_C -> 
B166: Natural Gas - Production | D166: =D157+1 -> 2008
D168: Activity Data | F168: Emission Factor | H168: Metric Tons CH4 | J168: MMTCO2E | L168: MMTCE
F169: metric tons CH4 per year per activity unit
B170: Total number of wells | E170: x | F170: =VLOOKUP($B$3,WellEFbyRegion,D166-1988,FALSE) ->  | G170: = | H170: =D170*F170 ->  | I170: = | J170: =H170*MethGWP*10^-6 ->  | K170: = | L170: =J170/CO2_C -> 
B171: Number of shallow water off-shore platforms in the Gulf of Mexico and Pacific | E171: x | F171: =Control!$H$15 -> 0 | G171: = | H171: =D171*F171 -> 0 | I171: = | J171: =H171*MethGWP*10^-6 -> 0 | K171: = | L171: =J171/CO2_C -> 0
B172: Number of deepwater off-shore platforms in the Gulf of Mexico and Pacific | E172: x | F172: =Control!$H$16 -> 0 | G172: = | H172: =D172*F172 -> 0 | I172: = | J172: =H172*MethGWP*10^-6 -> 0 | K172: = | L172: =J172/CO2_C -> 0
B173: Total | H173: =SUM(H170:H172) ->  | I173: = | J173: =H173*MethGWP*10^-6 ->  | K173: = | L173: =J173/CO2_C -> 
B175: Natural Gas - Production | D175: =D166+1 -> 2009
D177: Activity Data | F177: Emission Factor | H177: Metric Tons CH4 | J177: MMTCO2E | L177: MMTCE
F178: metric tons CH4 per year per activity unit
B179: Total number of wells | E179: x | F179: =VLOOKUP($B$3,WellEFbyRegion,D175-1988,FALSE) ->  | G179: = | H179: =D179*F179 ->  | I179: = | J179: =H179*MethGWP*10^-6 ->  | K179: = | L179: =J179/CO2_C -> 
B180: Number of shallow water off-shore platforms in the Gulf of Mexico and Pacific | E180: x | F180: =Control!$H$15 -> 0 | G180: = | H180: =D180*F180 -> 0 | I180: = | J180: =H180*MethGWP*10^-6 -> 0 | K180: = | L180: =J180/CO2_C -> 0
B181: Number of deepwater off-shore platforms in the Gulf of Mexico and Pacific | E181: x | F181: =Control!$H$16 -> 0 | G181: = | H181: =D181*F181 -> 0 | I181: = | J181: =H181*MethGWP*10^-6 -> 0 | K181: = | L181: =J181/CO2_C -> 0
B182: Total | H182: =SUM(H179:H181) ->  | I182: = | J182: =H182*MethGWP*10^-6 ->  | K182: = | L182: =J182/CO2_C -> 
B184: Natural Gas - Production | D184: =D175+1 -> 2010
D186: Activity Data | F186: Emission Factor | H186: Metric Tons CH4 | J186: MMTCO2E | L186: MMTCE
F187: metric tons CH4 per year per activity unit
B188: Total number of wells | E188: x | F188: =VLOOKUP($B$3,WellEFbyRegion,D184-1988,FALSE) ->  | G188: = | H188: =D188*F188 ->  | I188: = | J188: =H188*MethGWP*10^-6 ->  | K188: = | L188: =J188/CO2_C -> 
B189: Number of shallow water off-shore platforms in the Gulf of Mexico and Pacific | E189: x | F189: =Control!$H$15 -> 0 | G189: = | H189: =D189*F189 -> 0 | I189: = | J189: =H189*MethGWP*10^-6 -> 0 | K189: = | L189: =J189/CO2_C -> 0
B190: Number of deepwater off-shore platforms in the Gulf of Mexico and Pacific | E190: x | F190: =Control!$H$16 -> 0 | G190: = | H190: =D190*F190 -> 0 | I190: = | J190: =H190*MethGWP*10^-6 -> 0 | K190: = | L190: =J190/CO2_C -> 0
B191: Total | H191: =SUM(H188:H190) ->  | I191: = | J191: =H191*MethGWP*10^-6 ->  | K191: = | L191: =J191/CO2_C -> 
B193: Natural Gas - Production | D193: =D184+1 -> 2011
D195: Activity Data | F195: Emission Factor | H195: Metric Tons CH4 | J195: MMTCO2E | L195: MMTCE
F196: metric tons CH4 per year per activity unit
B197: Total number of wells | E197: x | F197: =VLOOKUP($B$3,WellEFbyRegion,D193-1988,FALSE) ->  | G197: = | H197: =D197*F197 ->  | I197: = | J197: =H197*MethGWP*10^-6 ->  | K197: = | L197: =J197/CO2_C -> 
B198: Number of shallow water off-shore platforms in the Gulf of Mexico and Pacific | E198: x | F198: =Control!$H$15 -> 0 | G198: = | H198: =D198*F198 -> 0 | I198: = | J198: =H198*MethGWP*10^-6 -> 0 | K198: = | L198: =J198/CO2_C -> 0
B199: Number of deepwater off-shore platforms in the Gulf of Mexico and Pacific | E199: x | F199: =Control!$H$16 -> 0 | G199: = | H199: =D199*F199 -> 0 | I199: = | J199: =H199*MethGWP*10^-6 -> 0 | K199: = | L199: =J199/CO2_C -> 0
B200: Total | H200: =SUM(H197:H199) ->  | I200: = | J200: =H200*MethGWP*10^-6 ->  | K200: = | L200: =J200/CO2_C -> 
B202: Natural Gas - Production | D202: =D193+1 -> 2012
D204: Activity Data | F204: Emission Factor | H204: Metric Tons CH4 | J204: MMTCO2E | L204: MMTCE
F205: metric tons CH4 per year per activity unit
B206: Total number of wells | E206: x | F206: =VLOOKUP($B$3,WellEFbyRegion,D202-1988,FALSE) ->  | G206: = | H206: =D206*F206 ->  | I206: = | J206: =H206*MethGWP*10^-6 ->  | K206: = | L206: =J206/CO2_C -> 
B207: Number of shallow water off-shore platforms in the Gulf of Mexico and Pacific | E207: x | F207: =Control!$H$15 -> 0 | G207: = | H207: =D207*F207 -> 0 | I207: = | J207: =H207*MethGWP*10^-6 -> 0 | K207: = | L207: =J207/CO2_C -> 0
B208: Number of deepwater off-shore platforms in the Gulf of Mexico and Pacific | E208: x | F208: =Control!$H$16 -> 0 | G208: = | H208: =D208*F208 -> 0 | I208: = | J208: =H208*MethGWP*10^-6 -> 0 | K208: = | L208: =J208/CO2_C -> 0
B209: Total | H209: =SUM(H206:H208) ->  | I209: = | J209: =H209*MethGWP*10^-6 ->  | K209: = | L209: =J209/CO2_C -> 
B211: Natural Gas - Production | D211: =D202+1 -> 2013
D213: Activity Data | F213: Emission Factor | H213: Metric Tons CH4 | J213: MMTCO2E | L213: MMTCE
F214: metric tons CH4 per year per activity unit
B215: Total number of wells | E215: x | F215: =VLOOKUP($B$3,WellEFbyRegion,D211-1988,FALSE) ->  | G215: = | H215: =D215*F215 ->  | I215: = | J215: =H215*MethGWP*10^-6 ->  | K215: = | L215: =J215/CO2_C -> 
B216: Number of shallow water off-shore platforms in the Gulf of Mexico and Pacific | E216: x | F216: =Control!$H$15 -> 0 | G216: = | H216: =D216*F216 -> 0 | I216: = | J216: =H216*MethGWP*10^-6 -> 0 | K216: = | L216: =J216/CO2_C -> 0
B217: Number of deepwater off-shore platforms in the Gulf of Mexico and Pacific | E217: x | F217: =Control!$H$16 -> 0 | G217: = | H217: =D217*F217 -> 0 | I217: = | J217: =H217*MethGWP*10^-6 -> 0 | K217: = | L217: =J217/CO2_C -> 0
B218: Total | H218: =SUM(H215:H217) ->  | I218: = | J218: =H218*MethGWP*10^-6 ->  | K218: = | L218: =J218/CO2_C -> 
B220: Natural Gas - Production | D220: =D211+1 -> 2014
D222: Activity Data | F222: Emission Factor | H222: Metric Tons CH4 | J222: MMTCO2E | L222: MMTCE
F223: metric tons CH4 per year per activity unit
B224: Total number of wells | E224: x | F224: =VLOOKUP($B$3,WellEFbyRegion,D220-1988,FALSE) ->  | G224: = | H224: =D224*F224 ->  | I224: = | J224: =H224*MethGWP*10^-6 ->  | K224: = | L224: =J224/CO2_C -> 
B225: Number of shallow water off-shore platforms in the Gulf of Mexico and Pacific | E225: x | F225: =Control!$H$15 -> 0 | G225: = | H225: =D225*F225 -> 0 | I225: = | J225: =H225*MethGWP*10^-6 -> 0 | K225: = | L225: =J225/CO2_C -> 0
B226: Number of deepwater off-shore platforms in the Gulf of Mexico and Pacific | E226: x | F226: =Control!$H$16 -> 0 | G226: = | H226: =D226*F226 -> 0 | I226: = | J226: =H226*MethGWP*10^-6 -> 0 | K226: = | L226: =J226/CO2_C -> 0
B227: Total | H227: =SUM(H224:H226) ->  | I227: = | J227: =H227*MethGWP*10^-6 ->  | K227: = | L227: =J227/CO2_C -> 
B229: Natural Gas - Production | D229: =D220+1 -> 2015
D231: Activity Data | F231: Emission Factor | H231: Metric Tons CH4 | J231: MMTCO2E | L231: MMTCE
F232: metric tons CH4 per year per activity unit
B233: Total number of wells | E233: x | F233: =VLOOKUP($B$3,WellEFbyRegion,D229-1988,FALSE) ->  | G233: = | H233: =D233*F233 ->  | I233: = | J233: =H233*MethGWP*10^-6 ->  | K233: = | L233: =J233/CO2_C -> 
B234: Number of shallow water off-shore platforms in the Gulf of Mexico and Pacific | E234: x | F234: =Control!$H$15 -> 0 | G234: = | H234: =D234*F234 -> 0 | I234: = | J234: =H234*MethGWP*10^-6 -> 0 | K234: = | L234: =J234/CO2_C -> 0
B235: Number of deepwater off-shore platforms in the Gulf of Mexico and Pacific | E235: x | F235: =Control!$H$16 -> 0 | G235: = | H235: =D235*F235 -> 0 | I235: = | J235: =H235*MethGWP*10^-6 -> 0 | K235: = | L235: =J235/CO2_C -> 0
B236: Total | H236: =SUM(H233:H235) ->  | I236: = | J236: =H236*MethGWP*10^-6 ->  | K236: = | L236: =J236/CO2_C -> 
B238: Natural Gas - Production | D238: =D229+1 -> 2016
D240: Activity Data | F240: Emission Factor | H240: Metric Tons CH4 | J240: MMTCO2E | L240: MMTCE
F241: metric tons CH4 per year per activity unit
B242: Total number of wells | E242: x | F242: =VLOOKUP($B$3,WellEFbyRegion,D238-1988,FALSE) ->  | G242: = | H242: =D242*F242 ->  | I242: = | J242: =H242*MethGWP*10^-6 ->  | K242: = | L242: =J242/CO2_C -> 
B243: Number of shallow water off-shore platforms in the Gulf of Mexico and Pacific | E243: x | F243: =Control!$H$15 -> 0 | G243: = | H243: =D243*F243 -> 0 | I243: = | J243: =H243*MethGWP*10^-6 -> 0 | K243: = | L243: =J243/CO2_C -> 0
B244: Number of deepwater off-shore platforms in the Gulf of Mexico and Pacific | E244: x | F244: =Control!$H$16 -> 0 | G244: = | H244: =D244*F244 -> 0 | I244: = | J244: =H244*MethGWP*10^-6 -> 0 | K244: = | L244: =J244/CO2_C -> 0
B245: Total | H245: =SUM(H242:H244) ->  | I245: = | J245: =H245*MethGWP*10^-6 ->  | K245: = | L245: =J245/CO2_C -> 
B247: Natural Gas - Production | D247: =D238+1 -> 2017
D249: Activity Data | F249: Emission Factor | H249: Metric Tons CH4 | J249: MMTCO2E | L249: MMTCE
F250: metric tons CH4 per year per activity unit
B251: Total number of wells | E251: x | F251: =VLOOKUP($B$3,WellEFbyRegion,D247-1988,FALSE) ->  | G251: = | H251: =D251*F251 ->  | I251: = | J251: =H251*MethGWP*10^-6 ->  | K251: = | L251: =J251/CO2_C -> 
B252: Number of shallow water off-shore platforms in the Gulf of Mexico and Pacific | E252: x | F252: =Control!$H$15 -> 0 | G252: = | H252: =D252*F252 -> 0 | I252: = | J252: =H252*MethGWP*10^-6 -> 0 | K252: = | L252: =J252/CO2_C -> 0
B253: Number of deepwater off-shore platforms in the Gulf of Mexico and Pacific | E253: x | F253: =Control!$H$16 -> 0 | G253: = | H253: =D253*F253 -> 0 | I253: = | J253: =H253*MethGWP*10^-6 -> 0 | K253: = | L253: =J253/CO2_C -> 0
B254: Total | H254: =SUM(H251:H253) ->  | I254: = | J254: =H254*MethGWP*10^-6 ->  | K254: = | L254: =J254/CO2_C -> 
B256: Natural Gas - Production | D256: =D247+1 -> 2018
... 55 more rows

Sheet Natural Gas - Transmission
B1: ="3. Emission from Natural Gas Transmission Activities in "&ListData!D2 -> 3. Emission from Natural Gas Transmission Activities in Select a State . . .
C5: Gas Transmission Compressor Stations/Mile of Transmission Pipeline | H5: 0.005952380952 | I5: Gas Storage Compressor Stations/Mile of Transmission Pipeline | M5: 0.001509442517
B7: Natural Gas - Transmission | C7: 1990
D9: Activity Data | F9: Emission Factor | H9: Metric Tons CH4 | J9: MMTCO2E | L9: MMTCE
F10: metric tons CH4 per year per activity unit
B11: Miles of gathering pipeline | C11: --> | E11: x | F11: =Control!$H$20 -> 0 | G11: = | H11: =D11*F11 -> 0 | I11: = | J11: =H11*MethGWP*10^-6 -> 0 | K11: = | L11: =J11/CO2_C -> 0
B12: Number of gas processing plants | C12: --> | E12: x | F12: =Control!$H$21 -> 0 | G12: = | H12: =D12*F12 -> 0 | I12: = | J12: =H12*MethGWP*10^-6 -> 0 | K12: = | L12: =J12/CO2_C -> 0
B13: Number of LNG storage compressor stations | C13: --> | E13: x | F13: =Control!$H$25 -> 0 | G13: = | H13: =D13*F13 -> 0 | I13: = | J13: =H13*MethGWP*10^-6 -> 0 | K13: = | L13: =J13/CO2_C -> 0
B15: Miles of transmission pipeline | C15: --> | E15: x | F15: =Control!$H$24 -> 0 | G15: = | H15: =D15*F15 -> 0 | I15: = | J15: =H15*MethGWP*10^-6 -> 0 | K15: = | L15: =J15/CO2_C -> 0
B16: Number of gas transmission compressor stations | C16: --> | E16: x | F16: =Control!$H$22 -> 0 | G16: = | H16: =D16*F16 -> 0 | I16: = | J16: =H16*MethGWP*10^-6 -> 0 | K16: = | L16: =J16/CO2_C -> 0
B17: Number of gas storage compressor stations | C17: --> | E17: x | F17: =Control!$H$23 -> 0 | G17: = | H17: =D17*F17 -> 0 | I17: = | J17: =H17*MethGWP*10^-6 -> 0 | K17: = | L17: =J17/CO2_C -> 0
B18: Total | H18: =SUM(H11:H17) -> 0 | I18: = | J18: =H18*MethGWP*10^-6 -> 0 | K18: = | L18: =J18/CO2_C -> 0
B20: Natural Gas - Transmission | C20: =C7+1 -> 1991
D22: Activity Data | F22: Emission Factor | H22: Metric Tons CH4 | J22: MMTCO2E | L22: MMTCE
F23: metric tons CH4 per year per activity unit
B24: Miles of gathering pipeline | C24: --> | E24: x | F24: =Control!$H$20 -> 0 | G24: = | H24: =D24*F24 -> 0 | I24: = | J24: =H24*MethGWP*10^-6 -> 0 | K24: = | L24: =J24/CO2_C -> 0
B25: Number of gas processing plants | C25: --> | E25: x | F25: =Control!$H$21 -> 0 | G25: = | H25: =D25*F25 -> 0 | I25: = | J25: =H25*MethGWP*10^-6 -> 0 | K25: = | L25: =J25/CO2_C -> 0
B26: Number of LNG storage compressor stations | C26: --> | E26: x | F26: =Control!$H$25 -> 0 | G26: = | H26: =D26*F26 -> 0 | I26: = | J26: =H26*MethGWP*10^-6 -> 0 | K26: = | L26: =J26/CO2_C -> 0
B28: Miles of transmission pipeline | C28: --> | E28: x | F28: =Control!$H$24 -> 0 | G28: = | H28: =D28*F28 -> 0 | I28: = | J28: =H28*MethGWP*10^-6 -> 0 | K28: = | L28: =J28/CO2_C -> 0
B29: Number of gas transmission compressor stations | C29: --> | E29: x | F29: =Control!$H$22 -> 0 | G29: = | H29: =D29*F29 -> 0 | I29: = | J29: =H29*MethGWP*10^-6 -> 0 | K29: = | L29: =J29/CO2_C -> 0
B30: Number of gas storage compressor stations | C30: --> | E30: x | F30: =Control!$H$23 -> 0 | G30: = | H30: =D30*F30 -> 0 | I30: = | J30: =H30*MethGWP*10^-6 -> 0 | K30: = | L30: =J30/CO2_C -> 0
B31: Total | H31: =SUM(H24:H30) -> 0 | I31: = | J31: =H31*MethGWP*10^-6 -> 0 | K31: = | L31: =J31/CO2_C -> 0
B33: Natural Gas - Transmission | C33: =C20+1 -> 1992
D35: Activity Data | F35: Emission Factor | H35: Metric Tons CH4 | J35: MMTCO2E | L35: MMTCE
F36: metric tons CH4 per year per activity unit
B37: Miles of gathering pipeline | C37: --> | E37: x | F37: =Control!$H$20 -> 0 | G37: = | H37: =D37*F37 -> 0 | I37: = | J37: =H37*MethGWP*10^-6 -> 0 | K37: = | L37: =J37/CO2_C -> 0
B38: Number of gas processing plants | C38: --> | E38: x | F38: =Control!$H$21 -> 0 | G38: = | H38: =D38*F38 -> 0 | I38: = | J38: =H38*MethGWP*10^-6 -> 0 | K38: = | L38: =J38/CO2_C -> 0
B39: Number of LNG storage compressor stations | C39: --> | E39: x | F39: =Control!$H$25 -> 0 | G39: = | H39: =D39*F39 -> 0 | I39: = | J39: =H39*MethGWP*10^-6 -> 0 | K39: = | L39: =J39/CO2_C -> 0
B41: Miles of transmission pipeline | C41: --> | E41: x | F41: =Control!$H$24 -> 0 | G41: = | H41: =D41*F41 -> 0 | I41: = | J41: =H41*MethGWP*10^-6 -> 0 | K41: = | L41: =J41/CO2_C -> 0
B42: Number of gas transmission compressor stations | C42: --> | E42: x | F42: =Control!$H$22 -> 0 | G42: = | H42: =D42*F42 -> 0 | I42: = | J42: =H42*MethGWP*10^-6 -> 0 | K42: = | L42: =J42/CO2_C -> 0
B43: Number of gas storage compressor stations | C43: --> | E43: x | F43: =Control!$H$23 -> 0 | G43: = | H43: =D43*F43 -> 0 | I43: = | J43: =H43*MethGWP*10^-6 -> 0 | K43: = | L43: =J43/CO2_C -> 0
B44: Total | H44: =SUM(H37:H43) -> 0 | I44: = | J44: =H44*MethGWP*10^-6 -> 0 | K44: = | L44: =J44/CO2_C -> 0
B46: Natural Gas - Transmission | C46: =C33+1 -> 1993
D48: Activity Data | F48: Emission Factor | H48: Metric Tons CH4 | J48: MMTCO2E | L48: MMTCE
F49: metric tons CH4 per year per activity unit
B50: Miles of gathering pipeline | C50: --> | E50: x | F50: =Control!$H$20 -> 0 | G50: = | H50: =D50*F50 -> 0 | I50: = | J50: =H50*MethGWP*10^-6 -> 0 | K50: = | L50: =J50/CO2_C -> 0
B51: Number of gas processing plants | C51: --> | E51: x | F51: =Control!$H$21 -> 0 | G51: = | H51: =D51*F51 -> 0 | I51: = | J51: =H51*MethGWP*10^-6 -> 0 | K51: = | L51: =J51/CO2_C -> 0
B52: Number of LNG storage compressor stations | C52: --> | E52: x | F52: =Control!$H$25 -> 0 | G52: = | H52: =D52*F52 -> 0 | I52: = | J52: =H52*MethGWP*10^-6 -> 0 | K52: = | L52: =J52/CO2_C -> 0
B54: Miles of transmission pipeline | C54: --> | E54: x | F54: =Control!$H$24 -> 0 | G54: = | H54: =D54*F54 -> 0 | I54: = | J54: =H54*MethGWP*10^-6 -> 0 | K54: = | L54: =J54/CO2_C -> 0
B55: Number of gas transmission compressor stations | C55: --> | E55: x | F55: =Control!$H$22 -> 0 | G55: = | H55: =D55*F55 -> 0 | I55: = | J55: =H55*MethGWP*10^-6 -> 0 | K55: = | L55: =J55/CO2_C -> 0
B56: Number of gas storage compressor stations | C56: --> | E56: x | F56: =Control!$H$23 -> 0 | G56: = | H56: =D56*F56 -> 0 | I56: = | J56: =H56*MethGWP*10^-6 -> 0 | K56: = | L56: =J56/CO2_C -> 0
B57: Total | H57: =SUM(H50:H56) -> 0 | I57: = | J57: =H57*MethGWP*10^-6 -> 0 | K57: = | L57: =J57/CO2_C -> 0
B59: Natural Gas - Transmission | C59: =C46+1 -> 1994
D61: Activity Data | F61: Emission Factor | H61: Metric Tons CH4 | J61: MMTCO2E | L61: MMTCE
F62: metric tons CH4 per year per activity unit
B63: Miles of gathering pipeline | C63: --> | E63: x | F63: =Control!$H$20 -> 0 | G63: = | H63: =D63*F63 -> 0 | I63: = | J63: =H63*MethGWP*10^-6 -> 0 | K63: = | L63: =J63/CO2_C -> 0
B64: Number of gas processing plants | C64: --> | E64: x | F64: =Control!$H$21 -> 0 | G64: = | H64: =D64*F64 -> 0 | I64: = | J64: =H64*MethGWP*10^-6 -> 0 | K64: = | L64: =J64/CO2_C -> 0
B65: Number of LNG storage compressor stations | C65: --> | E65: x | F65: =Control!$H$25 -> 0 | G65: = | H65: =D65*F65 -> 0 | I65: = | J65: =H65*MethGWP*10^-6 -> 0 | K65: = | L65: =J65/CO2_C -> 0
B67: Miles of transmission pipeline | C67: --> | E67: x | F67: =Control!$H$24 -> 0 | G67: = | H67: =D67*F67 -> 0 | I67: = | J67: =H67*MethGWP*10^-6 -> 0 | K67: = | L67: =J67/CO2_C -> 0
B68: Number of gas transmission compressor stations | C68: --> | E68: x | F68: =Control!$H$22 -> 0 | G68: = | H68: =D68*F68 -> 0 | I68: = | J68: =H68*MethGWP*10^-6 -> 0 | K68: = | L68: =J68/CO2_C -> 0
B69: Number of gas storage compressor stations | C69: --> | E69: x | F69: =Control!$H$23 -> 0 | G69: = | H69: =D69*F69 -> 0 | I69: = | J69: =H69*MethGWP*10^-6 -> 0 | K69: = | L69: =J69/CO2_C -> 0
B70: Total | H70: =SUM(H63:H69) -> 0 | I70: = | J70: =H70*MethGWP*10^-6 -> 0 | K70: = | L70: =J70/CO2_C -> 0
B72: Natural Gas - Transmission | C72: =C59+1 -> 1995
D74: Activity Data | F74: Emission Factor | H74: Metric Tons CH4 | J74: MMTCO2E | L74: MMTCE
F75: metric tons CH4 per year per activity unit
B76: Miles of gathering pipeline | C76: --> | E76: x | F76: =Control!$H$20 -> 0 | G76: = | H76: =D76*F76 -> 0 | I76: = | J76: =H76*MethGWP*10^-6 -> 0 | K76: = | L76: =J76/CO2_C -> 0
B77: Number of gas processing plants | C77: --> | E77: x | F77: =Control!$H$21 -> 0 | G77: = | H77: =D77*F77 -> 0 | I77: = | J77: =H77*MethGWP*10^-6 -> 0 | K77: = | L77: =J77/CO2_C -> 0
B78: Number of LNG storage compressor stations | C78: --> | E78: x | F78: =Control!$H$25 -> 0 | G78: = | H78: =D78*F78 -> 0 | I78: = | J78: =H78*MethGWP*10^-6 -> 0 | K78: = | L78: =J78/CO2_C -> 0
B80: Miles of transmission pipeline | C80: --> | E80: x | F80: =Control!$H$24 -> 0 | G80: = | H80: =D80*F80 -> 0 | I80: = | J80: =H80*MethGWP*10^-6 -> 0 | K80: = | L80: =J80/CO2_C -> 0
B81: Number of gas transmission compressor stations | C81: --> | E81: x | F81: =Control!$H$22 -> 0 | G81: = | H81: =D81*F81 -> 0 | I81: = | J81: =H81*MethGWP*10^-6 -> 0 | K81: = | L81: =J81/CO2_C -> 0
B82: Number of gas storage compressor stations | C82: --> | E82: x | F82: =Control!$H$23 -> 0 | G82: = | H82: =D82*F82 -> 0 | I82: = | J82: =H82*MethGWP*10^-6 -> 0 | K82: = | L82: =J82/CO2_C -> 0
B83: Total | H83: =SUM(H76:H82) -> 0 | I83: = | J83: =H83*MethGWP*10^-6 -> 0 | K83: = | L83: =J83/CO2_C -> 0
B85: Natural Gas - Transmission | C85: =C72+1 -> 1996
D87: Activity Data | F87: Emission Factor | H87: Metric Tons CH4 | J87: MMTCO2E | L87: MMTCE
F88: metric tons CH4 per year per activity unit
B89: Miles of gathering pipeline | C89: --> | E89: x | F89: =Control!$H$20 -> 0 | G89: = | H89: =D89*F89 -> 0 | I89: = | J89: =H89*MethGWP*10^-6 -> 0 | K89: = | L89: =J89/CO2_C -> 0
B90: Number of gas processing plants | C90: --> | E90: x | F90: =Control!$H$21 -> 0 | G90: = | H90: =D90*F90 -> 0 | I90: = | J90: =H90*MethGWP*10^-6 -> 0 | K90: = | L90: =J90/CO2_C -> 0
B91: Number of LNG storage compressor stations | C91: --> | E91: x | F91: =Control!$H$25 -> 0 | G91: = | H91: =D91*F91 -> 0 | I91: = | J91: =H91*MethGWP*10^-6 -> 0 | K91: = | L91: =J91/CO2_C -> 0
B93: Miles of transmission pipeline | C93: --> | E93: x | F93: =Control!$H$24 -> 0 | G93: = | H93: =D93*F93 -> 0 | I93: = | J93: =H93*MethGWP*10^-6 -> 0 | K93: = | L93: =J93/CO2_C -> 0
B94: Number of gas transmission compressor stations | C94: --> | E94: x | F94: =Control!$H$22 -> 0 | G94: = | H94: =D94*F94 -> 0 | I94: = | J94: =H94*MethGWP*10^-6 -> 0 | K94: = | L94: =J94/CO2_C -> 0
B95: Number of gas storage compressor stations | C95: --> | E95: x | F95: =Control!$H$23 -> 0 | G95: = | H95: =D95*F95 -> 0 | I95: = | J95: =H95*MethGWP*10^-6 -> 0 | K95: = | L95: =J95/CO2_C -> 0
B96: Total | H96: =SUM(H89:H95) -> 0 | I96: = | J96: =H96*MethGWP*10^-6 -> 0 | K96: = | L96: =J96/CO2_C -> 0
B98: Natural Gas - Transmission | C98: =C85+1 -> 1997
D100: Activity Data | F100: Emission Factor | H100: Metric Tons CH4 | J100: MMTCO2E | L100: MMTCE
F101: metric tons CH4 per year per activity unit
B102: Miles of gathering pipeline | C102: --> | E102: x | F102: =Control!$H$20 -> 0 | G102: = | H102: =D102*F102 -> 0 | I102: = | J102: =H102*MethGWP*10^-6 -> 0 | K102: = | L102: =J102/CO2_C -> 0
B103: Number of gas processing plants | C103: --> | E103: x | F103: =Control!$H$21 -> 0 | G103: = | H103: =D103*F103 -> 0 | I103: = | J103: =H103*MethGWP*10^-6 -> 0 | K103: = | L103: =J103/CO2_C -> 0
B104: Number of LNG storage compressor stations | C104: --> | E104: x | F104: =Control!$H$25 -> 0 | G104: = | H104: =D104*F104 -> 0 | I104: = | J104: =H104*MethGWP*10^-6 -> 0 | K104: = | L104: =J104/CO2_C -> 0
B106: Miles of transmission pipeline | C106: --> | E106: x | F106: =Control!$H$24 -> 0 | G106: = | H106: =D106*F106 -> 0 | I106: = | J106: =H106*MethGWP*10^-6 -> 0 | K106: = | L106: =J106/CO2_C -> 0
B107: Number of gas transmission compressor stations | C107: --> | E107: x | F107: =Control!$H$22 -> 0 | G107: = | H107: =D107*F107 -> 0 | I107: = | J107: =H107*MethGWP*10^-6 -> 0 | K107: = | L107: =J107/CO2_C -> 0
B108: Number of gas storage compressor stations | C108: --> | E108: x | F108: =Control!$H$23 -> 0 | G108: = | H108: =D108*F108 -> 0 | I108: = | J108: =H108*MethGWP*10^-6 -> 0 | K108: = | L108: =J108/CO2_C -> 0
B109: Total | H109: =SUM(H102:H108) -> 0 | I109: = | J109: =H109*MethGWP*10^-6 -> 0 | K109: = | L109: =J109/CO2_C -> 0
B111: Natural Gas - Transmission | C111: =C98+1 -> 1998
D113: Activity Data | F113: Emission Factor | H113: Metric Tons CH4 | J113: MMTCO2E | L113: MMTCE
F114: metric tons CH4 per year per activity unit
B115: Miles of gathering pipeline | C115: --> | E115: x | F115: =Control!$H$20 -> 0 | G115: = | H115: =D115*F115 -> 0 | I115: = | J115: =H115*MethGWP*10^-6 -> 0 | K115: = | L115: =J115/CO2_C -> 0
B116: Number of gas processing plants | C116: --> | E116: x | F116: =Control!$H$21 -> 0 | G116: = | H116: =D116*F116 -> 0 | I116: = | J116: =H116*MethGWP*10^-6 -> 0 | K116: = | L116: =J116/CO2_C -> 0
B117: Number of LNG storage compressor stations | C117: --> | E117: x | F117: =Control!$H$25 -> 0 | G117: = | H117: =D117*F117 -> 0 | I117: = | J117: =H117*MethGWP*10^-6 -> 0 | K117: = | L117: =J117/CO2_C -> 0
B119: Miles of transmission pipeline | C119: --> | E119: x | F119: =Control!$H$24 -> 0 | G119: = | H119: =D119*F119 -> 0 | I119: = | J119: =H119*MethGWP*10^-6 -> 0 | K119: = | L119: =J119/CO2_C -> 0
B120: Number of gas transmission compressor stations | C120: --> | E120: x | F120: =Control!$H$22 -> 0 | G120: = | H120: =D120*F120 -> 0 | I120: = | J120: =H120*MethGWP*10^-6 -> 0 | K120: = | L120: =J120/CO2_C -> 0
B121: Number of gas storage compressor stations | C121: --> | E121: x | F121: =Control!$H$23 -> 0 | G121: = | H121: =D121*F121 -> 0 | I121: = | J121: =H121*MethGWP*10^-6 -> 0 | K121: = | L121: =J121/CO2_C -> 0
B122: Total | H122: =SUM(H115:H121) -> 0 | I122: = | J122: =H122*MethGWP*10^-6 -> 0 | K122: = | L122: =J122/CO2_C -> 0
B124: Natural Gas - Transmission | C124: =C111+1 -> 1999
D126: Activity Data | F126: Emission Factor | H126: Metric Tons CH4 | J126: MMTCO2E | L126: MMTCE
F127: metric tons CH4 per year per activity unit
B128: Miles of gathering pipeline | C128: --> | E128: x | F128: =Control!$H$20 -> 0 | G128: = | H128: =D128*F128 -> 0 | I128: = | J128: =H128*MethGWP*10^-6 -> 0 | K128: = | L128: =J128/CO2_C -> 0
B129: Number of gas processing plants | C129: --> | E129: x | F129: =Control!$H$21 -> 0 | G129: = | H129: =D129*F129 -> 0 | I129: = | J129: =H129*MethGWP*10^-6 -> 0 | K129: = | L129: =J129/CO2_C -> 0
B130: Number of LNG storage compressor stations | C130: --> | E130: x | F130: =Control!$H$25 -> 0 | G130: = | H130: =D130*F130 -> 0 | I130: = | J130: =H130*MethGWP*10^-6 -> 0 | K130: = | L130: =J130/CO2_C -> 0
B132: Miles of transmission pipeline | C132: --> | E132: x | F132: =Control!$H$24 -> 0 | G132: = | H132: =D132*F132 -> 0 | I132: = | J132: =H132*MethGWP*10^-6 -> 0 | K132: = | L132: =J132/CO2_C -> 0
B133: Number of gas transmission compressor stations | C133: --> | E133: x | F133: =Control!$H$22 -> 0 | G133: = | H133: =D133*F133 -> 0 | I133: = | J133: =H133*MethGWP*10^-6 -> 0 | K133: = | L133: =J133/CO2_C -> 0
B134: Number of gas storage compressor stations | C134: --> | E134: x | F134: =Control!$H$23 -> 0 | G134: = | H134: =D134*F134 -> 0 | I134: = | J134: =H134*MethGWP*10^-6 -> 0 | K134: = | L134: =J134/CO2_C -> 0
B135: Total | H135: =SUM(H128:H134) -> 0 | I135: = | J135: =H135*MethGWP*10^-6 -> 0 | K135: = | L135: =J135/CO2_C -> 0
B137: Natural Gas - Transmission | C137: =C124+1 -> 2000
D139: Activity Data | F139: Emission Factor | H139: Metric Tons CH4 | J139: MMTCO2E | L139: MMTCE
F140: metric tons CH4 per year per activity unit
B141: Miles of gathering pipeline | C141: --> | E141: x | F141: =Control!$H$20 -> 0 | G141: = | H141: =D141*F141 -> 0 | I141: = | J141: =H141*MethGWP*10^-6 -> 0 | K141: = | L141: =J141/CO2_C -> 0
B142: Number of gas processing plants | C142: --> | E142: x | F142: =Control!$H$21 -> 0 | G142: = | H142: =D142*F142 -> 0 | I142: = | J142: =H142*MethGWP*10^-6 -> 0 | K142: = | L142: =J142/CO2_C -> 0
B143: Number of LNG storage compressor stations | C143: --> | E143: x | F143: =Control!$H$25 -> 0 | G143: = | H143: =D143*F143 -> 0 | I143: = | J143: =H143*MethGWP*10^-6 -> 0 | K143: = | L143: =J143/CO2_C -> 0
B145: Miles of transmission pipeline | C145: --> | E145: x | F145: =Control!$H$24 -> 0 | G145: = | H145: =D145*F145 -> 0 | I145: = | J145: =H145*MethGWP*10^-6 -> 0 | K145: = | L145: =J145/CO2_C -> 0
B146: Number of gas transmission compressor stations | C146: --> | E146: x | F146: =Control!$H$22 -> 0 | G146: = | H146: =D146*F146 -> 0 | I146: = | J146: =H146*MethGWP*10^-6 -> 0 | K146: = | L146: =J146/CO2_C -> 0
B147: Number of gas storage compressor stations | C147: --> | E147: x | F147: =Control!$H$23 -> 0 | G147: = | H147: =D147*F147 -> 0 | I147: = | J147: =H147*MethGWP*10^-6 -> 0 | K147: = | L147: =J147/CO2_C -> 0
B148: Total | H148: =SUM(H141:H147) -> 0 | I148: = | J148: =H148*MethGWP*10^-6 -> 0 | K148: = | L148: =J148/CO2_C -> 0
B150: Natural Gas - Transmission | C150: =C137+1 -> 2001
D152: Activity Data | F152: Emission Factor | H152: Metric Tons CH4 | J152: MMTCO2E | L152: MMTCE
F153: metric tons CH4 per year per activity unit
B154: Miles of gathering pipeline | C154: --> | E154: x | F154: =Control!$H$20 -> 0 | G154: = | H154: =D154*F154 -> 0 | I154: = | J154: =H154*MethGWP*10^-6 -> 0 | K154: = | L154: =J154/CO2_C -> 0
B155: Number of gas processing plants | C155: --> | E155: x | F155: =Control!$H$21 -> 0 | G155: = | H155: =D155*F155 -> 0 | I155: = | J155: =H155*MethGWP*10^-6 -> 0 | K155: = | L155: =J155/CO2_C -> 0
B156: Number of LNG storage compressor stations | C156: --> | E156: x | F156: =Control!$H$25 -> 0 | G156: = | H156: =D156*F156 -> 0 | I156: = | J156: =H156*MethGWP*10^-6 -> 0 | K156: = | L156: =J156/CO2_C -> 0
B158: Miles of transmission pipeline | C158: --> | E158: x | F158: =Control!$H$24 -> 0 | G158: = | H158: =D158*F158 -> 0 | I158: = | J158: =H158*MethGWP*10^-6 -> 0 | K158: = | L158: =J158/CO2_C -> 0
B159: Number of gas transmission compressor stations | C159: --> | E159: x | F159: =Control!$H$22 -> 0 | G159: = | H159: =D159*F159 -> 0 | I159: = | J159: =H159*MethGWP*10^-6 -> 0 | K159: = | L159: =J159/CO2_C -> 0
B160: Number of gas storage compressor stations | C160: --> | E160: x | F160: =Control!$H$23 -> 0 | G160: = | H160: =D160*F160 -> 0 | I160: = | J160: =H160*MethGWP*10^-6 -> 0 | K160: = | L160: =J160/CO2_C -> 0
B161: Total | H161: =SUM(H154:H160) -> 0 | I161: = | J161: =H161*MethGWP*10^-6 -> 0 | K161: = | L161: =J161/CO2_C -> 0
B163: Natural Gas - Transmission | C163: =C150+1 -> 2002
D165: Activity Data | F165: Emission Factor | H165: Metric Tons CH4 | J165: MMTCO2E | L165: MMTCE
F166: metric tons CH4 per year per activity unit
B167: Miles of gathering pipeline | C167: --> | E167: x | F167: =Control!$H$20 -> 0 | G167: = | H167: =D167*F167 -> 0 | I167: = | J167: =H167*MethGWP*10^-6 -> 0 | K167: = | L167: =J167/CO2_C -> 0
B168: Number of gas processing plants | C168: --> | E168: x | F168: =Control!$H$21 -> 0 | G168: = | H168: =D168*F168 -> 0 | I168: = | J168: =H168*MethGWP*10^-6 -> 0 | K168: = | L168: =J168/CO2_C -> 0
B169: Number of LNG storage compressor stations | C169: --> | E169: x | F169: =Control!$H$25 -> 0 | G169: = | H169: =D169*F169 -> 0 | I169: = | J169: =H169*MethGWP*10^-6 -> 0 | K169: = | L169: =J169/CO2_C -> 0
B171: Miles of transmission pipeline | C171: --> | E171: x | F171: =Control!$H$24 -> 0 | G171: = | H171: =D171*F171 -> 0 | I171: = | J171: =H171*MethGWP*10^-6 -> 0 | K171: = | L171: =J171/CO2_C -> 0
B172: Number of gas transmission compressor stations | C172: --> | E172: x | F172: =Control!$H$22 -> 0 | G172: = | H172: =D172*F172 -> 0 | I172: = | J172: =H172*MethGWP*10^-6 -> 0 | K172: = | L172: =J172/CO2_C -> 0
B173: Number of gas storage compressor stations | C173: --> | E173: x | F173: =Control!$H$23 -> 0 | G173: = | H173: =D173*F173 -> 0 | I173: = | J173: =H173*MethGWP*10^-6 -> 0 | K173: = | L173: =J173/CO2_C -> 0
B174: Total | H174: =SUM(H167:H173) -> 0 | I174: = | J174: =H174*MethGWP*10^-6 -> 0 | K174: = | L174: =J174/CO2_C -> 0
B176: Natural Gas - Transmission | C176: =C163+1 -> 2003
D178: Activity Data | F178: Emission Factor | H178: Metric Tons CH4 | J178: MMTCO2E | L178: MMTCE
F179: metric tons CH4 per year per activity unit
B180: Miles of gathering pipeline | C180: --> | E180: x | F180: =Control!$H$20 -> 0 | G180: = | H180: =D180*F180 -> 0 | I180: = | J180: =H180*MethGWP*10^-6 -> 0 | K180: = | L180: =J180/CO2_C -> 0
B181: Number of gas processing plants | C181: --> | E181: x | F181: =Control!$H$21 -> 0 | G181: = | H181: =D181*F181 -> 0 | I181: = | J181: =H181*MethGWP*10^-6 -> 0 | K181: = | L181: =J181/CO2_C -> 0
B182: Number of LNG storage compressor stations | C182: --> | E182: x | F182: =Control!$H$25 -> 0 | G182: = | H182: =D182*F182 -> 0 | I182: = | J182: =H182*MethGWP*10^-6 -> 0 | K182: = | L182: =J182/CO2_C -> 0
B184: Miles of transmission pipeline | C184: --> | E184: x | F184: =Control!$H$24 -> 0 | G184: = | H184: =D184*F184 -> 0 | I184: = | J184: =H184*MethGWP*10^-6 -> 0 | K184: = | L184: =J184/CO2_C -> 0
B185: Number of gas transmission compressor stations | C185: --> | E185: x | F185: =Control!$H$22 -> 0 | G185: = | H185: =D185*F185 -> 0 | I185: = | J185: =H185*MethGWP*10^-6 -> 0 | K185: = | L185: =J185/CO2_C -> 0
B186: Number of gas storage compressor stations | C186: --> | E186: x | F186: =Control!$H$23 -> 0 | G186: = | H186: =D186*F186 -> 0 | I186: = | J186: =H186*MethGWP*10^-6 -> 0 | K186: = | L186: =J186/CO2_C -> 0
B187: Total | H187: =SUM(H180:H186) -> 0 | I187: = | J187: =H187*MethGWP*10^-6 -> 0 | K187: = | L187: =J187/CO2_C -> 0
B189: Natural Gas - Transmission | C189: =C176+1 -> 2004
D191: Activity Data | F191: Emission Factor | H191: Metric Tons CH4 | J191: MMTCO2E | L191: MMTCE
F192: metric tons CH4 per year per activity unit
B193: Miles of gathering pipeline | C193: --> | E193: x | F193: =Control!$H$20 -> 0 | G193: = | H193: =D193*F193 -> 0 | I193: = | J193: =H193*MethGWP*10^-6 -> 0 | K193: = | L193: =J193/CO2_C -> 0
B194: Number of gas processing plants | C194: --> | E194: x | F194: =Control!$H$21 -> 0 | G194: = | H194: =D194*F194 -> 0 | I194: = | J194: =H194*MethGWP*10^-6 -> 0 | K194: = | L194: =J194/CO2_C -> 0
B195: Number of LNG storage compressor stations | C195: --> | E195: x | F195: =Control!$H$25 -> 0 | G195: = | H195: =D195*F195 -> 0 | I195: = | J195: =H195*MethGWP*10^-6 -> 0 | K195: = | L195: =J195/CO2_C -> 0
B197: Miles of transmission pipeline | C197: --> | E197: x | F197: =Control!$H$24 -> 0 | G197: = | H197: =D197*F197 -> 0 | I197: = | J197: =H197*MethGWP*10^-6 -> 0 | K197: = | L197: =J197/CO2_C -> 0
B198: Number of gas transmission compressor stations | C198: --> | E198: x | F198: =Control!$H$22 -> 0 | G198: = | H198: =D198*F198 -> 0 | I198: = | J198: =H198*MethGWP*10^-6 -> 0 | K198: = | L198: =J198/CO2_C -> 0
B199: Number of gas storage compressor stations | C199: --> | E199: x | F199: =Control!$H$23 -> 0 | G199: = | H199: =D199*F199 -> 0 | I199: = | J199: =H199*MethGWP*10^-6 -> 0 | K199: = | L199: =J199/CO2_C -> 0
B200: Total | H200: =SUM(H193:H199) -> 0 | I200: = | J200: =H200*MethGWP*10^-6 -> 0 | K200: = | L200: =J200/CO2_C -> 0
B202: Natural Gas - Transmission | C202: =C189+1 -> 2005
D204: Activity Data | F204: Emission Factor | H204: Metric Tons CH4 | J204: MMTCO2E | L204: MMTCE
F205: metric tons CH4 per year per activity unit
B206: Miles of gathering pipeline | C206: --> | E206: x | F206: =Control!$H$20 -> 0 | G206: = | H206: =D206*F206 -> 0 | I206: = | J206: =H206*MethGWP*10^-6 -> 0 | K206: = | L206: =J206/CO2_C -> 0
B207: Number of gas processing plants | C207: --> | E207: x | F207: =Control!$H$21 -> 0 | G207: = | H207: =D207*F207 -> 0 | I207: = | J207: =H207*MethGWP*10^-6 -> 0 | K207: = | L207: =J207/CO2_C -> 0
B208: Number of LNG storage compressor stations | C208: --> | E208: x | F208: =Control!$H$25 -> 0 | G208: = | H208: =D208*F208 -> 0 | I208: = | J208: =H208*MethGWP*10^-6 -> 0 | K208: = | L208: =J208/CO2_C -> 0
B210: Miles of transmission pipeline | C210: --> | E210: x | F210: =Control!$H$24 -> 0 | G210: = | H210: =D210*F210 -> 0 | I210: = | J210: =H210*MethGWP*10^-6 -> 0 | K210: = | L210: =J210/CO2_C -> 0
B211: Number of gas transmission compressor stations | C211: --> | E211: x | F211: =Control!$H$22 -> 0 | G211: = | H211: =D211*F211 -> 0 | I211: = | J211: =H211*MethGWP*10^-6 -> 0 | K211: = | L211: =J211/CO2_C -> 0
B212: Number of gas storage compressor stations | C212: --> | E212: x | F212: =Control!$H$23 -> 0 | G212: = | H212: =D212*F212 -> 0 | I212: = | J212: =H212*MethGWP*10^-6 -> 0 | K212: = | L212: =J212/CO2_C -> 0
B213: Total | H213: =SUM(H206:H212) -> 0 | I213: = | J213: =H213*MethGWP*10^-6 -> 0 | K213: = | L213: =J213/CO2_C -> 0
B215: Natural Gas - Transmission | C215: =C202+1 -> 2006
D217: Activity Data | F217: Emission Factor | H217: Metric Tons CH4 | J217: MMTCO2E | L217: MMTCE
F218: metric tons CH4 per year per activity unit
B219: Miles of gathering pipeline | C219: --> | E219: x | F219: =Control!$H$20 -> 0 | G219: = | H219: =D219*F219 -> 0 | I219: = | J219: =H219*MethGWP*10^-6 -> 0 | K219: = | L219: =J219/CO2_C -> 0
B220: Number of gas processing plants | C220: --> | E220: x | F220: =Control!$H$21 -> 0 | G220: = | H220: =D220*F220 -> 0 | I220: = | J220: =H220*MethGWP*10^-6 -> 0 | K220: = | L220: =J220/CO2_C -> 0
B221: Number of LNG storage compressor stations | C221: --> | E221: x | F221: =Control!$H$25 -> 0 | G221: = | H221: =D221*F221 -> 0 | I221: = | J221: =H221*MethGWP*10^-6 -> 0 | K221: = | L221: =J221/CO2_C -> 0
B223: Miles of transmission pipeline | C223: --> | E223: x | F223: =Control!$H$24 -> 0 | G223: = | H223: =D223*F223 -> 0 | I223: = | J223: =H223*MethGWP*10^-6 -> 0 | K223: = | L223: =J223/CO2_C -> 0
B224: Number of gas transmission compressor stations | C224: --> | E224: x | F224: =Control!$H$22 -> 0 | G224: = | H224: =D224*F224 -> 0 | I224: = | J224: =H224*MethGWP*10^-6 -> 0 | K224: = | L224: =J224/CO2_C -> 0
B225: Number of gas storage compressor stations | C225: --> | E225: x | F225: =Control!$H$23 -> 0 | G225: = | H225: =D225*F225 -> 0 | I225: = | J225: =H225*MethGWP*10^-6 -> 0 | K225: = | L225: =J225/CO2_C -> 0
B226: Total | H226: =SUM(H219:H225) -> 0 | I226: = | J226: =H226*MethGWP*10^-6 -> 0 | K226: = | L226: =J226/CO2_C -> 0
B228: Natural Gas - Transmission | C228: =C215+1 -> 2007
D230: Activity Data | F230: Emission Factor | H230: Metric Tons CH4 | J230: MMTCO2E | L230: MMTCE
F231: metric tons CH4 per year per activity unit
B232: Miles of gathering pipeline | C232: --> | E232: x | F232: =Control!$H$20 -> 0 | G232: = | H232: =D232*F232 -> 0 | I232: = | J232: =H232*MethGWP*10^-6 -> 0 | K232: = | L232: =J232/CO2_C -> 0
B233: Number of gas processing plants | C233: --> | E233: x | F233: =Control!$H$21 -> 0 | G233: = | H233: =D233*F233 -> 0 | I233: = | J233: =H233*MethGWP*10^-6 -> 0 | K233: = | L233: =J233/CO2_C -> 0
B234: Number of LNG storage compressor stations | C234: --> | E234: x | F234: =Control!$H$25 -> 0 | G234: = | H234: =D234*F234 -> 0 | I234: = | J234: =H234*MethGWP*10^-6 -> 0 | K234: = | L234: =J234/CO2_C -> 0
B236: Miles of transmission pipeline | C236: --> | E236: x | F236: =Control!$H$24 -> 0 | G236: = | H236: =D236*F236 -> 0 | I236: = | J236: =H236*MethGWP*10^-6 -> 0 | K236: = | L236: =J236/CO2_C -> 0
B237: Number of gas transmission compressor stations | C237: --> | E237: x | F237: =Control!$H$22 -> 0 | G237: = | H237: =D237*F237 -> 0 | I237: = | J237: =H237*MethGWP*10^-6 -> 0 | K237: = | L237: =J237/CO2_C -> 0
B238: Number of gas storage compressor stations | C238: --> | E238: x | F238: =Control!$H$23 -> 0 | G238: = | H238: =D238*F238 -> 0 | I238: = | J238: =H238*MethGWP*10^-6 -> 0 | K238: = | L238: =J238/CO2_C -> 0
B239: Total | H239: =SUM(H232:H238) -> 0 | I239: = | J239: =H239*MethGWP*10^-6 -> 0 | K239: = | L239: =J239/CO2_C -> 0
B241: Natural Gas - Transmission | C241: =C228+1 -> 2008
D243: Activity Data | F243: Emission Factor | H243: Metric Tons CH4 | J243: MMTCO2E | L243: MMTCE
F244: metric tons CH4 per year per activity unit
B245: Miles of gathering pipeline | C245: --> | E245: x | F245: =Control!$H$20 -> 0 | G245: = | H245: =D245*F245 -> 0 | I245: = | J245: =H245*MethGWP*10^-6 -> 0 | K245: = | L245: =J245/CO2_C -> 0
B246: Number of gas processing plants | C246: --> | E246: x | F246: =Control!$H$21 -> 0 | G246: = | H246: =D246*F246 -> 0 | I246: = | J246: =H246*MethGWP*10^-6 -> 0 | K246: = | L246: =J246/CO2_C -> 0
B247: Number of LNG storage compressor stations | C247: --> | E247: x | F247: =Control!$H$25 -> 0 | G247: = | H247: =D247*F247 -> 0 | I247: = | J247: =H247*MethGWP*10^-6 -> 0 | K247: = | L247: =J247/CO2_C -> 0
B249: Miles of transmission pipeline | C249: --> | E249: x | F249: =Control!$H$24 -> 0 | G249: = | H249: =D249*F249 -> 0 | I249: = | J249: =H249*MethGWP*10^-6 -> 0 | K249: = | L249: =J249/CO2_C -> 0
B250: Number of gas transmission compressor stations | C250: --> | E250: x | F250: =Control!$H$22 -> 0 | G250: = | H250: =D250*F250 -> 0 | I250: = | J250: =H250*MethGWP*10^-6 -> 0 | K250: = | L250: =J250/CO2_C -> 0
B251: Number of gas storage compressor stations | C251: --> | E251: x | F251: =Control!$H$23 -> 0 | G251: = | H251: =D251*F251 -> 0 | I251: = | J251: =H251*MethGWP*10^-6 -> 0 | K251: = | L251: =J251/CO2_C -> 0
B252: Total | H252: =SUM(H245:H251) -> 0 | I252: = | J252: =H252*MethGWP*10^-6 -> 0 | K252: = | L252: =J252/CO2_C -> 0
B254: Natural Gas - Transmission | C254: =C241+1 -> 2009
D256: Activity Data | F256: Emission Factor | H256: Metric Tons CH4 | J256: MMTCO2E | L256: MMTCE
F257: metric tons CH4 per year per activity unit
B258: Miles of gathering pipeline | C258: --> | E258: x | F258: =Control!$H$20 -> 0 | G258: = | H258: =D258*F258 -> 0 | I258: = | J258: =H258*MethGWP*10^-6 -> 0 | K258: = | L258: =J258/CO2_C -> 0
B259: Number of gas processing plants | C259: --> | E259: x | F259: =Control!$H$21 -> 0 | G259: = | H259: =D259*F259 -> 0 | I259: = | J259: =H259*MethGWP*10^-6 -> 0 | K259: = | L259: =J259/CO2_C -> 0
B260: Number of LNG storage compressor stations | C260: --> | E260: x | F260: =Control!$H$25 -> 0 | G260: = | H260: =D260*F260 -> 0 | I260: = | J260: =H260*MethGWP*10^-6 -> 0 | K260: = | L260: =J260/CO2_C -> 0
B262: Miles of transmission pipeline | C262: --> | E262: x | F262: =Control!$H$24 -> 0 | G262: = | H262: =D262*F262 -> 0 | I262: = | J262: =H262*MethGWP*10^-6 -> 0 | K262: = | L262: =J262/CO2_C -> 0
B263: Number of gas transmission compressor stations | C263: --> | E263: x | F263: =Control!$H$22 -> 0 | G263: = | H263: =D263*F263 -> 0 | I263: = | J263: =H263*MethGWP*10^-6 -> 0 | K263: = | L263: =J263/CO2_C -> 0
... 162 more rows

Sheet Natural Gas - Distribution
B1: ="4. Emissions from Natural Gas Distribution Activities in "&ListData!D2 -> 4. Emissions from Natural Gas Distribution Activities in Select a State . . .
B6: Natural Gas - Distribution | D6: 1990
D8: Activity Data | F8: Emission Factor | H8: Metric Tons CH4 | J8: MMTCO2E | L8: MMTCE
B9: Distribution pipeline | F9: metric tons CH4 per year per activity unit
B10: Preferred Method
B11: Miles of cast iron distribution pipeline | C11: --> | E11: x | F11: =Control!$H$28 -> 0 | G11: = | H11: =D11*F11 -> 0 | I11: = | J11: =H11*MethGWP*10^-6 -> 0 | K11: = | L11: =J11/CO2_C -> 0
B12: Miles of unprotected steel distribution pipeline | C12: --> | E12: x | F12: =Control!$H$29 -> 0 | G12: = | H12: =D12*F12 -> 0 | I12: = | J12: =H12*MethGWP*10^-6 -> 0 | K12: = | L12: =J12/CO2_C -> 0
B13: Miles of protected steel distribution pipeline | C13: --> | E13: x | F13: =Control!$H$30 -> 0 | G13: = | H13: =D13*F13 -> 0 | I13: = | J13: =H13*MethGWP*10^-6 -> 0 | K13: = | L13: =J13/CO2_C -> 0
B14: Miles of plastic distribution pipeline | C14: --> | E14: x | F14: =Control!$H$31 -> 0 | G14: = | H14: =D14*F14 -> 0 | I14: = | J14: =H14*MethGWP*10^-6 -> 0 | K14: = | L14: =J14/CO2_C -> 0
B15: Alternate Method
B16: Total miles of distribution pipeline | E16: x | F16: =Control!$H$33 -> 0 | G16: = | H16: =D16*F16 -> 0 | I16: = | J16: =H16*MethGWP*10^-6 -> 0 | K16: = | L16: =J16/CO2_C -> 0
B18: Services
B19: Total number of services | C19: --> | E19: x | F19: =Control!$H$35 -> 0 | G19: = | H19: =D19*F19 -> 0 | I19: = | J19: =H19*MethGWP*10^-6 -> 0 | K19: = | L19: =J19/CO2_C -> 0
B20: Number of unprotected steel services | C20: --> | E20: x | F20: =Control!$H$36 -> 0 | G20: = | H20: =D20*F20 -> 0 | I20: = | J20: =H20*MethGWP*10^-6 -> 0 | K20: = | L20: =J20/CO2_C -> 0
B21: Number of protected steel services | C21: --> | E21: x | F21: =Control!$H$37 -> 0 | G21: = | H21: =D21*F21 -> 0 | I21: = | J21: =H21*MethGWP*10^-6 -> 0 | K21: = | L21: =J21/CO2_C -> 0
B22: Total | H22: =SUM(H11:H21) -> 0 | I22: = | J22: =H22*MethGWP*10^-6 -> 0 | K22: = | L22: =J22/CO2_C -> 0
B24: Natural Gas - Distribution | D24: =D6+1 -> 1991
D26: Activity Data | F26: Emission Factor | H26: Metric Tons CH4 | J26: MMTCO2E | L26: MMTCE
B27: Distribution pipeline | F27: metric tons CH4 per year per activity unit
B28: Preferred Method
B29: Miles of cast iron distribution pipeline | C29: --> | E29: x | F29: =Control!$H$28 -> 0 | G29: = | H29: =D29*F29 -> 0 | I29: = | J29: =H29*MethGWP*10^-6 -> 0 | K29: = | L29: =J29/CO2_C -> 0
B30: Miles of unprotected steel distribution pipeline | C30: --> | E30: x | F30: =Control!$H$29 -> 0 | G30: = | H30: =D30*F30 -> 0 | I30: = | J30: =H30*MethGWP*10^-6 -> 0 | K30: = | L30: =J30/CO2_C -> 0
B31: Miles of protected steel distribution pipeline | C31: --> | E31: x | F31: =Control!$H$30 -> 0 | G31: = | H31: =D31*F31 -> 0 | I31: = | J31: =H31*MethGWP*10^-6 -> 0 | K31: = | L31: =J31/CO2_C -> 0
B32: Miles of plastic distribution pipeline | C32: --> | E32: x | F32: =Control!$H$31 -> 0 | G32: = | H32: =D32*F32 -> 0 | I32: = | J32: =H32*MethGWP*10^-6 -> 0 | K32: = | L32: =J32/CO2_C -> 0
B33: Alternate Method
B34: Total miles of distribution pipeline | E34: x | F34: =Control!$H$33 -> 0 | G34: = | H34: =D34*F34 -> 0 | I34: = | J34: =H34*MethGWP*10^-6 -> 0 | K34: = | L34: =J34/CO2_C -> 0
B36: Services
B37: Total number of services | C37: --> | E37: x | F37: =Control!$H$35 -> 0 | G37: = | H37: =D37*F37 -> 0 | I37: = | J37: =H37*MethGWP*10^-6 -> 0 | K37: = | L37: =J37/CO2_C -> 0
B38: Number of unprotected steel services | C38: --> | E38: x | F38: =Control!$H$36 -> 0 | G38: = | H38: =D38*F38 -> 0 | I38: = | J38: =H38*MethGWP*10^-6 -> 0 | K38: = | L38: =J38/CO2_C -> 0
B39: Number of protected steel services | C39: --> | E39: x | F39: =Control!$H$37 -> 0 | G39: = | H39: =D39*F39 -> 0 | I39: = | J39: =H39*MethGWP*10^-6 -> 0 | K39: = | L39: =J39/CO2_C -> 0
B40: Total | H40: =SUM(H29:H39) -> 0 | I40: = | J40: =H40*MethGWP*10^-6 -> 0 | K40: = | L40: =J40/CO2_C -> 0
B42: Natural Gas - Distribution | D42: =D24+1 -> 1992
D44: Activity Data | F44: Emission Factor | H44: Metric Tons CH4 | J44: MMTCO2E | L44: MMTCE
B45: Distribution pipeline | F45: metric tons CH4 per year per activity unit
B46: Preferred Method
B47: Miles of cast iron distribution pipeline | C47: --> | E47: x | F47: =Control!$H$28 -> 0 | G47: = | H47: =D47*F47 -> 0 | I47: = | J47: =H47*MethGWP*10^-6 -> 0 | K47: = | L47: =J47/CO2_C -> 0
B48: Miles of unprotected steel distribution pipeline | C48: --> | E48: x | F48: =Control!$H$29 -> 0 | G48: = | H48: =D48*F48 -> 0 | I48: = | J48: =H48*MethGWP*10^-6 -> 0 | K48: = | L48: =J48/CO2_C -> 0
B49: Miles of protected steel distribution pipeline | C49: --> | E49: x | F49: =Control!$H$30 -> 0 | G49: = | H49: =D49*F49 -> 0 | I49: = | J49: =H49*MethGWP*10^-6 -> 0 | K49: = | L49: =J49/CO2_C -> 0
B50: Miles of plastic distribution pipeline | C50: --> | E50: x | F50: =Control!$H$31 -> 0 | G50: = | H50: =D50*F50 -> 0 | I50: = | J50: =H50*MethGWP*10^-6 -> 0 | K50: = | L50: =J50/CO2_C -> 0
B51: Alternate Method
B52: Total miles of distribution pipeline | E52: x | F52: =Control!$H$33 -> 0 | G52: = | H52: =D52*F52 -> 0 | I52: = | J52: =H52*MethGWP*10^-6 -> 0 | K52: = | L52: =J52/CO2_C -> 0
B54: Services
B55: Total number of services | C55: --> | E55: x | F55: =Control!$H$35 -> 0 | G55: = | H55: =D55*F55 -> 0 | I55: = | J55: =H55*MethGWP*10^-6 -> 0 | K55: = | L55: =J55/CO2_C -> 0
B56: Number of unprotected steel services | C56: --> | E56: x | F56: =Control!$H$36 -> 0 | G56: = | H56: =D56*F56 -> 0 | I56: = | J56: =H56*MethGWP*10^-6 -> 0 | K56: = | L56: =J56/CO2_C -> 0
B57: Number of protected steel services | C57: --> | E57: x | F57: =Control!$H$37 -> 0 | G57: = | H57: =D57*F57 -> 0 | I57: = | J57: =H57*MethGWP*10^-6 -> 0 | K57: = | L57: =J57/CO2_C -> 0
B58: Total | H58: =SUM(H47:H57) -> 0 | I58: = | J58: =H58*MethGWP*10^-6 -> 0 | K58: = | L58: =J58/CO2_C -> 0
B60: Natural Gas - Distribution | D60: =D42+1 -> 1993
D62: Activity Data | F62: Emission Factor | H62: Metric Tons CH4 | J62: MMTCO2E | L62: MMTCE
B63: Distribution pipeline | F63: metric tons CH4 per year per activity unit
B64: Preferred Method
B65: Miles of cast iron distribution pipeline | C65: --> | E65: x | F65: =Control!$H$28 -> 0 | G65: = | H65: =D65*F65 -> 0 | I65: = | J65: =H65*MethGWP*10^-6 -> 0 | K65: = | L65: =J65/CO2_C -> 0
B66: Miles of unprotected steel distribution pipeline | C66: --> | E66: x | F66: =Control!$H$29 -> 0 | G66: = | H66: =D66*F66 -> 0 | I66: = | J66: =H66*MethGWP*10^-6 -> 0 | K66: = | L66: =J66/CO2_C -> 0
B67: Miles of protected steel distribution pipeline | C67: --> | E67: x | F67: =Control!$H$30 -> 0 | G67: = | H67: =D67*F67 -> 0 | I67: = | J67: =H67*MethGWP*10^-6 -> 0 | K67: = | L67: =J67/CO2_C -> 0
B68: Miles of plastic distribution pipeline | C68: --> | E68: x | F68: =Control!$H$31 -> 0 | G68: = | H68: =D68*F68 -> 0 | I68: = | J68: =H68*MethGWP*10^-6 -> 0 | K68: = | L68: =J68/CO2_C -> 0
B69: Alternate Method
B70: Total miles of distribution pipeline | E70: x | F70: =Control!$H$33 -> 0 | G70: = | H70: =D70*F70 -> 0 | I70: = | J70: =H70*MethGWP*10^-6 -> 0 | K70: = | L70: =J70/CO2_C -> 0
B72: Services
B73: Total number of services | C73: --> | E73: x | F73: =Control!$H$35 -> 0 | G73: = | H73: =D73*F73 -> 0 | I73: = | J73: =H73*MethGWP*10^-6 -> 0 | K73: = | L73: =J73/CO2_C -> 0
B74: Number of unprotected steel services | C74: --> | E74: x | F74: =Control!$H$36 -> 0 | G74: = | H74: =D74*F74 -> 0 | I74: = | J74: =H74*MethGWP*10^-6 -> 0 | K74: = | L74: =J74/CO2_C -> 0
B75: Number of protected steel services | C75: --> | E75: x | F75: =Control!$H$37 -> 0 | G75: = | H75: =D75*F75 -> 0 | I75: = | J75: =H75*MethGWP*10^-6 -> 0 | K75: = | L75: =J75/CO2_C -> 0
B76: Total | H76: =SUM(H65:H75) -> 0 | I76: = | J76: =H76*MethGWP*10^-6 -> 0 | K76: = | L76: =J76/CO2_C -> 0
B78: Natural Gas - Distribution | D78: =D60+1 -> 1994
D80: Activity Data | F80: Emission Factor | H80: Metric Tons CH4 | J80: MMTCO2E | L80: MMTCE
B81: Distribution pipeline | F81: metric tons CH4 per year per activity unit
B82: Preferred Method
B83: Miles of cast iron distribution pipeline | C83: --> | E83: x | F83: =Control!$H$28 -> 0 | G83: = | H83: =D83*F83 -> 0 | I83: = | J83: =H83*MethGWP*10^-6 -> 0 | K83: = | L83: =J83/CO2_C -> 0
B84: Miles of unprotected steel distribution pipeline | C84: --> | E84: x | F84: =Control!$H$29 -> 0 | G84: = | H84: =D84*F84 -> 0 | I84: = | J84: =H84*MethGWP*10^-6 -> 0 | K84: = | L84: =J84/CO2_C -> 0
B85: Miles of protected steel distribution pipeline | C85: --> | E85: x | F85: =Control!$H$30 -> 0 | G85: = | H85: =D85*F85 -> 0 | I85: = | J85: =H85*MethGWP*10^-6 -> 0 | K85: = | L85: =J85/CO2_C -> 0
B86: Miles of plastic distribution pipeline | C86: --> | E86: x | F86: =Control!$H$31 -> 0 | G86: = | H86: =D86*F86 -> 0 | I86: = | J86: =H86*MethGWP*10^-6 -> 0 | K86: = | L86: =J86/CO2_C -> 0
B87: Alternate Method
B88: Total miles of distribution pipeline | E88: x | F88: =Control!$H$33 -> 0 | G88: = | H88: =D88*F88 -> 0 | I88: = | J88: =H88*MethGWP*10^-6 -> 0 | K88: = | L88: =J88/CO2_C -> 0
B90: Services
B91: Total number of services | C91: --> | E91: x | F91: =Control!$H$35 -> 0 | G91: = | H91: =D91*F91 -> 0 | I91: = | J91: =H91*MethGWP*10^-6 -> 0 | K91: = | L91: =J91/CO2_C -> 0
B92: Number of unprotected steel services | C92: --> | E92: x | F92: =Control!$H$36 -> 0 | G92: = | H92: =D92*F92 -> 0 | I92: = | J92: =H92*MethGWP*10^-6 -> 0 | K92: = | L92: =J92/CO2_C -> 0
B93: Number of protected steel services | C93: --> | E93: x | F93: =Control!$H$37 -> 0 | G93: = | H93: =D93*F93 -> 0 | I93: = | J93: =H93*MethGWP*10^-6 -> 0 | K93: = | L93: =J93/CO2_C -> 0
B94: Total | H94: =SUM(H83:H93) -> 0 | I94: = | J94: =H94*MethGWP*10^-6 -> 0 | K94: = | L94: =J94/CO2_C -> 0
B96: Natural Gas - Distribution | D96: =D78+1 -> 1995
D98: Activity Data | F98: Emission Factor | H98: Metric Tons CH4 | J98: MMTCO2E | L98: MMTCE
B99: Distribution pipeline | F99: metric tons CH4 per year per activity unit
B100: Preferred Method
B101: Miles of cast iron distribution pipeline | C101: --> | E101: x | F101: =Control!$H$28 -> 0 | G101: = | H101: =D101*F101 -> 0 | I101: = | J101: =H101*MethGWP*10^-6 -> 0 | K101: = | L101: =J101/CO2_C -> 0
B102: Miles of unprotected steel distribution pipeline | C102: --> | E102: x | F102: =Control!$H$29 -> 0 | G102: = | H102: =D102*F102 -> 0 | I102: = | J102: =H102*MethGWP*10^-6 -> 0 | K102: = | L102: =J102/CO2_C -> 0
B103: Miles of protected steel distribution pipeline | C103: --> | E103: x | F103: =Control!$H$30 -> 0 | G103: = | H103: =D103*F103 -> 0 | I103: = | J103: =H103*MethGWP*10^-6 -> 0 | K103: = | L103: =J103/CO2_C -> 0
B104: Miles of plastic distribution pipeline | C104: --> | E104: x | F104: =Control!$H$31 -> 0 | G104: = | H104: =D104*F104 -> 0 | I104: = | J104: =H104*MethGWP*10^-6 -> 0 | K104: = | L104: =J104/CO2_C -> 0
B105: Alternate Method
B106: Total miles of distribution pipeline | E106: x | F106: =Control!$H$33 -> 0 | G106: = | H106: =D106*F106 -> 0 | I106: = | J106: =H106*MethGWP*10^-6 -> 0 | K106: = | L106: =J106/CO2_C -> 0
B108: Services
B109: Total number of services | C109: --> | E109: x | F109: =Control!$H$35 -> 0 | G109: = | H109: =D109*F109 -> 0 | I109: = | J109: =H109*MethGWP*10^-6 -> 0 | K109: = | L109: =J109/CO2_C -> 0
B110: Number of unprotected steel services | C110: --> | E110: x | F110: =Control!$H$36 -> 0 | G110: = | H110: =D110*F110 -> 0 | I110: = | J110: =H110*MethGWP*10^-6 -> 0 | K110: = | L110: =J110/CO2_C -> 0
B111: Number of protected steel services | C111: --> | E111: x | F111: =Control!$H$37 -> 0 | G111: = | H111: =D111*F111 -> 0 | I111: = | J111: =H111*MethGWP*10^-6 -> 0 | K111: = | L111: =J111/CO2_C -> 0
B112: Total | H112: =SUM(H101:H111) -> 0 | I112: = | J112: =H112*MethGWP*10^-6 -> 0 | K112: = | L112: =J112/CO2_C -> 0
B114: Natural Gas - Distribution | D114: =D96+1 -> 1996
D116: Activity Data | F116: Emission Factor | H116: Metric Tons CH4 | J116: MMTCO2E | L116: MMTCE
B117: Distribution pipeline | F117: metric tons CH4 per year per activity unit
B118: Preferred Method
B119: Miles of cast iron distribution pipeline | C119: --> | E119: x | F119: =Control!$H$28 -> 0 | G119: = | H119: =D119*F119 -> 0 | I119: = | J119: =H119*MethGWP*10^-6 -> 0 | K119: = | L119: =J119/CO2_C -> 0
B120: Miles of unprotected steel distribution pipeline | C120: --> | E120: x | F120: =Control!$H$29 -> 0 | G120: = | H120: =D120*F120 -> 0 | I120: = | J120: =H120*MethGWP*10^-6 -> 0 | K120: = | L120: =J120/CO2_C -> 0
B121: Miles of protected steel distribution pipeline | C121: --> | E121: x | F121: =Control!$H$30 -> 0 | G121: = | H121: =D121*F121 -> 0 | I121: = | J121: =H121*MethGWP*10^-6 -> 0 | K121: = | L121: =J121/CO2_C -> 0
B122: Miles of plastic distribution pipeline | C122: --> | E122: x | F122: =Control!$H$31 -> 0 | G122: = | H122: =D122*F122 -> 0 | I122: = | J122: =H122*MethGWP*10^-6 -> 0 | K122: = | L122: =J122/CO2_C -> 0
B123: Alternate Method
B124: Total miles of distribution pipeline | E124: x | F124: =Control!$H$33 -> 0 | G124: = | H124: =D124*F124 -> 0 | I124: = | J124: =H124*MethGWP*10^-6 -> 0 | K124: = | L124: =J124/CO2_C -> 0
B126: Services
B127: Total number of services | C127: --> | E127: x | F127: =Control!$H$35 -> 0 | G127: = | H127: =D127*F127 -> 0 | I127: = | J127: =H127*MethGWP*10^-6 -> 0 | K127: = | L127: =J127/CO2_C -> 0
B128: Number of unprotected steel services | C128: --> | E128: x | F128: =Control!$H$36 -> 0 | G128: = | H128: =D128*F128 -> 0 | I128: = | J128: =H128*MethGWP*10^-6 -> 0 | K128: = | L128: =J128/CO2_C -> 0
B129: Number of protected steel services | C129: --> | E129: x | F129: =Control!$H$37 -> 0 | G129: = | H129: =D129*F129 -> 0 | I129: = | J129: =H129*MethGWP*10^-6 -> 0 | K129: = | L129: =J129/CO2_C -> 0
B130: Total | H130: =SUM(H119:H129) -> 0 | I130: = | J130: =H130*MethGWP*10^-6 -> 0 | K130: = | L130: =J130/CO2_C -> 0
B132: Natural Gas - Distribution | D132: =D114+1 -> 1997
D134: Activity Data | F134: Emission Factor | H134: Metric Tons CH4 | J134: MMTCO2E | L134: MMTCE
B135: Distribution pipeline | F135: metric tons CH4 per year per activity unit
B136: Preferred Method
B137: Miles of cast iron distribution pipeline | C137: --> | E137: x | F137: =Control!$H$28 -> 0 | G137: = | H137: =D137*F137 -> 0 | I137: = | J137: =H137*MethGWP*10^-6 -> 0 | K137: = | L137: =J137/CO2_C -> 0
B138: Miles of unprotected steel distribution pipeline | C138: --> | E138: x | F138: =Control!$H$29 -> 0 | G138: = | H138: =D138*F138 -> 0 | I138: = | J138: =H138*MethGWP*10^-6 -> 0 | K138: = | L138: =J138/CO2_C -> 0
B139: Miles of protected steel distribution pipeline | C139: --> | E139: x | F139: =Control!$H$30 -> 0 | G139: = | H139: =D139*F139 -> 0 | I139: = | J139: =H139*MethGWP*10^-6 -> 0 | K139: = | L139: =J139/CO2_C -> 0
B140: Miles of plastic distribution pipeline | C140: --> | E140: x | F140: =Control!$H$31 -> 0 | G140: = | H140: =D140*F140 -> 0 | I140: = | J140: =H140*MethGWP*10^-6 -> 0 | K140: = | L140: =J140/CO2_C -> 0
B141: Alternate Method
B142: Total miles of distribution pipeline | E142: x | F142: =Control!$H$33 -> 0 | G142: = | H142: =D142*F142 -> 0 | I142: = | J142: =H142*MethGWP*10^-6 -> 0 | K142: = | L142: =J142/CO2_C -> 0
B144: Services
B145: Total number of services | C145: --> | E145: x | F145: =Control!$H$35 -> 0 | G145: = | H145: =D145*F145 -> 0 | I145: = | J145: =H145*MethGWP*10^-6 -> 0 | K145: = | L145: =J145/CO2_C -> 0
B146: Number of unprotected steel services | C146: --> | E146: x | F146: =Control!$H$36 -> 0 | G146: = | H146: =D146*F146 -> 0 | I146: = | J146: =H146*MethGWP*10^-6 -> 0 | K146: = | L146: =J146/CO2_C -> 0
B147: Number of protected steel services | C147: --> | E147: x | F147: =Control!$H$37 -> 0 | G147: = | H147: =D147*F147 -> 0 | I147: = | J147: =H147*MethGWP*10^-6 -> 0 | K147: = | L147: =J147/CO2_C -> 0
B148: Total | H148: =SUM(H137:H147) -> 0 | I148: = | J148: =H148*MethGWP*10^-6 -> 0 | K148: = | L148: =J148/CO2_C -> 0
B150: Natural Gas - Distribution | D150: =D132+1 -> 1998
D152: Activity Data | F152: Emission Factor | H152: Metric Tons CH4 | J152: MMTCO2E | L152: MMTCE
B153: Distribution pipeline | F153: metric tons CH4 per year per activity unit
B154: Preferred Method
B155: Miles of cast iron distribution pipeline | C155: --> | E155: x | F155: =Control!$H$28 -> 0 | G155: = | H155: =D155*F155 -> 0 | I155: = | J155: =H155*MethGWP*10^-6 -> 0 | K155: = | L155: =J155/CO2_C -> 0
B156: Miles of unprotected steel distribution pipeline | C156: --> | E156: x | F156: =Control!$H$29 -> 0 | G156: = | H156: =D156*F156 -> 0 | I156: = | J156: =H156*MethGWP*10^-6 -> 0 | K156: = | L156: =J156/CO2_C -> 0
B157: Miles of protected steel distribution pipeline | C157: --> | E157: x | F157: =Control!$H$30 -> 0 | G157: = | H157: =D157*F157 -> 0 | I157: = | J157: =H157*MethGWP*10^-6 -> 0 | K157: = | L157: =J157/CO2_C -> 0
B158: Miles of plastic distribution pipeline | C158: --> | E158: x | F158: =Control!$H$31 -> 0 | G158: = | H158: =D158*F158 -> 0 | I158: = | J158: =H158*MethGWP*10^-6 -> 0 | K158: = | L158: =J158/CO2_C -> 0
B159: Alternate Method
B160: Total miles of distribution pipeline | E160: x | F160: =Control!$H$33 -> 0 | G160: = | H160: =D160*F160 -> 0 | I160: = | J160: =H160*MethGWP*10^-6 -> 0 | K160: = | L160: =J160/CO2_C -> 0
B162: Services
B163: Total number of services | C163: --> | E163: x | F163: =Control!$H$35 -> 0 | G163: = | H163: =D163*F163 -> 0 | I163: = | J163: =H163*MethGWP*10^-6 -> 0 | K163: = | L163: =J163/CO2_C -> 0
B164: Number of unprotected steel services | C164: --> | E164: x | F164: =Control!$H$36 -> 0 | G164: = | H164: =D164*F164 -> 0 | I164: = | J164: =H164*MethGWP*10^-6 -> 0 | K164: = | L164: =J164/CO2_C -> 0
B165: Number of protected steel services | C165: --> | E165: x | F165: =Control!$H$37 -> 0 | G165: = | H165: =D165*F165 -> 0 | I165: = | J165: =H165*MethGWP*10^-6 -> 0 | K165: = | L165: =J165/CO2_C -> 0
B166: Total | H166: =SUM(H155:H165) -> 0 | I166: = | J166: =H166*MethGWP*10^-6 -> 0 | K166: = | L166: =J166/CO2_C -> 0
B168: Natural Gas - Distribution | D168: =D150+1 -> 1999
D170: Activity Data | F170: Emission Factor | H170: Metric Tons CH4 | J170: MMTCO2E | L170: MMTCE
B171: Distribution pipeline | F171: metric tons CH4 per year per activity unit
B172: Preferred Method
B173: Miles of cast iron distribution pipeline | C173: --> | E173: x | F173: =Control!$H$28 -> 0 | G173: = | H173: =D173*F173 -> 0 | I173: = | J173: =H173*MethGWP*10^-6 -> 0 | K173: = | L173: =J173/CO2_C -> 0
B174: Miles of unprotected steel distribution pipeline | C174: --> | E174: x | F174: =Control!$H$29 -> 0 | G174: = | H174: =D174*F174 -> 0 | I174: = | J174: =H174*MethGWP*10^-6 -> 0 | K174: = | L174: =J174/CO2_C -> 0
B175: Miles of protected steel distribution pipeline | C175: --> | E175: x | F175: =Control!$H$30 -> 0 | G175: = | H175: =D175*F175 -> 0 | I175: = | J175: =H175*MethGWP*10^-6 -> 0 | K175: = | L175: =J175/CO2_C -> 0
B176: Miles of plastic distribution pipeline | C176: --> | E176: x | F176: =Control!$H$31 -> 0 | G176: = | H176: =D176*F176 -> 0 | I176: = | J176: =H176*MethGWP*10^-6 -> 0 | K176: = | L176: =J176/CO2_C -> 0
B177: Alternate Method
B178: Total miles of distribution pipeline | E178: x | F178: =Control!$H$33 -> 0 | G178: = | H178: =D178*F178 -> 0 | I178: = | J178: =H178*MethGWP*10^-6 -> 0 | K178: = | L178: =J178/CO2_C -> 0
B180: Services
B181: Total number of services | C181: --> | E181: x | F181: =Control!$H$35 -> 0 | G181: = | H181: =D181*F181 -> 0 | I181: = | J181: =H181*MethGWP*10^-6 -> 0 | K181: = | L181: =J181/CO2_C -> 0
B182: Number of unprotected steel services | C182: --> | E182: x | F182: =Control!$H$36 -> 0 | G182: = | H182: =D182*F182 -> 0 | I182: = | J182: =H182*MethGWP*10^-6 -> 0 | K182: = | L182: =J182/CO2_C -> 0
B183: Number of protected steel services | C183: --> | E183: x | F183: =Control!$H$37 -> 0 | G183: = | H183: =D183*F183 -> 0 | I183: = | J183: =H183*MethGWP*10^-6 -> 0 | K183: = | L183: =J183/CO2_C -> 0
B184: Total | H184: =SUM(H173:H183) -> 0 | I184: = | J184: =H184*MethGWP*10^-6 -> 0 | K184: = | L184: =J184/CO2_C -> 0
B186: Natural Gas - Distribution | D186: =D168+1 -> 2000
D188: Activity Data | F188: Emission Factor | H188: Metric Tons CH4 | J188: MMTCO2E | L188: MMTCE
B189: Distribution pipeline | F189: metric tons CH4 per year per activity unit
B190: Preferred Method
B191: Miles of cast iron distribution pipeline | C191: --> | E191: x | F191: =Control!$H$28 -> 0 | G191: = | H191: =D191*F191 -> 0 | I191: = | J191: =H191*MethGWP*10^-6 -> 0 | K191: = | L191: =J191/CO2_C -> 0
B192: Miles of unprotected steel distribution pipeline | C192: --> | E192: x | F192: =Control!$H$29 -> 0 | G192: = | H192: =D192*F192 -> 0 | I192: = | J192: =H192*MethGWP*10^-6 -> 0 | K192: = | L192: =J192/CO2_C -> 0
B193: Miles of protected steel distribution pipeline | C193: --> | E193: x | F193: =Control!$H$30 -> 0 | G193: = | H193: =D193*F193 -> 0 | I193: = | J193: =H193*MethGWP*10^-6 -> 0 | K193: = | L193: =J193/CO2_C -> 0
B194: Miles of plastic distribution pipeline | C194: --> | E194: x | F194: =Control!$H$31 -> 0 | G194: = | H194: =D194*F194 -> 0 | I194: = | J194: =H194*MethGWP*10^-6 -> 0 | K194: = | L194: =J194/CO2_C -> 0
B195: Alternate Method
B196: Total miles of distribution pipeline | E196: x | F196: =Control!$H$33 -> 0 | G196: = | H196: =D196*F196 -> 0 | I196: = | J196: =H196*MethGWP*10^-6 -> 0 | K196: = | L196: =J196/CO2_C -> 0
B198: Services
B199: Total number of services | C199: --> | E199: x | F199: =Control!$H$35 -> 0 | G199: = | H199: =D199*F199 -> 0 | I199: = | J199: =H199*MethGWP*10^-6 -> 0 | K199: = | L199: =J199/CO2_C -> 0
B200: Number of unprotected steel services | C200: --> | E200: x | F200: =Control!$H$36 -> 0 | G200: = | H200: =D200*F200 -> 0 | I200: = | J200: =H200*MethGWP*10^-6 -> 0 | K200: = | L200: =J200/CO2_C -> 0
B201: Number of protected steel services | C201: --> | E201: x | F201: =Control!$H$37 -> 0 | G201: = | H201: =D201*F201 -> 0 | I201: = | J201: =H201*MethGWP*10^-6 -> 0 | K201: = | L201: =J201/CO2_C -> 0
B202: Total | H202: =SUM(H191:H201) -> 0 | I202: = | J202: =H202*MethGWP*10^-6 -> 0 | K202: = | L202: =J202/CO2_C -> 0
B204: Natural Gas - Distribution | D204: =D186+1 -> 2001
D206: Activity Data | F206: Emission Factor | H206: Metric Tons CH4 | J206: MMTCO2E | L206: MMTCE
B207: Distribution pipeline | F207: metric tons CH4 per year per activity unit
B208: Preferred Method
B209: Miles of cast iron distribution pipeline | C209: --> | E209: x | F209: =Control!$H$28 -> 0 | G209: = | H209: =D209*F209 -> 0 | I209: = | J209: =H209*MethGWP*10^-6 -> 0 | K209: = | L209: =J209/CO2_C -> 0
B210: Miles of unprotected steel distribution pipeline | C210: --> | E210: x | F210: =Control!$H$29 -> 0 | G210: = | H210: =D210*F210 -> 0 | I210: = | J210: =H210*MethGWP*10^-6 -> 0 | K210: = | L210: =J210/CO2_C -> 0
B211: Miles of protected steel distribution pipeline | C211: --> | E211: x | F211: =Control!$H$30 -> 0 | G211: = | H211: =D211*F211 -> 0 | I211: = | J211: =H211*MethGWP*10^-6 -> 0 | K211: = | L211: =J211/CO2_C -> 0
B212: Miles of plastic distribution pipeline | C212: --> | E212: x | F212: =Control!$H$31 -> 0 | G212: = | H212: =D212*F212 -> 0 | I212: = | J212: =H212*MethGWP*10^-6 -> 0 | K212: = | L212: =J212/CO2_C -> 0
B213: Alternate Method
B214: Total miles of distribution pipeline | E214: x | F214: =Control!$H$33 -> 0 | G214: = | H214: =D214*F214 -> 0 | I214: = | J214: =H214*MethGWP*10^-6 -> 0 | K214: = | L214: =J214/CO2_C -> 0
B216: Services
B217: Total number of services | C217: --> | E217: x | F217: =Control!$H$35 -> 0 | G217: = | H217: =D217*F217 -> 0 | I217: = | J217: =H217*MethGWP*10^-6 -> 0 | K217: = | L217: =J217/CO2_C -> 0
B218: Number of unprotected steel services | C218: --> | E218: x | F218: =Control!$H$36 -> 0 | G218: = | H218: =D218*F218 -> 0 | I218: = | J218: =H218*MethGWP*10^-6 -> 0 | K218: = | L218: =J218/CO2_C -> 0
B219: Number of protected steel services | C219: --> | E219: x | F219: =Control!$H$37 -> 0 | G219: = | H219: =D219*F219 -> 0 | I219: = | J219: =H219*MethGWP*10^-6 -> 0 | K219: = | L219: =J219/CO2_C -> 0
B220: Total | H220: =SUM(H209:H219) -> 0 | I220: = | J220: =H220*MethGWP*10^-6 -> 0 | K220: = | L220: =J220/CO2_C -> 0
B222: Natural Gas - Distribution | D222: =D204+1 -> 2002
D224: Activity Data | F224: Emission Factor | H224: Metric Tons CH4 | J224: MMTCO2E | L224: MMTCE
B225: Distribution pipeline | F225: metric tons CH4 per year per activity unit
B226: Preferred Method
B227: Miles of cast iron distribution pipeline | C227: --> | E227: x | F227: =Control!$H$28 -> 0 | G227: = | H227: =D227*F227 -> 0 | I227: = | J227: =H227*MethGWP*10^-6 -> 0 | K227: = | L227: =J227/CO2_C -> 0
B228: Miles of unprotected steel distribution pipeline | C228: --> | E228: x | F228: =Control!$H$29 -> 0 | G228: = | H228: =D228*F228 -> 0 | I228: = | J228: =H228*MethGWP*10^-6 -> 0 | K228: = | L228: =J228/CO2_C -> 0
B229: Miles of protected steel distribution pipeline | C229: --> | E229: x | F229: =Control!$H$30 -> 0 | G229: = | H229: =D229*F229 -> 0 | I229: = | J229: =H229*MethGWP*10^-6 -> 0 | K229: = | L229: =J229/CO2_C -> 0
B230: Miles of plastic distribution pipeline | C230: --> | E230: x | F230: =Control!$H$31 -> 0 | G230: = | H230: =D230*F230 -> 0 | I230: = | J230: =H230*MethGWP*10^-6 -> 0 | K230: = | L230: =J230/CO2_C -> 0
B231: Alternate Method
B232: Total miles of distribution pipeline | E232: x | F232: =Control!$H$33 -> 0 | G232: = | H232: =D232*F232 -> 0 | I232: = | J232: =H232*MethGWP*10^-6 -> 0 | K232: = | L232: =J232/CO2_C -> 0
B234: Services
B235: Total number of services | C235: --> | E235: x | F235: =Control!$H$35 -> 0 | G235: = | H235: =D235*F235 -> 0 | I235: = | J235: =H235*MethGWP*10^-6 -> 0 | K235: = | L235: =J235/CO2_C -> 0
B236: Number of unprotected steel services | C236: --> | E236: x | F236: =Control!$H$36 -> 0 | G236: = | H236: =D236*F236 -> 0 | I236: = | J236: =H236*MethGWP*10^-6 -> 0 | K236: = | L236: =J236/CO2_C -> 0
B237: Number of protected steel services | C237: --> | E237: x | F237: =Control!$H$37 -> 0 | G237: = | H237: =D237*F237 -> 0 | I237: = | J237: =H237*MethGWP*10^-6 -> 0 | K237: = | L237: =J237/CO2_C -> 0
B238: Total | H238: =SUM(H227:H237) -> 0 | I238: = | J238: =H238*MethGWP*10^-6 -> 0 | K238: = | L238: =J238/CO2_C -> 0
B240: Natural Gas - Distribution | D240: =D222+1 -> 2003
D242: Activity Data | F242: Emission Factor | H242: Metric Tons CH4 | J242: MMTCO2E | L242: MMTCE
B243: Distribution pipeline | F243: metric tons CH4 per year per activity unit
B244: Preferred Method
... 341 more rows

Sheet Natural Gas - Venting_Flaring
B1: ="5. Emissions from Natural Gas Venting and Flaring Activities in "&ListData!D2 -> 5. Emissions from Natural Gas Venting and Flaring Activities in Select a State . . .
B2: =ListData!D2 -> Select a State . . .
B4: Natural Gas - Vented and Flared | D4: 1990
D6: Activity Data | F6: Emission Factor | H6: Metric Tons CO2 | J6: Percent Flared | L6: MMTCO2E | N6: MMTCE
D7: Billion BTU | F7: metric tons CO2 per year billion BTU
B8: Natural Gas Vented and Flared | E8: x | F8: =Control!$H$40 -> 0 | G8: = | H8: =D8*F8 -> 0 | I8: x | K8: = | L8: =N8*CO2_C -> 0 | M8: = | N8: =(J8*H8*10^-6)/CO2_C -> 0
B9: Total
B11: Natural Gas - Vented and Flared | D11: =D4+1 -> 1991
D13: Activity Data | F13: Emission Factor | H13: Metric Tons CO2 | J13: Percent Flared | L13: MMTCO2E | N13: MMTCE
D14: Billion BTU | F14: metric tons CO2 per year billion BTU
B15: Natural Gas Vented and Flared | E15: x | F15: =Control!$H$40 -> 0 | G15: = | H15: =D15*F15 -> 0 | I15: x | K15: = | L15: =N15*CO2_C -> 0 | M15: = | N15: =(J15*H15*10^-6)/CO2_C -> 0
B16: Total
B18: Natural Gas - Vented and Flared | D18: 1992
D20: Activity Data | F20: Emission Factor | H20: Metric Tons CO2 | J20: Percent Flared | L20: MMTCO2E | N20: MMTCE
D21: Billion BTU | F21: metric tons CO2 per year billion BTU
B22: Natural Gas Vented and Flared | E22: x | F22: =Control!$H$40 -> 0 | G22: = | H22: =D22*F22 -> 0 | I22: x | K22: = | L22: =N22*CO2_C -> 0 | M22: = | N22: =(J22*H22*10^-6)/CO2_C -> 0
B23: Total
B25: Natural Gas - Vented and Flared | D25: =D18+1 -> 1993
D27: Activity Data | F27: Emission Factor | H27: Metric Tons CO2 | J27: Percent Flared | L27: MMTCO2E | N27: MMTCE
D28: Billion BTU | F28: metric tons CO2 per year billion BTU
B29: Natural Gas Vented and Flared | E29: x | F29: =Control!$H$40 -> 0 | G29: = | H29: =D29*F29 -> 0 | I29: x | K29: = | L29: =N29*CO2_C -> 0 | M29: = | N29: =(J29*H29*10^-6)/CO2_C -> 0
B30: Total
B32: Natural Gas - Vented and Flared | D32: =D25+1 -> 1994
D34: Activity Data | F34: Emission Factor | H34: Metric Tons CO2 | J34: Percent Flared | L34: MMTCO2E | N34: MMTCE
D35: Billion BTU | F35: metric tons CO2 per year billion BTU
B36: Natural Gas Vented and Flared | E36: x | F36: =Control!$H$40 -> 0 | G36: = | H36: =D36*F36 -> 0 | I36: x | K36: = | L36: =N36*CO2_C -> 0 | M36: = | N36: =(J36*H36*10^-6)/CO2_C -> 0
B37: Total
B39: Natural Gas - Vented and Flared | D39: =D32+1 -> 1995
D41: Activity Data | F41: Emission Factor | H41: Metric Tons CO2 | J41: Percent Flared | L41: MMTCO2E | N41: MMTCE
D42: Billion BTU | F42: metric tons CO2 per year billion BTU
B43: Natural Gas Vented and Flared | E43: x | F43: =Control!$H$40 -> 0 | G43: = | H43: =D43*F43 -> 0 | I43: x | K43: = | L43: =N43*CO2_C -> 0 | M43: = | N43: =(J43*H43*10^-6)/CO2_C -> 0
B44: Total
B46: Natural Gas - Vented and Flared | D46: =D39+1 -> 1996
D48: Activity Data | F48: Emission Factor | H48: Metric Tons CO2 | J48: Percent Flared | L48: MMTCO2E | N48: MMTCE
D49: Billion BTU | F49: metric tons CO2 per year billion BTU
B50: Natural Gas Vented and Flared | E50: x | F50: =Control!$H$40 -> 0 | G50: = | H50: =D50*F50 -> 0 | I50: x | K50: = | L50: =N50*CO2_C -> 0 | M50: = | N50: =(J50*H50*10^-6)/CO2_C -> 0
B51: Total
B53: Natural Gas - Vented and Flared | D53: =D46+1 -> 1997
D55: Activity Data | F55: Emission Factor | H55: Metric Tons CO2 | J55: Percent Flared | L55: MMTCO2E | N55: MMTCE
D56: Billion BTU | F56: metric tons CO2 per year billion BTU
B57: Natural Gas Vented and Flared | E57: x | F57: =Control!$H$40 -> 0 | G57: = | H57: =D57*F57 -> 0 | I57: x | K57: = | L57: =N57*CO2_C -> 0 | M57: = | N57: =(J57*H57*10^-6)/CO2_C -> 0
B58: Total
B60: Natural Gas - Vented and Flared | D60: =D53+1 -> 1998
D62: Activity Data | F62: Emission Factor | H62: Metric Tons CO2 | J62: Percent Flared | L62: MMTCO2E | N62: MMTCE
D63: Billion BTU | F63: metric tons CO2 per year billion BTU
B64: Natural Gas Vented and Flared | E64: x | F64: =Control!$H$40 -> 0 | G64: = | H64: =D64*F64 -> 0 | I64: x | K64: = | L64: =N64*CO2_C -> 0 | M64: = | N64: =(J64*H64*10^-6)/CO2_C -> 0
B65: Total
B67: Natural Gas - Vented and Flared | D67: =D60+1 -> 1999
D69: Activity Data | F69: Emission Factor | H69: Metric Tons CO2 | J69: Percent Flared | L69: MMTCO2E | N69: MMTCE
D70: Billion BTU | F70: metric tons CO2 per year billion BTU
B71: Natural Gas Vented and Flared | E71: x | F71: =Control!$H$40 -> 0 | G71: = | H71: =D71*F71 -> 0 | I71: x | K71: = | L71: =N71*CO2_C -> 0 | M71: = | N71: =(J71*H71*10^-6)/CO2_C -> 0
B72: Total
B74: Natural Gas - Vented and Flared | D74: =D67+1 -> 2000
D76: Activity Data | F76: Emission Factor | H76: Metric Tons CO2 | J76: Percent Flared | L76: MMTCO2E | N76: MMTCE
D77: Billion BTU | F77: metric tons CO2 per year billion BTU
B78: Natural Gas Vented and Flared | E78: x | F78: =Control!$H$40 -> 0 | G78: = | H78: =D78*F78 -> 0 | I78: x | K78: = | L78: =N78*CO2_C -> 0 | M78: = | N78: =(J78*H78*10^-6)/CO2_C -> 0
B79: Total
B81: Natural Gas - Vented and Flared | D81: =D74+1 -> 2001
D83: Activity Data | F83: Emission Factor | H83: Metric Tons CO2 | J83: Percent Flared | L83: MMTCO2E | N83: MMTCE
D84: Billion BTU | F84: metric tons CO2 per year billion BTU
B85: Natural Gas Vented and Flared | E85: x | F85: =Control!$H$40 -> 0 | G85: = | H85: =D85*F85 -> 0 | I85: x | K85: = | L85: =N85*CO2_C -> 0 | M85: = | N85: =(J85*H85*10^-6)/CO2_C -> 0
B86: Total
B88: Natural Gas - Vented and Flared | D88: =D81+1 -> 2002
D90: Activity Data | F90: Emission Factor | H90: Metric Tons CO2 | J90: Percent Flared | L90: MMTCO2E | N90: MMTCE
D91: Billion BTU | F91: metric tons CO2 per year billion BTU
B92: Natural Gas Vented and Flared | E92: x | F92: =Control!$H$40 -> 0 | G92: = | H92: =D92*F92 -> 0 | I92: x | K92: = | L92: =N92*CO2_C -> 0 | M92: = | N92: =(J92*H92*10^-6)/CO2_C -> 0
B93: Total
B95: Natural Gas - Vented and Flared | D95: =D88+1 -> 2003
D97: Activity Data | F97: Emission Factor | H97: Metric Tons CO2 | J97: Percent Flared | L97: MMTCO2E | N97: MMTCE
D98: Billion BTU | F98: metric tons CO2 per year billion BTU
B99: Natural Gas Vented and Flared | E99: x | F99: =Control!$H$40 -> 0 | G99: = | H99: =D99*F99 -> 0 | I99: x | K99: = | L99: =N99*CO2_C -> 0 | M99: = | N99: =(J99*H99*10^-6)/CO2_C -> 0
B100: Total
B102: Natural Gas - Vented and Flared | D102: =D95+1 -> 2004
D104: Activity Data | F104: Emission Factor | H104: Metric Tons CO2 | J104: Percent Flared | L104: MMTCO2E | N104: MMTCE
D105: Billion BTU | F105: metric tons CO2 per year billion BTU
B106: Natural Gas Vented and Flared | E106: x | F106: =Control!$H$40 -> 0 | G106: = | H106: =D106*F106 -> 0 | I106: x | K106: = | L106: =N106*CO2_C -> 0 | M106: = | N106: =(J106*H106*10^-6)/CO2_C -> 0
B107: Total
B109: Natural Gas - Vented and Flared | D109: =D102+1 -> 2005
D111: Activity Data | F111: Emission Factor | H111: Metric Tons CO2 | J111: Percent Flared | L111: MMTCO2E | N111: MMTCE
D112: Billion BTU | F112: metric tons CO2 per year billion BTU
B113: Natural Gas Vented and Flared | E113: x | F113: =Control!$H$40 -> 0 | G113: = | H113: =D113*F113 -> 0 | I113: x | K113: = | L113: =N113*CO2_C -> 0 | M113: = | N113: =(J113*H113*10^-6)/CO2_C -> 0
B114: Total
B116: Natural Gas - Vented and Flared | D116: =D109+1 -> 2006
D118: Activity Data | F118: Emission Factor | H118: Metric Tons CO2 | J118: Percent Flared | L118: MMTCO2E | N118: MMTCE
D119: Billion BTU | F119: metric tons CO2 per year billion BTU
B120: Natural Gas Vented and Flared | E120: x | F120: =Control!$H$40 -> 0 | G120: = | H120: =D120*F120 -> 0 | I120: x | K120: = | L120: =N120*CO2_C -> 0 | M120: = | N120: =(J120*H120*10^-6)/CO2_C -> 0
B121: Total
B123: Natural Gas - Vented and Flared | D123: =D116+1 -> 2007
D125: Activity Data | F125: Emission Factor | H125: Metric Tons CO2 | J125: Percent Flared | L125: MMTCO2E | N125: MMTCE
D126: Billion BTU | F126: metric tons CO2 per year billion BTU
B127: Natural Gas Vented and Flared | E127: x | F127: =Control!$H$40 -> 0 | G127: = | H127: =D127*F127 -> 0 | I127: x | K127: = | L127: =N127*CO2_C -> 0 | M127: = | N127: =(J127*H127*10^-6)/CO2_C -> 0
B128: Total
B130: Natural Gas - Vented and Flared | D130: =D123+1 -> 2008
D132: Activity Data | F132: Emission Factor | H132: Metric Tons CO2 | J132: Percent Flared | L132: MMTCO2E | N132: MMTCE
D133: Billion BTU | F133: metric tons CO2 per year billion BTU
B134: Natural Gas Vented and Flared | E134: x | F134: =Control!$H$40 -> 0 | G134: = | H134: =D134*F134 -> 0 | I134: x | K134: = | L134: =N134*CO2_C -> 0 | M134: = | N134: =(J134*H134*10^-6)/CO2_C -> 0
B135: Total
B137: Natural Gas - Vented and Flared | D137: =D130+1 -> 2009
D139: Activity Data | F139: Emission Factor | H139: Metric Tons CO2 | J139: Percent Flared | L139: MMTCO2E | N139: MMTCE
D140: Billion BTU | F140: metric tons CO2 per year billion BTU
B141: Natural Gas Vented and Flared | E141: x | F141: =Control!$H$40 -> 0 | G141: = | H141: =D141*F141 -> 0 | I141: x | K141: = | L141: =N141*CO2_C -> 0 | M141: = | N141: =(J141*H141*10^-6)/CO2_C -> 0
B142: Total
B144: Natural Gas - Vented and Flared | D144: =D137+1 -> 2010
D146: Activity Data | F146: Emission Factor | H146: Metric Tons CO2 | J146: Percent Flared | L146: MMTCO2E | N146: MMTCE
D147: Billion BTU | F147: metric tons CO2 per year billion BTU
B148: Natural Gas Vented and Flared | E148: x | F148: =Control!$H$40 -> 0 | G148: = | H148: =D148*F148 -> 0 | I148: x | K148: = | L148: =N148*CO2_C -> 0 | M148: = | N148: =(J148*H148*10^-6)/CO2_C -> 0
B149: Total
B151: Natural Gas - Vented and Flared | D151: =D144+1 -> 2011
D153: Activity Data | F153: Emission Factor | H153: Metric Tons CO2 | J153: Percent Flared | L153: MMTCO2E | N153: MMTCE
D154: Billion BTU | F154: metric tons CO2 per year billion BTU
B155: Natural Gas Vented and Flared | E155: x | F155: =Control!$H$40 -> 0 | G155: = | H155: =D155*F155 -> 0 | I155: x | K155: = | L155: =N155*CO2_C -> 0 | M155: = | N155: =(J155*H155*10^-6)/CO2_C -> 0
B156: Total
B158: Natural Gas - Vented and Flared | D158: =D151+1 -> 2012
D160: Activity Data | F160: Emission Factor | H160: Metric Tons CO2 | J160: Percent Flared | L160: MMTCO2E | N160: MMTCE
D161: Billion BTU | F161: metric tons CO2 per year billion BTU
B162: Natural Gas Vented and Flared | E162: x | F162: =Control!$H$40 -> 0 | G162: = | H162: =D162*F162 -> 0 | I162: x | K162: = | L162: =N162*CO2_C -> 0 | M162: = | N162: =(J162*H162*10^-6)/CO2_C -> 0
B163: Total
B165: Natural Gas - Vented and Flared | D165: =D158+1 -> 2013
D167: Activity Data | F167: Emission Factor | H167: Metric Tons CO2 | J167: Percent Flared | L167: MMTCO2E | N167: MMTCE
D168: Billion BTU | F168: metric tons CO2 per year billion BTU
B169: Natural Gas Vented and Flared | E169: x | F169: =Control!$H$40 -> 0 | G169: = | H169: =D169*F169 -> 0 | I169: x | K169: = | L169: =N169*CO2_C -> 0 | M169: = | N169: =(J169*H169*10^-6)/CO2_C -> 0
B170: Total
B172: Natural Gas - Vented and Flared | D172: =D165+1 -> 2014
D174: Activity Data | F174: Emission Factor | H174: Metric Tons CO2 | J174: Percent Flared | L174: MMTCO2E | N174: MMTCE
D175: Billion BTU | F175: metric tons CO2 per year billion BTU
B176: Natural Gas Vented and Flared | E176: x | F176: =Control!$H$40 -> 0 | G176: = | H176: =D176*F176 -> 0 | I176: x | K176: = | L176: =N176*CO2_C -> 0 | M176: = | N176: =(J176*H176*10^-6)/CO2_C -> 0
B177: Total
B179: Natural Gas - Vented and Flared | D179: =D172+1 -> 2015
D181: Activity Data | F181: Emission Factor | H181: Metric Tons CO2 | J181: Percent Flared | L181: MMTCO2E | N181: MMTCE
D182: Billion BTU | F182: metric tons CO2 per year billion BTU
B183: Natural Gas Vented and Flared | E183: x | F183: =Control!$H$40 -> 0 | G183: = | H183: =D183*F183 -> 0 | I183: x | K183: = | L183: =N183*CO2_C -> 0 | M183: = | N183: =(J183*H183*10^-6)/CO2_C -> 0
B184: Total
B186: Natural Gas - Vented and Flared | D186: =D179+1 -> 2016
D188: Activity Data | F188: Emission Factor | H188: Metric Tons CO2 | J188: Percent Flared | L188: MMTCO2E | N188: MMTCE
D189: Billion BTU | F189: metric tons CO2 per year billion BTU
B190: Natural Gas Vented and Flared | E190: x | F190: =Control!$H$40 -> 0 | G190: = | H190: =D190*F190 -> 0 | I190: x | K190: = | L190: =N190*CO2_C -> 0 | M190: = | N190: =(J190*H190*10^-6)/CO2_C -> 0
B191: Total
B193: Natural Gas - Vented and Flared | D193: =D186+1 -> 2017
D195: Activity Data | F195: Emission Factor | H195: Metric Tons CO2 | J195: Percent Flared | L195: MMTCO2E | N195: MMTCE
D196: Billion BTU | F196: metric tons CO2 per year billion BTU
B197: Natural Gas Vented and Flared | E197: x | F197: =Control!$H$40 -> 0 | G197: = | H197: =D197*F197 -> 0 | I197: x | K197: = | L197: =N197*CO2_C -> 0 | M197: = | N197: =(J197*H197*10^-6)/CO2_C -> 0
B198: Total
B200: Natural Gas - Vented and Flared | D200: =D193+1 -> 2018
D202: Activity Data | F202: Emission Factor | H202: Metric Tons CO2 | J202: Percent Flared | L202: MMTCO2E | N202: MMTCE
D203: Billion BTU | F203: metric tons CO2 per year billion BTU
B204: Natural Gas Vented and Flared | E204: x | F204: =Control!$H$40 -> 0 | G204: = | H204: =D204*F204 -> 0 | I204: x | K204: = | L204: =N204*CO2_C -> 0 | M204: = | N204: =(J204*H204*10^-6)/CO2_C -> 0
B205: Total
B207: Natural Gas - Vented and Flared | D207: =D200+1 -> 2019
D209: Activity Data | F209: Emission Factor | H209: Metric Tons CO2 | J209: Percent Flared | L209: MMTCO2E | N209: MMTCE
D210: Billion BTU | F210: metric tons CO2 per year billion BTU
B211: Natural Gas Vented and Flared | E211: x | F211: =Control!$H$40 -> 0 | G211: = | H211: =D211*F211 -> 0 | I211: x | K211: = | L211: =N211*CO2_C -> 0 | M211: = | N211: =(J211*H211*10^-6)/CO2_C -> 0
B212: Total
B214: Natural Gas - Vented and Flared | D214: =D207+1 -> 2020
D216: Activity Data | F216: Emission Factor | H216: Metric Tons CO2 | J216: Percent Flared | L216: MMTCO2E | N216: MMTCE
D217: Billion BTU | F217: metric tons CO2 per year billion BTU
B218: Natural Gas Vented and Flared | E218: x | F218: =Control!$H$40 -> 0 | G218: = | H218: =D218*F218 -> 0 | I218: x | K218: = | L218: =N218*CO2_C -> 0 | M218: = | N218: =(J218*H218*10^-6)/CO2_C -> 0
B219: Total
B221: Natural Gas - Vented and Flared | D221: =D214+1 -> 2021
D223: Activity Data | F223: Emission Factor | H223: Metric Tons CO2 | J223: Percent Flared | L223: MMTCO2E | N223: MMTCE
D224: Billion BTU | F224: metric tons CO2 per year billion BTU
B225: Natural Gas Vented and Flared | E225: x | F225: =Control!$H$40 -> 0 | G225: = | H225: =D225*F225 -> 0 | I225: x | K225: = | L225: =N225*CO2_C -> 0 | M225: = | N225: =(J225*H225*10^-6)/CO2_C -> 0
B226: Total
B228: Natural Gas - Vented and Flared | D228: =D221+1 -> 2022
D230: Activity Data | F230: Emission Factor | H230: Metric Tons CO2 | J230: Percent Flared | L230: MMTCO2E | N230: MMTCE
D231: Billion BTU | F231: metric tons CO2 per year billion BTU
B232: Natural Gas Vented and Flared | E232: x | F232: =Control!$H$40 -> 0 | G232: = | H232: =D232*F232 -> 0 | I232: x | K232: = | L232: =N232*CO2_C -> 0 | M232: = | N232: =(J232*H232*10^-6)/CO2_C -> 0
B233: Total
B235: Natural Gas - Vented and Flared | D235: =D228+1 -> 2023
D237: Activity Data | F237: Emission Factor | H237: Metric Tons CO2 | J237: Percent Flared | L237: MMTCO2E | N237: MMTCE
D238: Billion BTU | F238: metric tons CO2 per year billion BTU
B239: Natural Gas Vented and Flared | E239: x | F239: =Control!$H$40 -> 0 | G239: = | H239: =D239*F239 -> 0 | I239: x | K239: = | L239: =N239*CO2_C -> 0 | M239: = | N239: =(J239*H239*10^-6)/CO2_C -> 0
B240: Total
B242: Natural Gas - Vented and Flared | D242: =D235+1 -> 2024
D244: Activity Data | F244: Emission Factor | H244: Metric Tons CO2 | J244: Percent Flared | L244: MMTCO2E | N244: MMTCE
D245: Billion BTU | F245: metric tons CO2 per year billion BTU
B246: Natural Gas Vented and Flared | E246: x | F246: =Control!$H$40 -> 0 | G246: = | H246: =D246*F246 -> 0 | I246: x | K246: = | L246: =N246*CO2_C -> 0 | M246: = | N246: =(J246*H246*10^-6)/CO2_C -> 0
B247: Total
B249: Natural Gas - Vented and Flared | D249: =D242+1 -> 2025
D251: Activity Data | F251: Emission Factor | H251: Metric Tons CO2 | J251: Percent Flared | L251: MMTCO2E | N251: MMTCE
D252: Billion BTU | F252: metric tons CO2 per year billion BTU
B253: Natural Gas Vented and Flared | E253: x | F253: =Control!$H$40 -> 0 | G253: = | H253: =D253*F253 -> 0 | I253: x | K253: = | L253: =N253*CO2_C -> 0 | M253: = | N253: =(J253*H253*10^-6)/CO2_C -> 0
B254: Total

Sheet Petroleum Systems
B1: ="6. Emissions from Petroleum Production, Refining, and Transportation in "&ListData!D2 -> 6. Emissions from Petroleum Production, Refining, and Transportation in Select a State . . .
B2: =VLOOKUP(StateID,ListData!$B$3:$D$53,3,FALSE) -> XX
B4: Petroleum Systems | D4: 1990
D6: Activity Data | F6: Emission Factor | H6: Metric Tons CH4 | J6: MMTCO2E | L6: MMTCE
D7: '000 barrels | F7: kg CH4 per year per 1000 bbl
B8: Oil Production | E8: x | F8: =IF(ISNUMBER(OilProdFactor),OilProdFactor,VLOOKUP(D4,OilEFs,8,FALSE)) -> 605.7829527 | G8: = | H8: =D8*F8/Control!$D$75 -> 0 | I8: = | J8: =H8*MethGWP*10^-6 -> 0 | K8: = | L8: =J8/CO2_C -> 0
B9: Oil Refining | E9: x | F9: =IF(ISNUMBER(OilRefFactor),OilRefFactor,VLOOKUP(D4,OilEFs,9,FALSE)) -> 5.259537705 | G9: = | H9: =D9*F9/Control!$D$75 -> 0 | I9: = | J9: =H9*MethGWP*10^-6 -> 0 | K9: = | L9: =J9/CO2_C -> 0
B10: Oil Transportation | E10: x | F10: =IF(ISNUMBER(OilTransFactor),OilTransFactor,VLOOKUP(D4,OilEFs,10,FALSE)) -> 1.338383685 | G10: = | H10: =D10*F10/Control!$D$75 -> 0 | I10: = | J10: =H10*MethGWP*10^-6 -> 0 | K10: = | L10: =J10/CO2_C -> 0
B11: Total | H11: =SUM(H8:H10) -> 0 | J11: =H11*MethGWP*10^-6 -> 0 | K11: = | L11: =J11/CO2_C -> 0
B13: Petroleum Systems | D13: =D4+1 -> 1991
D15: Activity Data | F15: Emission Factor | H15: Metric Tons CH4 | J15: MMTCO2E | L15: MMTCE
D16: '000 barrels | F16: kg CH4 per year per 1000 bbl
B17: Oil Production | E17: x | F17: =IF(ISNUMBER(OilProdFactor),OilProdFactor,VLOOKUP(D13,OilEFs,8,FALSE)) -> 602.042754 | G17: = | H17: =D17*F17/Control!$D$75 -> 0 | I17: = | J17: =H17*MethGWP*10^-6 -> 0 | K17: = | L17: =J17/CO2_C -> 0
B18: Oil Refining | E18: x | F18: =IF(ISNUMBER(OilRefFactor),OilRefFactor,VLOOKUP(D13,OilEFs,9,FALSE)) -> 5.259537705 | G18: = | H18: =D18*F18/Control!$D$75 -> 0 | I18: = | J18: =H18*MethGWP*10^-6 -> 0 | K18: = | L18: =J18/CO2_C -> 0
B19: Oil Transportation | E19: x | F19: =IF(ISNUMBER(OilTransFactor),OilTransFactor,VLOOKUP(D13,OilEFs,10,FALSE)) -> 1.340687655 | G19: = | H19: =D19*F19/Control!$D$75 -> 0 | I19: = | J19: =H19*MethGWP*10^-6 -> 0 | K19: = | L19: =J19/CO2_C -> 0
B20: Total | H20: =SUM(H17:H19) -> 0 | J20: =H20*MethGWP*10^-6 -> 0 | K20: = | L20: =J20/CO2_C -> 0
B22: Petroleum Systems | D22: =D13+1 -> 1992
D24: Activity Data | F24: Emission Factor | H24: Metric Tons CH4 | J24: MMTCO2E | L24: MMTCE
D25: '000 barrels | F25: kg CH4 per year per 1000 bbl
B26: Oil Production | E26: x | F26: =IF(ISNUMBER(OilProdFactor),OilProdFactor,VLOOKUP(D22,OilEFs,8,FALSE)) -> 608.6711351 | G26: = | H26: =D26*F26/Control!$D$75 -> 0 | I26: = | J26: =H26*MethGWP*10^-6 -> 0 | K26: = | L26: =J26/CO2_C -> 0
B27: Oil Refining | E27: x | F27: =IF(ISNUMBER(OilRefFactor),OilRefFactor,VLOOKUP(D22,OilEFs,9,FALSE)) -> 5.259537705 | G27: = | H27: =D27*F27/Control!$D$75 -> 0 | I27: = | J27: =H27*MethGWP*10^-6 -> 0 | K27: = | L27: =J27/CO2_C -> 0
B28: Oil Transportation | E28: x | F28: =IF(ISNUMBER(OilTransFactor),OilTransFactor,VLOOKUP(D22,OilEFs,10,FALSE)) -> 1.286018049 | G28: = | H28: =D28*F28/Control!$D$75 -> 0 | I28: = | J28: =H28*MethGWP*10^-6 -> 0 | K28: = | L28: =J28/CO2_C -> 0
B29: Total | H29: =SUM(H26:H28) -> 0 | J29: =H29*MethGWP*10^-6 -> 0 | K29: = | L29: =J29/CO2_C -> 0
B31: Petroleum Systems | D31: =D22+1 -> 1993
D33: Activity Data | F33: Emission Factor | H33: Metric Tons CH4 | J33: MMTCO2E | L33: MMTCE
D34: '000 barrels | F34: kg CH4 per year per 1000 bbl
B35: Oil Production | E35: x | F35: =IF(ISNUMBER(OilProdFactor),OilProdFactor,VLOOKUP(D31,OilEFs,8,FALSE)) -> 638.5356253 | G35: = | H35: =D35*F35/Control!$D$75 -> 0 | I35: = | J35: =H35*MethGWP*10^-6 -> 0 | K35: = | L35: =J35/CO2_C -> 0
B36: Oil Refining | E36: x | F36: =IF(ISNUMBER(OilRefFactor),OilRefFactor,VLOOKUP(D31,OilEFs,9,FALSE)) -> 5.259537705 | G36: = | H36: =D36*F36/Control!$D$75 -> 0 | I36: = | J36: =H36*MethGWP*10^-6 -> 0 | K36: = | L36: =J36/CO2_C -> 0
B37: Oil Transportation | E37: x | F37: =IF(ISNUMBER(OilTransFactor),OilTransFactor,VLOOKUP(D31,OilEFs,10,FALSE)) -> 1.2452534 | G37: = | H37: =D37*F37/Control!$D$75 -> 0 | I37: = | J37: =H37*MethGWP*10^-6 -> 0 | K37: = | L37: =J37/CO2_C -> 0
B38: Total | H38: =SUM(H35:H37) -> 0 | J38: =H38*MethGWP*10^-6 -> 0 | K38: = | L38: =J38/CO2_C -> 0
B40: Petroleum Systems | D40: =D31+1 -> 1994
D42: Activity Data | F42: Emission Factor | H42: Metric Tons CH4 | J42: MMTCO2E | L42: MMTCE
D43: '000 barrels | F43: kg CH4 per year per 1000 bbl
B44: Oil Production | E44: x | F44: =IF(ISNUMBER(OilProdFactor),OilProdFactor,VLOOKUP(D40,OilEFs,8,FALSE)) -> 652.5985106 | G44: = | H44: =D44*F44/Control!$D$75 -> 0 | I44: = | J44: =H44*MethGWP*10^-6 -> 0 | K44: = | L44: =J44/CO2_C -> 0
B45: Oil Refining | E45: x | F45: =IF(ISNUMBER(OilRefFactor),OilRefFactor,VLOOKUP(D40,OilEFs,9,FALSE)) -> 5.259537705 | G45: = | H45: =D45*F45/Control!$D$75 -> 0 | I45: = | J45: =H45*MethGWP*10^-6 -> 0 | K45: = | L45: =J45/CO2_C -> 0
B46: Oil Transportation | E46: x | F46: =IF(ISNUMBER(OilTransFactor),OilTransFactor,VLOOKUP(D40,OilEFs,10,FALSE)) -> 1.200186246 | G46: = | H46: =D46*F46/Control!$D$75 -> 0 | I46: = | J46: =H46*MethGWP*10^-6 -> 0 | K46: = | L46: =J46/CO2_C -> 0
B47: Total | H47: =SUM(H44:H46) -> 0 | J47: =H47*MethGWP*10^-6 -> 0 | K47: = | L47: =J47/CO2_C -> 0
B49: Petroleum Systems | D49: =D40+1 -> 1995
D51: Activity Data | F51: Emission Factor | H51: Metric Tons CH4 | J51: MMTCO2E | L51: MMTCE
D52: '000 barrels | F52: kg CH4 per year per 1000 bbl
B53: Oil Production | E53: x | F53: =IF(ISNUMBER(OilProdFactor),OilProdFactor,VLOOKUP(D49,OilEFs,8,FALSE)) -> 668.0481097 | G53: = | H53: =D53*F53/Control!$D$75 -> 0 | I53: = | J53: =H53*MethGWP*10^-6 -> 0 | K53: = | L53: =J53/CO2_C -> 0
B54: Oil Refining | E54: x | F54: =IF(ISNUMBER(OilRefFactor),OilRefFactor,VLOOKUP(D49,OilEFs,9,FALSE)) -> 5.259537705 | G54: = | H54: =D54*F54/Control!$D$75 -> 0 | I54: = | J54: =H54*MethGWP*10^-6 -> 0 | K54: = | L54: =J54/CO2_C -> 0
B55: Oil Transportation | E55: x | F55: =IF(ISNUMBER(OilTransFactor),OilTransFactor,VLOOKUP(D49,OilEFs,10,FALSE)) -> 1.170542567 | G55: = | H55: =D55*F55/Control!$D$75 -> 0 | I55: = | J55: =H55*MethGWP*10^-6 -> 0 | K55: = | L55: =J55/CO2_C -> 0
B56: Total | H56: =SUM(H53:H55) -> 0 | J56: =H56*MethGWP*10^-6 -> 0 | K56: = | L56: =J56/CO2_C -> 0
B58: Petroleum Systems | D58: =D49+1 -> 1996
D60: Activity Data | F60: Emission Factor | H60: Metric Tons CH4 | J60: MMTCO2E | L60: MMTCE
D61: '000 barrels | F61: kg CH4 per year per 1000 bbl
B62: Oil Production | E62: x | F62: =IF(ISNUMBER(OilProdFactor),OilProdFactor,VLOOKUP(D58,OilEFs,8,FALSE)) -> 697.5398336 | G62: = | H62: =D62*F62/Control!$D$75 -> 0 | I62: = | J62: =H62*MethGWP*10^-6 -> 0 | K62: = | L62: =J62/CO2_C -> 0
B63: Oil Refining | E63: x | F63: =IF(ISNUMBER(OilRefFactor),OilRefFactor,VLOOKUP(D58,OilEFs,9,FALSE)) -> 5.259537705 | G63: = | H63: =D63*F63/Control!$D$75 -> 0 | I63: = | J63: =H63*MethGWP*10^-6 -> 0 | K63: = | L63: =J63/CO2_C -> 0
B64: Oil Transportation | E64: x | F64: =IF(ISNUMBER(OilTransFactor),OilTransFactor,VLOOKUP(D58,OilEFs,10,FALSE)) -> 1.143342112 | G64: = | H64: =D64*F64/Control!$D$75 -> 0 | I64: = | J64: =H64*MethGWP*10^-6 -> 0 | K64: = | L64: =J64/CO2_C -> 0
B65: Total | H65: =SUM(H62:H64) -> 0 | J65: =H65*MethGWP*10^-6 -> 0 | K65: = | L65: =J65/CO2_C -> 0
B67: Petroleum Systems | D67: =D58+1 -> 1997
D69: Activity Data | F69: Emission Factor | H69: Metric Tons CH4 | J69: MMTCO2E | L69: MMTCE
D70: '000 barrels | F70: kg CH4 per year per 1000 bbl
B71: Oil Production | E71: x | F71: =IF(ISNUMBER(OilProdFactor),OilProdFactor,VLOOKUP(D67,OilEFs,8,FALSE)) -> 703.4508083 | G71: = | H71: =D71*F71/Control!$D$75 -> 0 | I71: = | J71: =H71*MethGWP*10^-6 -> 0 | K71: = | L71: =J71/CO2_C -> 0
B72: Oil Refining | E72: x | F72: =IF(ISNUMBER(OilRefFactor),OilRefFactor,VLOOKUP(D67,OilEFs,9,FALSE)) -> 5.259537705 | G72: = | H72: =D72*F72/Control!$D$75 -> 0 | I72: = | J72: =H72*MethGWP*10^-6 -> 0 | K72: = | L72: =J72/CO2_C -> 0
B73: Oil Transportation | E73: x | F73: =IF(ISNUMBER(OilTransFactor),OilTransFactor,VLOOKUP(D67,OilEFs,10,FALSE)) -> 1.104093857 | G73: = | H73: =D73*F73/Control!$D$75 -> 0 | I73: = | J73: =H73*MethGWP*10^-6 -> 0 | K73: = | L73: =J73/CO2_C -> 0
B74: Total | H74: =SUM(H71:H73) -> 0 | J74: =H74*MethGWP*10^-6 -> 0 | K74: = | L74: =J74/CO2_C -> 0
B76: Petroleum Systems | D76: =D67+1 -> 1998
D78: Activity Data | F78: Emission Factor | H78: Metric Tons CH4 | J78: MMTCO2E | L78: MMTCE
D79: '000 barrels | F79: kg CH4 per year per 1000 bbl
B80: Oil Production | E80: x | F80: =IF(ISNUMBER(OilProdFactor),OilProdFactor,VLOOKUP(D76,OilEFs,8,FALSE)) -> 709.4465816 | G80: = | H80: =D80*F80/Control!$D$75 -> 0 | I80: = | J80: =H80*MethGWP*10^-6 -> 0 | K80: = | L80: =J80/CO2_C -> 0
B81: Oil Refining | E81: x | F81: =IF(ISNUMBER(OilRefFactor),OilRefFactor,VLOOKUP(D76,OilEFs,9,FALSE)) -> 5.259537705 | G81: = | H81: =D81*F81/Control!$D$75 -> 0 | I81: = | J81: =H81*MethGWP*10^-6 -> 0 | K81: = | L81: =J81/CO2_C -> 0
B82: Oil Transportation | E82: x | F82: =IF(ISNUMBER(OilTransFactor),OilTransFactor,VLOOKUP(D76,OilEFs,10,FALSE)) -> 1.094078539 | G82: = | H82: =D82*F82/Control!$D$75 -> 0 | I82: = | J82: =H82*MethGWP*10^-6 -> 0 | K82: = | L82: =J82/CO2_C -> 0
B83: Total | H83: =SUM(H80:H82) -> 0 | J83: =H83*MethGWP*10^-6 -> 0 | K83: = | L83: =J83/CO2_C -> 0
B85: Petroleum Systems | D85: =D76+1 -> 1999
D87: Activity Data | F87: Emission Factor | H87: Metric Tons CH4 | J87: MMTCO2E | L87: MMTCE
D88: '000 barrels | F88: kg CH4 per year per 1000 bbl
B89: Oil Production | E89: x | F89: =IF(ISNUMBER(OilProdFactor),OilProdFactor,VLOOKUP(D85,OilEFs,8,FALSE)) -> 734.8741018 | G89: = | H89: =D89*F89/Control!$D$75 -> 0 | I89: = | J89: =H89*MethGWP*10^-6 -> 0 | K89: = | L89: =J89/CO2_C -> 0
B90: Oil Refining | E90: x | F90: =IF(ISNUMBER(OilRefFactor),OilRefFactor,VLOOKUP(D85,OilEFs,9,FALSE)) -> 5.259537705 | G90: = | H90: =D90*F90/Control!$D$75 -> 0 | I90: = | J90: =H90*MethGWP*10^-6 -> 0 | K90: = | L90: =J90/CO2_C -> 0
B91: Oil Transportation | E91: x | F91: =IF(ISNUMBER(OilTransFactor),OilTransFactor,VLOOKUP(D85,OilEFs,10,FALSE)) -> 1.024580784 | G91: = | H91: =D91*F91/Control!$D$75 -> 0 | I91: = | J91: =H91*MethGWP*10^-6 -> 0 | K91: = | L91: =J91/CO2_C -> 0
B92: Total | H92: =SUM(H89:H91) -> 0 | J92: =H92*MethGWP*10^-6 -> 0 | K92: = | L92: =J92/CO2_C -> 0
B94: Petroleum Systems | D94: =D85+1 -> 2000
D96: Activity Data | F96: Emission Factor | H96: Metric Tons CH4 | J96: MMTCO2E | L96: MMTCE
D97: '000 barrels | F97: kg CH4 per year per 1000 bbl
B98: Oil Production | E98: x | F98: =IF(ISNUMBER(OilProdFactor),OilProdFactor,VLOOKUP(D94,OilEFs,8,FALSE)) -> 744.2259116 | G98: = | H98: =D98*F98/Control!$D$75 -> 0 | I98: = | J98: =H98*MethGWP*10^-6 -> 0 | K98: = | L98: =J98/CO2_C -> 0
B99: Oil Refining | E99: x | F99: =IF(ISNUMBER(OilRefFactor),OilRefFactor,VLOOKUP(D94,OilEFs,9,FALSE)) -> 5.259537705 | G99: = | H99: =D99*F99/Control!$D$75 -> 0 | I99: = | J99: =H99*MethGWP*10^-6 -> 0 | K99: = | L99: =J99/CO2_C -> 0
B100: Oil Transportation | E100: x | F100: =IF(ISNUMBER(OilTransFactor),OilTransFactor,VLOOKUP(D94,OilEFs,10,FALSE)) -> 0.9421255827 | G100: = | H100: =D100*F100/Control!$D$75 -> 0 | I100: = | J100: =H100*MethGWP*10^-6 -> 0 | K100: = | L100: =J100/CO2_C -> 0
B101: Total | H101: =SUM(H98:H100) -> 0 | J101: =H101*MethGWP*10^-6 -> 0 | K101: = | L101: =J101/CO2_C -> 0
B103: Petroleum Systems | D103: =D94+1 -> 2001
D105: Activity Data | F105: Emission Factor | H105: Metric Tons CH4 | J105: MMTCO2E | L105: MMTCE
D106: '000 barrels | F106: kg CH4 per year per 1000 bbl
B107: Oil Production | E107: x | F107: =IF(ISNUMBER(OilProdFactor),OilProdFactor,VLOOKUP(D103,OilEFs,8,FALSE)) -> 748.1744928 | G107: = | H107: =D107*F107/Control!$D$75 -> 0 | I107: = | J107: =H107*MethGWP*10^-6 -> 0 | K107: = | L107: =J107/CO2_C -> 0
B108: Oil Refining | E108: x | F108: =IF(ISNUMBER(OilRefFactor),OilRefFactor,VLOOKUP(D103,OilEFs,9,FALSE)) -> 5.259537705 | G108: = | H108: =D108*F108/Control!$D$75 -> 0 | I108: = | J108: =H108*MethGWP*10^-6 -> 0 | K108: = | L108: =J108/CO2_C -> 0
B109: Oil Transportation | E109: x | F109: =IF(ISNUMBER(OilTransFactor),OilTransFactor,VLOOKUP(D103,OilEFs,10,FALSE)) -> 0.934334851 | G109: = | H109: =D109*F109/Control!$D$75 -> 0 | I109: = | J109: =H109*MethGWP*10^-6 -> 0 | K109: = | L109: =J109/CO2_C -> 0
B110: Total | H110: =SUM(H107:H109) -> 0 | J110: =H110*MethGWP*10^-6 -> 0 | K110: = | L110: =J110/CO2_C -> 0
B112: Petroleum Systems | D112: =D103+1 -> 2002
D114: Activity Data | F114: Emission Factor | H114: Metric Tons CH4 | J114: MMTCO2E | L114: MMTCE
D115: '000 barrels | F115: kg CH4 per year per 1000 bbl
B116: Oil Production | E116: x | F116: =IF(ISNUMBER(OilProdFactor),OilProdFactor,VLOOKUP(D112,OilEFs,8,FALSE)) -> 752.4141468 | G116: = | H116: =D116*F116/Control!$D$75 -> 0 | I116: = | J116: =H116*MethGWP*10^-6 -> 0 | K116: = | L116: =J116/CO2_C -> 0
B117: Oil Refining | E117: x | F117: =IF(ISNUMBER(OilRefFactor),OilRefFactor,VLOOKUP(D112,OilEFs,9,FALSE)) -> 5.259537705 | G117: = | H117: =D117*F117/Control!$D$75 -> 0 | I117: = | J117: =H117*MethGWP*10^-6 -> 0 | K117: = | L117: =J117/CO2_C -> 0
B118: Oil Transportation | E118: x | F118: =IF(ISNUMBER(OilTransFactor),OilTransFactor,VLOOKUP(D112,OilEFs,10,FALSE)) -> 0.9493876156 | G118: = | H118: =D118*F118/Control!$D$75 -> 0 | I118: = | J118: =H118*MethGWP*10^-6 -> 0 | K118: = | L118: =J118/CO2_C -> 0
B119: Total | H119: =SUM(H116:H118) -> 0 | J119: =H119*MethGWP*10^-6 -> 0 | K119: = | L119: =J119/CO2_C -> 0
B121: Petroleum Systems | D121: =D112+1 -> 2003
D123: Activity Data | F123: Emission Factor | H123: Metric Tons CH4 | J123: MMTCO2E | L123: MMTCE
D124: '000 barrels | F124: kg CH4 per year per 1000 bbl
B125: Oil Production | E125: x | F125: =IF(ISNUMBER(OilProdFactor),OilProdFactor,VLOOKUP(D121,OilEFs,8,FALSE)) -> 770.923703 | G125: = | H125: =D125*F125/Control!$D$75 -> 0 | I125: = | J125: =H125*MethGWP*10^-6 -> 0 | K125: = | L125: =J125/CO2_C -> 0
B126: Oil Refining | E126: x | F126: =IF(ISNUMBER(OilRefFactor),OilRefFactor,VLOOKUP(D121,OilEFs,9,FALSE)) -> 5.259537705 | G126: = | H126: =D126*F126/Control!$D$75 -> 0 | I126: = | J126: =H126*MethGWP*10^-6 -> 0 | K126: = | L126: =J126/CO2_C -> 0
B127: Oil Transportation | E127: x | F127: =IF(ISNUMBER(OilTransFactor),OilTransFactor,VLOOKUP(D121,OilEFs,10,FALSE)) -> 0.9434155699 | G127: = | H127: =D127*F127/Control!$D$75 -> 0 | I127: = | J127: =H127*MethGWP*10^-6 -> 0 | K127: = | L127: =J127/CO2_C -> 0
B128: Total | H128: =SUM(H125:H127) -> 0 | J128: =H128*MethGWP*10^-6 -> 0 | K128: = | L128: =J128/CO2_C -> 0
B130: Petroleum Systems | D130: =D121+1 -> 2004
D132: Activity Data | F132: Emission Factor | H132: Metric Tons CH4 | J132: MMTCO2E | L132: MMTCE
D133: '000 barrels | F133: kg CH4 per year per 1000 bbl
B134: Oil Production | E134: x | F134: =IF(ISNUMBER(OilProdFactor),OilProdFactor,VLOOKUP(D130,OilEFs,8,FALSE)) -> 799.2999426 | G134: = | H134: =D134*F134/Control!$D$75 -> 0 | I134: = | J134: =H134*MethGWP*10^-6 -> 0 | K134: = | L134: =J134/CO2_C -> 0
B135: Oil Refining | E135: x | F135: =IF(ISNUMBER(OilRefFactor),OilRefFactor,VLOOKUP(D130,OilEFs,9,FALSE)) -> 5.259537705 | G135: = | H135: =D135*F135/Control!$D$75 -> 0 | I135: = | J135: =H135*MethGWP*10^-6 -> 0 | K135: = | L135: =J135/CO2_C -> 0
B136: Oil Transportation | E136: x | F136: =IF(ISNUMBER(OilTransFactor),OilTransFactor,VLOOKUP(D130,OilEFs,10,FALSE)) -> 0.9202812451 | G136: = | H136: =D136*F136/Control!$D$75 -> 0 | I136: = | J136: =H136*MethGWP*10^-6 -> 0 | K136: = | L136: =J136/CO2_C -> 0
B137: Total | H137: =SUM(H134:H136) -> 0 | J137: =H137*MethGWP*10^-6 -> 0 | K137: = | L137: =J137/CO2_C -> 0
B139: Petroleum Systems | D139: =D130+1 -> 2005
D141: Activity Data | F141: Emission Factor | H141: Metric Tons CH4 | J141: MMTCO2E | L141: MMTCE
D142: '000 barrels | F142: kg CH4 per year per 1000 bbl
B143: Oil Production | E143: x | F143: =IF(ISNUMBER(OilProdFactor),OilProdFactor,VLOOKUP(D139,OilEFs,8,FALSE)) -> 792.5221401 | G143: = | H143: =D143*F143/Control!$D$75 -> 0 | I143: = | J143: =H143*MethGWP*10^-6 -> 0 | K143: = | L143: =J143/CO2_C -> 0
B144: Oil Refining | E144: x | F144: =IF(ISNUMBER(OilRefFactor),OilRefFactor,VLOOKUP(D139,OilEFs,9,FALSE)) -> 5.259537705 | G144: = | H144: =D144*F144/Control!$D$75 -> 0 | I144: = | J144: =H144*MethGWP*10^-6 -> 0 | K144: = | L144: =J144/CO2_C -> 0
B145: Oil Transportation | E145: x | F145: =IF(ISNUMBER(OilTransFactor),OilTransFactor,VLOOKUP(D139,OilEFs,10,FALSE)) -> 0.9221199429 | G145: = | H145: =D145*F145/Control!$D$75 -> 0 | I145: = | J145: =H145*MethGWP*10^-6 -> 0 | K145: = | L145: =J145/CO2_C -> 0
B146: Total | H146: =SUM(H143:H145) -> 0 | J146: =H146*MethGWP*10^-6 -> 0 | K146: = | L146: =J146/CO2_C -> 0
B148: Petroleum Systems | D148: =D139+1 -> 2006
D150: Activity Data | F150: Emission Factor | H150: Metric Tons CH4 | J150: MMTCO2E | L150: MMTCE
D151: '000 barrels | F151: kg CH4 per year per 1000 bbl
B152: Oil Production | E152: x | F152: =IF(ISNUMBER(OilProdFactor),OilProdFactor,VLOOKUP(D148,OilEFs,8,FALSE)) -> 857.2383324 | G152: = | H152: =D152*F152/Control!$D$75 -> 0 | I152: = | J152: =H152*MethGWP*10^-6 -> 0 | K152: = | L152: =J152/CO2_C -> 0
B153: Oil Refining | E153: x | F153: =IF(ISNUMBER(OilRefFactor),OilRefFactor,VLOOKUP(D148,OilEFs,9,FALSE)) -> 5.259537705 | G153: = | H153: =D153*F153/Control!$D$75 -> 0 | I153: = | J153: =H153*MethGWP*10^-6 -> 0 | K153: = | L153: =J153/CO2_C -> 0
B154: Oil Transportation | E154: x | F154: =IF(ISNUMBER(OilTransFactor),OilTransFactor,VLOOKUP(D148,OilEFs,10,FALSE)) -> 0.9047783002 | G154: = | H154: =D154*F154/Control!$D$75 -> 0 | I154: = | J154: =H154*MethGWP*10^-6 -> 0 | K154: = | L154: =J154/CO2_C -> 0
B155: Total | H155: =SUM(H152:H154) -> 0 | J155: =H155*MethGWP*10^-6 -> 0 | K155: = | L155: =J155/CO2_C -> 0
B157: Petroleum Systems | D157: =D148+1 -> 2007
D159: Activity Data | F159: Emission Factor | H159: Metric Tons CH4 | J159: MMTCO2E | L159: MMTCE
D160: '000 barrels | F160: kg CH4 per year per 1000 bbl
B161: Oil Production | E161: x | F161: =IF(ISNUMBER(OilProdFactor),OilProdFactor,VLOOKUP(D157,OilEFs,8,FALSE)) -> 849.6323928 | G161: = | H161: =D161*F161/Control!$D$75 -> 0 | I161: = | J161: =H161*MethGWP*10^-6 -> 0 | K161: = | L161: =J161/CO2_C -> 0
B162: Oil Refining | E162: x | F162: =IF(ISNUMBER(OilRefFactor),OilRefFactor,VLOOKUP(D157,OilEFs,9,FALSE)) -> 5.259537705 | G162: = | H162: =D162*F162/Control!$D$75 -> 0 | I162: = | J162: =H162*MethGWP*10^-6 -> 0 | K162: = | L162: =J162/CO2_C -> 0
B163: Oil Transportation | E163: x | F163: =IF(ISNUMBER(OilTransFactor),OilTransFactor,VLOOKUP(D157,OilEFs,10,FALSE)) -> 0.923929513 | G163: = | H163: =D163*F163/Control!$D$75 -> 0 | I163: = | J163: =H163*MethGWP*10^-6 -> 0 | K163: = | L163: =J163/CO2_C -> 0
B164: Total | H164: =SUM(H161:H163) -> 0 | J164: =H164*MethGWP*10^-6 -> 0 | K164: = | L164: =J164/CO2_C -> 0
B166: Petroleum Systems | D166: =D157+1 -> 2008
D168: Activity Data | F168: Emission Factor | H168: Metric Tons CH4 | J168: MMTCO2E | L168: MMTCE
D169: '000 barrels | F169: kg CH4 per year per 1000 bbl
B170: Oil Production | E170: x | F170: =IF(ISNUMBER(OilProdFactor),OilProdFactor,VLOOKUP(D166,OilEFs,8,FALSE)) -> 888.6132929 | G170: = | H170: =D170*F170/Control!$D$75 -> 0 | I170: = | J170: =H170*MethGWP*10^-6 -> 0 | K170: = | L170: =J170/CO2_C -> 0
B171: Oil Refining | E171: x | F171: =IF(ISNUMBER(OilRefFactor),OilRefFactor,VLOOKUP(D166,OilEFs,9,FALSE)) -> 5.259537705 | G171: = | H171: =D171*F171/Control!$D$75 -> 0 | I171: = | J171: =H171*MethGWP*10^-6 -> 0 | K171: = | L171: =J171/CO2_C -> 0
B172: Oil Transportation | E172: x | F172: =IF(ISNUMBER(OilTransFactor),OilTransFactor,VLOOKUP(D166,OilEFs,10,FALSE)) -> 0.9418789197 | G172: = | H172: =D172*F172/Control!$D$75 -> 0 | I172: = | J172: =H172*MethGWP*10^-6 -> 0 | K172: = | L172: =J172/CO2_C -> 0
B173: Total | H173: =SUM(H170:H172) -> 0 | J173: =H173*MethGWP*10^-6 -> 0 | K173: = | L173: =J173/CO2_C -> 0
B175: Petroleum Systems | D175: =D166+1 -> 2009
D177: Activity Data | F177: Emission Factor | H177: Metric Tons CH4 | J177: MMTCO2E | L177: MMTCE
D178: '000 barrels | F178: kg CH4 per year per 1000 bbl
B179: Oil Production | E179: x | F179: =IF(ISNUMBER(OilProdFactor),OilProdFactor,VLOOKUP(D175,OilEFs,8,FALSE)) -> 808.4978648 | G179: = | H179: =D179*F179/Control!$D$75 -> 0 | I179: = | J179: =H179*MethGWP*10^-6 -> 0 | K179: = | L179: =J179/CO2_C -> 0
B180: Oil Refining | E180: x | F180: =IF(ISNUMBER(OilRefFactor),OilRefFactor,VLOOKUP(D175,OilEFs,9,FALSE)) -> 5.259537705 | G180: = | H180: =D180*F180/Control!$D$75 -> 0 | I180: = | J180: =H180*MethGWP*10^-6 -> 0 | K180: = | L180: =J180/CO2_C -> 0
B181: Oil Transportation | E181: x | F181: =IF(ISNUMBER(OilTransFactor),OilTransFactor,VLOOKUP(D175,OilEFs,10,FALSE)) -> 0.9441020705 | G181: = | H181: =D181*F181/Control!$D$75 -> 0 | I181: = | J181: =H181*MethGWP*10^-6 -> 0 | K181: = | L181: =J181/CO2_C -> 0
B182: Total | H182: =SUM(H179:H181) -> 0 | J182: =H182*MethGWP*10^-6 -> 0 | K182: = | L182: =J182/CO2_C -> 0
B184: Petroleum Systems | D184: =D175+1 -> 2010
D186: Activity Data | F186: Emission Factor | H186: Metric Tons CH4 | J186: MMTCO2E | L186: MMTCE
D187: '000 barrels | F187: kg CH4 per year per 1000 bbl
B188: Oil Production | E188: x | F188: =IF(ISNUMBER(OilProdFactor),OilProdFactor,VLOOKUP(D184,OilEFs,8,FALSE)) -> 788.0807605 | G188: = | H188: =D188*F188/Control!$D$75 -> 0 | I188: = | J188: =H188*MethGWP*10^-6 -> 0 | K188: = | L188: =J188/CO2_C -> 0
B189: Oil Refining | E189: x | F189: =IF(ISNUMBER(OilRefFactor),OilRefFactor,VLOOKUP(D184,OilEFs,9,FALSE)) -> 5.22131197 | G189: = | H189: =D189*F189/Control!$D$75 -> 0 | I189: = | J189: =H189*MethGWP*10^-6 -> 0 | K189: = | L189: =J189/CO2_C -> 0
B190: Oil Transportation | E190: x | F190: =IF(ISNUMBER(OilTransFactor),OilTransFactor,VLOOKUP(D184,OilEFs,10,FALSE)) -> 0.928689208 | G190: = | H190: =D190*F190/Control!$D$75 -> 0 | I190: = | J190: =H190*MethGWP*10^-6 -> 0 | K190: = | L190: =J190/CO2_C -> 0
B191: Total | H191: =SUM(H188:H190) -> 0 | J191: =H191*MethGWP*10^-6 -> 0 | K191: = | L191: =J191/CO2_C -> 0
B193: Petroleum Systems | D193: =D184+1 -> 2011
D195: Activity Data | F195: Emission Factor | H195: Metric Tons CH4 | J195: MMTCO2E | L195: MMTCE
D196: '000 barrels | F196: kg CH4 per year per 1000 bbl
B197: Oil Production | E197: x | F197: =IF(ISNUMBER(OilProdFactor),OilProdFactor,VLOOKUP(D193,OilEFs,8,FALSE)) -> 777.0870112 | G197: = | H197: =D197*F197/Control!$D$75 -> 0 | I197: = | J197: =H197*MethGWP*10^-6 -> 0 | K197: = | L197: =J197/CO2_C -> 0
B198: Oil Refining | E198: x | F198: =IF(ISNUMBER(OilRefFactor),OilRefFactor,VLOOKUP(D193,OilEFs,9,FALSE)) -> 5.56655626 | G198: = | H198: =D198*F198/Control!$D$75 -> 0 | I198: = | J198: =H198*MethGWP*10^-6 -> 0 | K198: = | L198: =J198/CO2_C -> 0
B199: Oil Transportation | E199: x | F199: =IF(ISNUMBER(OilTransFactor),OilTransFactor,VLOOKUP(D193,OilEFs,10,FALSE)) -> 0.9702665319 | G199: = | H199: =D199*F199/Control!$D$75 -> 0 | I199: = | J199: =H199*MethGWP*10^-6 -> 0 | K199: = | L199: =J199/CO2_C -> 0
B200: Total | H200: =SUM(H197:H199) -> 0 | J200: =H200*MethGWP*10^-6 -> 0 | K200: = | L200: =J200/CO2_C -> 0
B202: Petroleum Systems | D202: =D193+1 -> 2012
D204: Activity Data | F204: Emission Factor | H204: Metric Tons CH4 | J204: MMTCO2E | L204: MMTCE
D205: '000 barrels | F205: kg CH4 per year per 1000 bbl
B206: Oil Production | E206: x | F206: =IF(ISNUMBER(OilProdFactor),OilProdFactor,VLOOKUP(D202,OilEFs,8,FALSE)) -> 651.6203658 | G206: = | H206: =D206*F206/Control!$D$75 -> 0 | I206: = | J206: =H206*MethGWP*10^-6 -> 0 | K206: = | L206: =J206/CO2_C -> 0
B207: Oil Refining | E207: x | F207: =IF(ISNUMBER(OilRefFactor),OilRefFactor,VLOOKUP(D202,OilEFs,9,FALSE)) -> 5.337140238 | G207: = | H207: =D207*F207/Control!$D$75 -> 0 | I207: = | J207: =H207*MethGWP*10^-6 -> 0 | K207: = | L207: =J207/CO2_C -> 0
B208: Oil Transportation | E208: x | F208: =IF(ISNUMBER(OilTransFactor),OilTransFactor,VLOOKUP(D202,OilEFs,10,FALSE)) -> 1.123114456 | G208: = | H208: =D208*F208/Control!$D$75 -> 0 | I208: = | J208: =H208*MethGWP*10^-6 -> 0 | K208: = | L208: =J208/CO2_C -> 0
B209: Total | H209: =SUM(H206:H208) -> 0 | J209: =H209*MethGWP*10^-6 -> 0 | K209: = | L209: =J209/CO2_C -> 0
B211: Petroleum Systems | D211: =D202+1 -> 2013
D213: Activity Data | F213: Emission Factor | H213: Metric Tons CH4 | J213: MMTCO2E | L213: MMTCE
D214: '000 barrels | F214: kg CH4 per year per 1000 bbl
B215: Oil Production | E215: x | F215: =IF(ISNUMBER(OilProdFactor),OilProdFactor,VLOOKUP(D211,OilEFs,8,FALSE)) -> 714.5554239 | G215: = | H215: =D215*F215/Control!$D$75 -> 0 | I215: = | J215: =H215*MethGWP*10^-6 -> 0 | K215: = | L215: =J215/CO2_C -> 0
B216: Oil Refining | E216: x | F216: =IF(ISNUMBER(OilRefFactor),OilRefFactor,VLOOKUP(D211,OilEFs,9,FALSE)) -> 4.923197672 | G216: = | H216: =D216*F216/Control!$D$75 -> 0 | I216: = | J216: =H216*MethGWP*10^-6 -> 0 | K216: = | L216: =J216/CO2_C -> 0
B217: Oil Transportation | E217: x | F217: =IF(ISNUMBER(OilTransFactor),OilTransFactor,VLOOKUP(D211,OilEFs,10,FALSE)) -> 1.283193185 | G217: = | H217: =D217*F217/Control!$D$75 -> 0 | I217: = | J217: =H217*MethGWP*10^-6 -> 0 | K217: = | L217: =J217/CO2_C -> 0
B218: Total | H218: =SUM(H215:H217) -> 0 | J218: =H218*MethGWP*10^-6 -> 0 | K218: = | L218: =J218/CO2_C -> 0
B220: Petroleum Systems | D220: =D211+1 -> 2014
D222: Activity Data | F222: Emission Factor | H222: Metric Tons CH4 | J222: MMTCO2E | L222: MMTCE
D223: '000 barrels | F223: kg CH4 per year per 1000 bbl
B224: Oil Production | E224: x | F224: =IF(ISNUMBER(OilProdFactor),OilProdFactor,VLOOKUP(D220,OilEFs,8,FALSE)) -> 645.8334172 | G224: = | H224: =D224*F224/Control!$D$75 -> 0 | I224: = | J224: =H224*MethGWP*10^-6 -> 0 | K224: = | L224: =J224/CO2_C -> 0
B225: Oil Refining | E225: x | F225: =IF(ISNUMBER(OilRefFactor),OilRefFactor,VLOOKUP(D220,OilEFs,9,FALSE)) -> 4.666091334 | G225: = | H225: =D225*F225/Control!$D$75 -> 0 | I225: = | J225: =H225*MethGWP*10^-6 -> 0 | K225: = | L225: =J225/CO2_C -> 0
B226: Oil Transportation | E226: x | F226: =IF(ISNUMBER(OilTransFactor),OilTransFactor,VLOOKUP(D220,OilEFs,10,FALSE)) -> 1.419931619 | G226: = | H226: =D226*F226/Control!$D$75 -> 0 | I226: = | J226: =H226*MethGWP*10^-6 -> 0 | K226: = | L226: =J226/CO2_C -> 0
B227: Total | H227: =SUM(H224:H226) -> 0 | J227: =H227*MethGWP*10^-6 -> 0 | K227: = | L227: =J227/CO2_C -> 0
B229: Petroleum Systems | D229: =D220+1 -> 2015
D231: Activity Data | F231: Emission Factor | H231: Metric Tons CH4 | J231: MMTCO2E | L231: MMTCE
D232: '000 barrels | F232: kg CH4 per year per 1000 bbl
B233: Oil Production | E233: x | F233: =IF(ISNUMBER(OilProdFactor),OilProdFactor,VLOOKUP(D229,OilEFs,8,FALSE)) -> 601.7256145 | G233: = | H233: =D233*F233/Control!$D$75 -> 0 | I233: = | J233: =H233*MethGWP*10^-6 -> 0 | K233: = | L233: =J233/CO2_C -> 0
B234: Oil Refining | E234: x | F234: =IF(ISNUMBER(OilRefFactor),OilRefFactor,VLOOKUP(D229,OilEFs,9,FALSE)) -> 4.926396743 | G234: = | H234: =D234*F234/Control!$D$75 -> 0 | I234: = | J234: =H234*MethGWP*10^-6 -> 0 | K234: = | L234: =J234/CO2_C -> 0
B235: Oil Transportation | E235: x | F235: =IF(ISNUMBER(OilTransFactor),OilTransFactor,VLOOKUP(D229,OilEFs,10,FALSE)) -> 1.414319781 | G235: = | H235: =D235*F235/Control!$D$75 -> 0 | I235: = | J235: =H235*MethGWP*10^-6 -> 0 | K235: = | L235: =J235/CO2_C -> 0
B236: Total | H236: =SUM(H233:H235) -> 0 | J236: =H236*MethGWP*10^-6 -> 0 | K236: = | L236: =J236/CO2_C -> 0
B238: Petroleum Systems | D238: =D229+1 -> 2016
D240: Activity Data | F240: Emission Factor | H240: Metric Tons CH4 | J240: MMTCO2E | L240: MMTCE
D241: '000 barrels | F241: kg CH4 per year per 1000 bbl
B242: Oil Production | E242: x | F242: =IF(ISNUMBER(OilProdFactor),OilProdFactor,VLOOKUP(D238,OilEFs,8,FALSE)) -> 439.4263339 | G242: = | H242: =D242*F242/Control!$D$75 -> 0 | I242: = | J242: =H242*MethGWP*10^-6 -> 0 | K242: = | L242: =J242/CO2_C -> 0
B243: Oil Refining | E243: x | F243: =IF(ISNUMBER(OilRefFactor),OilRefFactor,VLOOKUP(D238,OilEFs,9,FALSE)) -> 6.260167236 | G243: = | H243: =D243*F243/Control!$D$75 -> 0 | I243: = | J243: =H243*MethGWP*10^-6 -> 0 | K243: = | L243: =J243/CO2_C -> 0
B244: Oil Transportation | E244: x | F244: =IF(ISNUMBER(OilTransFactor),OilTransFactor,VLOOKUP(D238,OilEFs,10,FALSE)) -> 1.357734908 | G244: = | H244: =D244*F244/Control!$D$75 -> 0 | I244: = | J244: =H244*MethGWP*10^-6 -> 0 | K244: = | L244: =J244/CO2_C -> 0
B245: Total | H245: =SUM(H242:H244) -> 0 | J245: =H245*MethGWP*10^-6 -> 0 | K245: = | L245: =J245/CO2_C -> 0
B247: Petroleum Systems | D247: =D238+1 -> 2017
D249: Activity Data | F249: Emission Factor | H249: Metric Tons CH4 | J249: MMTCO2E | L249: MMTCE
D250: '000 barrels | F250: kg CH4 per year per 1000 bbl
B251: Oil Production | E251: x | F251: =IF(ISNUMBER(OilProdFactor),OilProdFactor,VLOOKUP(D247,OilEFs,8,FALSE)) -> 619.1380096 | G251: = | H251: =D251*F251/Control!$D$75 -> 0 | I251: = | J251: =H251*MethGWP*10^-6 -> 0 | K251: = | L251: =J251/CO2_C -> 0
B252: Oil Refining | E252: x | F252: =IF(ISNUMBER(OilRefFactor),OilRefFactor,VLOOKUP(D247,OilEFs,9,FALSE)) -> 4.916905409 | G252: = | H252: =D252*F252/Control!$D$75 -> 0 | I252: = | J252: =H252*MethGWP*10^-6 -> 0 | K252: = | L252: =J252/CO2_C -> 0
B253: Oil Transportation | E253: x | F253: =IF(ISNUMBER(OilTransFactor),OilTransFactor,VLOOKUP(D247,OilEFs,10,FALSE)) -> 1.25401524 | G253: = | H253: =D253*F253/Control!$D$75 -> 0 | I253: = | J253: =H253*MethGWP*10^-6 -> 0 | K253: = | L253: =J253/CO2_C -> 0
B254: Total | H254: =SUM(H251:H253) -> 0 | J254: =H254*MethGWP*10^-6 -> 0 | K254: = | L254: =J254/CO2_C -> 0
B256: Petroleum Systems | D256: =D247+1 -> 2018
D258: Activity Data | F258: Emission Factor | H258: Metric Tons CH4 | J258: MMTCO2E | L258: MMTCE
... 54 more rows

Sheet Additional Emission Sources
B1: ="7 (OPTIONAL) Additional Emission Sources for "&ListData!D2 -> 7 (OPTIONAL) Additional Emission Sources for Select a State . . .
B7: Additional Emission Sources (MMTCO2E)
B8: Option A
B9: Source | C9: Gas | D9: 1990 | E9: 1991 | F9: 1992 | G9: 1993 | H9: 1994 | I9: 1995 | J9: 1996 | K9: 1997 | L9: 1998 | M9: 1999 | N9: 2000 | O9: 2001 | P9: 2002 | Q9: 2003 | R9: 2004 | S9: 2005 | T9: 2006 | U9: 2007 | V9: 2008 | W9: 2009 | X9: 2010 | Y9: 2011 | Z9: 2012 | AA9: 2013 | AB9: 2014 | AC9: 2015 | AD9: 2016 | AE9: 2017 | AF9: 2018 | AG9: 2019 | AH9: 2020 | AI9: 2021 | AJ9: 2022 | AK9: 2023 | AL9: 2024 | AM9: 2025
AR11: CO2
AR12: CH4
D22: 1990 | E22: 1991 | F22: 1992 | G22: 1993 | H22: 1994 | I22: 1995 | J22: 1996 | K22: 1997 | L22: 1998 | M22: 1999 | N22: 2000 | O22: 2001 | P22: 2002 | Q22: 2003 | R22: 2004 | S22: 2005 | T22: 2006 | U22: 2007 | V22: 2008 | W22: 2009 | X22: 2010 | Y22: 2011 | Z22: 2012 | AA22: 2013 | AB22: 2014 | AC22: 2015 | AD22: 2016 | AE22: 2017 | AF22: 2018 | AG22: 2019 | AH22: 2020 | AI22: 2021 | AJ22: 2022 | AK22: 2023 | AL22: 2024 | AM22: 2025
B23: Additional Carbon Dioxide Emissions | C23: CO2 | D23: =IF(SUMIF($C$10:$C$19, $C23, D$10:D$19)=0, " ", SUMIF($C$10:$C$19, $C23, D$10:D$19)) ->  | N23: =IF(SUMIF($C$10:$C$19, $C23, N$10:N$19)=0, " ", SUMIF($C$10:$C$19, $C23, N$10:N$19)) ->  | X23: =IF(SUMIF($C$10:$C$19, $C23, X$10:X$19)=0, " ", SUMIF($C$10:$C$19, $C23, X$10:X$19)) ->  | AH23: =IF(SUMIF($C$10:$C$19, $C23, AH$10:AH$19)=0, " ", SUMIF($C$10:$C$19, $C23, AH$10:AH$19)) -> 
B24: Additional Methane Emissions | C24: CH4
B27: Option B
D28: 1990 | E28: 1991 | F28: 1992 | G28: 1993 | H28: 1994 | I28: 1995 | J28: 1996 | K28: 1997 | L28: 1998 | M28: 1999 | N28: 2000 | O28: 2001 | P28: 2002 | Q28: 2003 | R28: 2004 | S28: 2005 | T28: 2006 | U28: 2007 | V28: 2008 | W28: 2009 | X28: 2010 | Y28: 2011 | Z28: 2012 | AA28: 2013 | AB28: 2014 | AC28: 2015 | AD28: 2016 | AE28: 2017 | AF28: 2018 | AG28: 2019 | AH28: 2020 | AI28: 2021 | AJ28: 2022 | AK28: 2023 | AL28: 2024 | AM28: 2025
B29: Additional Carbon Dioxide Emissions | C29: CO2
B30: Additional Methane Emissions | C30: CH4
B33: HIDDEN ROWS:
B34: Additional Emissions used for Summary tab:
D35: 1990 | E35: 1991 | F35: 1992 | G35: 1993 | H35: 1994 | I35: 1995 | J35: 1996 | K35: 1997 | L35: 1998 | M35: 1999 | N35: 2000 | O35: 2001 | P35: 2002 | Q35: 2003 | R35: 2004 | S35: 2005 | T35: 2006 | U35: 2007 | V35: 2008 | W35: 2009 | X35: 2010 | Y35: 2011 | Z35: 2012 | AA35: 2013 | AB35: 2014 | AC35: 2015 | AD35: 2016 | AE35: 2017 | AF35: 2018 | AG35: 2019 | AH35: 2020 | AI35: 2021 | AJ35: 2022 | AK35: 2023 | AL35: 2024 | AM35: 2025
B36: Additional Carbon Dioxide Emissions | C36: CO2 | D36: =IFERROR( IF(ISBLANK(D29),D23,D29)*1, 0) -> 0 | E36: =IFERROR( IF(ISBLANK(E29),E23,E29)*1, 0) -> 0 | F36: 0 | G36: 0 | H36: 0 | I36: 0 | J36: 0 | K36: 0 | L36: 0 | M36: 0 | N36: 0 | O36: 0 | P36: 0 | Q36: 0 | R36: 0 | S36: 0 | T36: 0 | U36: 0 | V36: 0 | W36: 0 | X36: 0 | Y36: 0 | Z36: 0 | AA36: 0 | AB36: 0 | AC36: 0 | AD36: 0 | AE36: 0 | AF36: 0 | AG36: 0 | AH36: 0 | AI36: 0 | AJ36: 0 | AK36: 0 | AL36: 0 | AM36: 0
B37: Additional Methane Emissions | C37: CH4 | D37: =IFERROR( IF(ISBLANK(D30),D24,D30)*1, 0) -> 0 | E37: =IFERROR( IF(ISBLANK(E30),E24,E30)*1, 0) -> 0 | F37: 0 | G37: 0 | H37: 0 | I37: 0 | J37: 0 | K37: 0 | L37: 0 | M37: 0 | N37: 0 | O37: 0 | P37: 0 | Q37: 0 | R37: 0 | S37: 0 | T37: 0 | U37: 0 | V37: 0 | W37: 0 | X37: 0 | Y37: 0 | Z37: 0 | AA37: 0 | AB37: 0 | AC37: 0 | AD37: 0 | AE37: 0 | AF37: 0 | AG37: 0 | AH37: 0 | AI37: 0 | AJ37: 0 | AK37: 0 | AL37: 0 | AM37: 0

Sheet Summary
A1: ="7. "&ListData!D2&" Emissions Summary" -> 7. Select a State . . . Emissions Summary
B3: =Tracker!B14 -> Emissions were not calculated for the following sources: Natural Gas Production, Natural Gas Flaring, Natural Gas Transmission, Natural Gas Distribution, and Oil.
B4: * Additional Emission Sources will only populate if values are added (optional) to the Additional Data Input tab
B5: Emissions (MMTCE)
C6: 1990 | D6: 1991 | E6: 1992 | F6: 1993 | G6: 1994 | H6: 1995 | I6: 1996 | J6: 1997 | K6: 1998 | L6: 1999 | M6: 2000 | N6: 2001 | O6: 2002 | P6: 2003 | Q6: 2004 | R6: 2005 | S6: 2006 | T6: 2007 | U6: 2008 | V6: 2009 | W6: 2010 | X6: 2011 | Y6: 2012 | Z6: 2013 | AA6: 2014 | AB6: 2015 | AC6: 2016 | AD6: 2017 | AE6: 2018 | AF6: 2019 | AG6: 2020
B7: Natural Gas | C7: =C12/CO2_C -> 0
B8: Oil | C8: =Summary!C13/CO2_C -> 0 | D8: =Summary!D13/CO2_C -> 0 | E8: =Summary!E13/CO2_C -> 0 | F8: =Summary!F13/CO2_C -> 0 | G8: =Summary!G13/CO2_C -> 0 | H8: =Summary!H13/CO2_C -> 0 | I8: =Summary!I13/CO2_C -> 0 | J8: =Summary!J13/CO2_C -> 0 | K8: =Summary!K13/CO2_C -> 0 | L8: =Summary!L13/CO2_C -> 0 | M8: =Summary!M13/CO2_C -> 0 | N8: =Summary!N13/CO2_C -> 0 | O8: =Summary!O13/CO2_C -> 0 | P8: =Summary!P13/CO2_C -> 0 | Q8: =Summary!Q13/CO2_C -> 0 | R8: =Summary!R13/CO2_C -> 0 | S8: =Summary!S13/CO2_C -> 0 | T8: =Summary!T13/CO2_C -> 0 | U8: =Summary!U13/CO2_C -> 0 | V8: =Summary!V13/CO2_C -> 0 | W8: =Summary!W13/CO2_C -> 0 | X8: =Summary!X13/CO2_C -> 0 | Y8: =Summary!Y13/CO2_C -> 0 | Z8: =Summary!Z13/CO2_C -> 0 | AA8: =Summary!AA13/CO2_C -> 0 | AB8: =Summary!AB13/CO2_C -> 0 | AC8: =Summary!AC13/CO2_C -> 0 | AD8: =Summary!AD13/CO2_C -> 0 | AE8: =Summary!AE13/CO2_C -> 0 | AF8: =Summary!AF13/CO2_C -> 0 | AG8: =Summary!AG13/CO2_C -> 0
B9: Additional Emission Sources* | C9: =Summary!C14/CO2_C -> 0 | D9: =Summary!D14/CO2_C -> 0 | E9: =Summary!E14/CO2_C -> 0 | F9: =Summary!F14/CO2_C -> 0 | G9: =Summary!G14/CO2_C -> 0 | H9: =Summary!H14/CO2_C -> 0 | I9: =Summary!I14/CO2_C -> 0 | J9: =Summary!J14/CO2_C -> 0 | K9: =Summary!K14/CO2_C -> 0 | L9: =Summary!L14/CO2_C -> 0 | M9: =Summary!M14/CO2_C -> 0 | N9: =Summary!N14/CO2_C -> 0 | O9: =Summary!O14/CO2_C -> 0 | P9: =Summary!P14/CO2_C -> 0 | Q9: =Summary!Q14/CO2_C -> 0 | R9: =Summary!R14/CO2_C -> 0 | S9: =Summary!S14/CO2_C -> 0 | T9: =Summary!T14/CO2_C -> 0 | U9: =Summary!U14/CO2_C -> 0 | V9: =Summary!V14/CO2_C -> 0 | W9: =Summary!W14/CO2_C -> 0 | X9: =Summary!X14/CO2_C -> 0 | Y9: =Summary!Y14/CO2_C -> 0 | Z9: =Summary!Z14/CO2_C -> 0 | AA9: =Summary!AA14/CO2_C -> 0 | AB9: =Summary!AB14/CO2_C -> 0 | AC9: =Summary!AC14/CO2_C -> 0 | AD9: =Summary!AD14/CO2_C -> 0 | AE9: =Summary!AE14/CO2_C -> 0 | AF9: =Summary!AF14/CO2_C -> 0 | AG9: =Summary!AG14/CO2_C -> 0
B10: Emissions (MMTCO2 Eq.)
C11: 1990 | D11: 1991 | E11: 1992 | F11: 1993 | G11: 1994 | H11: 1995 | I11: 1996 | J11: 1997 | K11: 1998 | L11: 1999 | M11: 2000 | N11: 2001 | O11: 2002 | P11: 2003 | Q11: 2004 | R11: 2005 | S11: 2006 | T11: 2007 | U11: 2008 | V11: 2009 | W11: 2010 | X11: 2011 | Y11: 2012 | Z11: 2013 | AA11: 2014 | AB11: 2015 | AC11: 2016 | AD11: 2017 | AE11: 2018 | AF11: 2019 | AG11: 2020 | AH11: 2021 | AI11: 2022 | AJ11: 2023 | AK11: 2024 | AL11: 2025
B12: Natural Gas | C12: =IFERROR(((C19*MethGWP*10^-6)+C27),"-") -> 0 | D12: - | E12: - | F12: - | G12: - | H12: - | I12: - | J12: - | K12: - | L12: - | M12: - | N12: - | O12: - | P12: - | Q12: - | R12: - | S12: - | T12: - | U12: - | V12: - | W12: - | X12: - | Y12: - | Z12: - | AA12: - | AB12: - | AC12: - | AD12: - | AE12: - | AF12: - | AG12: - | AH12: - | AI12: - | AJ12: - | AK12: - | AL12: -
B13: Oil | C13: =C23*MethGWP*10^-6 -> 0 | D13: =D23*MethGWP*10^-6 -> 0 | E13: 0 | F13: 0 | G13: 0 | H13: 0 | I13: 0 | J13: 0 | K13: 0 | L13: 0 | M13: 0 | N13: 0 | O13: 0 | P13: 0 | Q13: 0 | R13: 0 | S13: 0 | T13: 0 | U13: 0 | V13: 0 | W13: 0 | X13: 0 | Y13: 0 | Z13: 0 | AA13: 0 | AB13: 0 | AC13: 0 | AD13: 0 | AE13: 0 | AF13: 0 | AG13: 0 | AH13: =AH23*MethGWP*10^-6 -> 0 | AI13: 0 | AJ13: 0 | AK13: 0 | AL13: 0
B14: Additional Emission Sources* | C14: =(IFERROR('Additional Emission Sources'!D36,0)+IFERROR('Additional Emission Sources'!D37,0)) -> 0 | D14: =IFERROR('Additional Emission Sources'!E36,0)+IFERROR('Additional Emission Sources'!E37,0) -> 0 | E14: =IFERROR('Additional Emission Sources'!F36,0)+IFERROR('Additional Emission Sources'!F37,0) -> 0 | F14: =IFERROR('Additional Emission Sources'!G36,0)+IFERROR('Additional Emission Sources'!G37,0) -> 0 | G14: =IFERROR('Additional Emission Sources'!H36,0)+IFERROR('Additional Emission Sources'!H37,0) -> 0 | H14: =IFERROR('Additional Emission Sources'!I36,0)+IFERROR('Additional Emission Sources'!I37,0) -> 0 | I14: =IFERROR('Additional Emission Sources'!J36,0)+IFERROR('Additional Emission Sources'!J37,0) -> 0 | J14: =IFERROR('Additional Emission Sources'!K36,0)+IFERROR('Additional Emission Sources'!K37,0) -> 0 | K14: =IFERROR('Additional Emission Sources'!L36,0)+IFERROR('Additional Emission Sources'!L37,0) -> 0 | L14: =IFERROR('Additional Emission Sources'!M36,0)+IFERROR('Additional Emission Sources'!M37,0) -> 0 | M14: =IFERROR('Additional Emission Sources'!N36,0)+IFERROR('Additional Emission Sources'!N37,0) -> 0 | N14: =IFERROR('Additional Emission Sources'!O36,0)+IFERROR('Additional Emission Sources'!O37,0) -> 0 | O14: =IFERROR('Additional Emission Sources'!P36,0)+IFERROR('Additional Emission Sources'!P37,0) -> 0 | P14: =IFERROR('Additional Emission Sources'!Q36,0)+IFERROR('Additional Emission Sources'!Q37,0) -> 0 | Q14: =IFERROR('Additional Emission Sources'!R36,0)+IFERROR('Additional Emission Sources'!R37,0) -> 0 | R14: =IFERROR('Additional Emission Sources'!S36,0)+IFERROR('Additional Emission Sources'!S37,0) -> 0 | S14: =IFERROR('Additional Emission Sources'!T36,0)+IFERROR('Additional Emission Sources'!T37,0) -> 0 | T14: =IFERROR('Additional Emission Sources'!U36,0)+IFERROR('Additional Emission Sources'!U37,0) -> 0 | U14: =IFERROR('Additional Emission Sources'!V36,0)+IFERROR('Additional Emission Sources'!V37,0) -> 0 | V14: =IFERROR('Additional Emission Sources'!W36,0)+IFERROR('Additional Emission Sources'!W37,0) -> 0 | W14: =IFERROR('Additional Emission Sources'!X36,0)+IFERROR('Additional Emission Sources'!X37,0) -> 0 | X14: =IFERROR('Additional Emission Sources'!Y36,0)+IFERROR('Additional Emission Sources'!Y37,0) -> 0 | Y14: =IFERROR('Additional Emission Sources'!Z36,0)+IFERROR('Additional Emission Sources'!Z37,0) -> 0 | Z14: =IFERROR('Additional Emission Sources'!AA36,0)+IFERROR('Additional Emission Sources'!AA37,0) -> 0 | AA14: =IFERROR('Additional Emission Sources'!AB36,0)+IFERROR('Additional Emission Sources'!AB37,0) -> 0 | AB14: =IFERROR('Additional Emission Sources'!AC36,0)+IFERROR('Additional Emission Sources'!AC37,0) -> 0 | AC14: =IFERROR('Additional Emission Sources'!AD36,0)+IFERROR('Additional Emission Sources'!AD37,0) -> 0 | AD14: =IFERROR('Additional Emission Sources'!AE36,0)+IFERROR('Additional Emission Sources'!AE37,0) -> 0 | AE14: =IFERROR('Additional Emission Sources'!AF36,0)+IFERROR('Additional Emission Sources'!AF37,0) -> 0 | AF14: =IFERROR('Additional Emission Sources'!AG36,0)+IFERROR('Additional Emission Sources'!AG37,0) -> 0 | AG14: =IFERROR('Additional Emission Sources'!AH36,0)+IFERROR('Additional Emission Sources'!AH37,0) -> 0 | AH14: =IFERROR('Additional Emission Sources'!AI36,0)+IFERROR('Additional Emission Sources'!AI37,0) -> 0 | AI14: =IFERROR('Additional Emission Sources'!AJ36,0)+IFERROR('Additional Emission Sources'!AJ37,0) -> 0 | AJ14: =IFERROR('Additional Emission Sources'!AK36,0)+IFERROR('Additional Emission Sources'!AK37,0) -> 0 | AK14: =IFERROR('Additional Emission Sources'!AL36,0)+IFERROR('Additional Emission Sources'!AL37,0) -> 0 | AL14: =IFERROR('Additional Emission Sources'!AM36,0)+IFERROR('Additional Emission Sources'!AM37,0) -> 0
C15: =IF(ISERROR(IF(C12=0,0,COLUMN()-2)),0,IF(C12=0,0,COLUMN()-2)) -> 0 | D15: =IF(ISERROR(IF(D12=0,0,COLUMN()-2)),0,IF(D12=0,0,COLUMN()-2)) -> 2 | E15: =IF(ISERROR(IF(E12=0,0,COLUMN()-2)),0,IF(E12=0,0,COLUMN()-2)) -> 3 | F15: =IF(ISERROR(IF(F12=0,0,COLUMN()-2)),0,IF(F12=0,0,COLUMN()-2)) -> 4 | G15: 5 | H15: 6 | I15: 7 | J15: 8 | K15: 9 | L15: 10 | M15: 11 | N15: 12 | O15: 13 | P15: 14 | Q15: 15 | R15: 16 | S15: 17 | T15: 18 | U15: 19 | V15: 20 | W15: 21 | X15: 22 | Y15: 23 | Z15: 24 | AA15: 25 | AB15: 26 | AC15: 27 | AD15: 28 | AE15: 29 | AF15: 30 | AG15: 31 | AH15: =IF(ISERROR(IF(AH12=0,0,COLUMN()-2)),0,IF(AH12=0,0,COLUMN()-2)) -> 32 | AI15: 33 | AJ15: 34 | AK15: 35 | AL15: 36
C16: 1 | D16: =IF(ISERROR(IF(D13=0,0,COLUMN()-2)),0,IF(D13=0,0,COLUMN()-2)) -> 0 | E16: =IF(ISERROR(IF(E13=0,0,COLUMN()-2)),0,IF(E13=0,0,COLUMN()-2)) -> 0 | F16: =IF(ISERROR(IF(F13=0,0,COLUMN()-2)),0,IF(F13=0,0,COLUMN()-2)) -> 0 | G16: 0 | H16: 0 | I16: 0 | J16: 0 | K16: 0 | L16: 0 | M16: 0 | N16: 0 | O16: 0 | P16: 0 | Q16: 0 | R16: 0 | S16: 0 | T16: 0 | U16: 0 | V16: 0 | W16: 0 | X16: 0 | Y16: 0 | Z16: 0 | AA16: 0 | AB16: 0 | AC16: 0 | AD16: 0 | AE16: 0 | AF16: 0 | AG16: 0 | AH16: =IF(ISERROR(IF(AH13=0,0,COLUMN()-2)),0,IF(AH13=0,0,COLUMN()-2)) -> 0 | AI16: 0 | AJ16: 0 | AK16: 0 | AL16: 0
B17: Emissions by Gas (MTCH4)
C18: 1990 | D18: 1991 | E18: 1992 | F18: 1993 | G18: 1994 | H18: 1995 | I18: 1996 | J18: 1997 | K18: 1998 | L18: 1999 | M18: 2000 | N18: 2001 | O18: 2002 | P18: 2003 | Q18: 2004 | R18: 2005 | S18: 2006 | T18: 2007 | U18: 2008 | V18: 2009 | W18: 2010 | X18: 2011 | Y18: 2012 | Z18: 2013 | AA18: 2014 | AB18: 2015 | AC18: 2016 | AD18: 2017 | AE18: 2018 | AF18: 2019 | AG18: 2020 | AH18: 2021 | AI18: 2022 | AJ18: 2023 | AK18: 2024 | AL18: 2025
B19: Natural Gas | C19: =IFERROR((SUM(C20:C22)),"-") -> 0 | D19: =IFERROR((SUM(D20:D22)),"-") -> - | E19: - | F19: - | G19: - | H19: - | I19: - | J19: - | K19: - | L19: - | M19: - | N19: - | O19: - | P19: - | Q19: - | R19: - | S19: - | T19: - | U19: - | V19: - | W19: - | X19: - | Y19: - | Z19: - | AA19: - | AB19: - | AC19: - | AD19: - | AE19: - | AF19: - | AG19: - | AH19: - | AI19: - | AJ19: - | AK19: - | AL19: -
B20: Production | C20: =IFERROR('Natural Gas - Production'!$H11,"-") -> - | D20: ='Natural Gas - Production'!$H20 ->  | E20: ='Natural Gas - Production'!$H29 ->  | F20: ='Natural Gas - Production'!$H38 ->  | G20: ='Natural Gas - Production'!$H47 ->  | H20: ='Natural Gas - Production'!$H56 ->  | I20: ='Natural Gas - Production'!$H65 ->  | J20: ='Natural Gas - Production'!$H74 ->  | K20: ='Natural Gas - Production'!$H83 ->  | L20: ='Natural Gas - Production'!$H92 ->  | M20: ='Natural Gas - Production'!$H101 ->  | N20: ='Natural Gas - Production'!$H110 ->  | O20: ='Natural Gas - Production'!$H119 ->  | P20: ='Natural Gas - Production'!$H128 ->  | Q20: ='Natural Gas - Production'!$H137 ->  | R20: ='Natural Gas - Production'!$H146 ->  | S20: ='Natural Gas - Production'!$H155 ->  | T20: ='Natural Gas - Production'!$H164 ->  | U20: ='Natural Gas - Production'!$H173 ->  | V20: ='Natural Gas - Production'!$H182 ->  | W20: ='Natural Gas - Production'!$H191 ->  | X20: ='Natural Gas - Production'!$H200 ->  | Y20: ='Natural Gas - Production'!$H209 ->  | Z20: ='Natural Gas - Production'!$H218 ->  | AA20: ='Natural Gas - Production'!$H227 ->  | AB20: ='Natural Gas - Production'!$H236 ->  | AC20: ='Natural Gas - Production'!$H245 ->  | AD20: ='Natural Gas - Production'!$H254 ->  | AE20: ='Natural Gas - Production'!$H263 ->  | AF20: ='Natural Gas - Production'!$H272 ->  | AG20: ='Natural Gas - Production'!$H281 ->  | AH20: ='Natural Gas - Production'!$H290 ->  | AI20: ='Natural Gas - Production'!$H299 ->  | AJ20: ='Natural Gas - Production'!$H308 ->  | AK20: ='Natural Gas - Production'!$H317 ->  | AL20: ='Natural Gas - Production'!$H326 -> 
B21: Transmission | C21: ='Natural Gas - Transmission'!$H18 -> 0 | D21: ='Natural Gas - Transmission'!$H31 -> 0 | E21: ='Natural Gas - Transmission'!$H44 -> 0 | F21: ='Natural Gas - Transmission'!$H57 -> 0 | G21: ='Natural Gas - Transmission'!$H70 -> 0 | H21: ='Natural Gas - Transmission'!$H83 -> 0 | I21: ='Natural Gas - Transmission'!$H96 -> 0 | J21: ='Natural Gas - Transmission'!$H109 -> 0 | K21: ='Natural Gas - Transmission'!$H122 -> 0 | L21: ='Natural Gas - Transmission'!$H135 -> 0 | M21: ='Natural Gas - Transmission'!$H148 -> 0 | N21: ='Natural Gas - Transmission'!$H161 -> 0 | O21: ='Natural Gas - Transmission'!$H174 -> 0 | P21: ='Natural Gas - Transmission'!$H187 -> 0 | Q21: ='Natural Gas - Transmission'!$H200 -> 0 | R21: ='Natural Gas - Transmission'!$H213 -> 0 | S21: ='Natural Gas - Transmission'!$H226 -> 0 | T21: ='Natural Gas - Transmission'!$H239 -> 0 | U21: ='Natural Gas - Transmission'!$H252 -> 0 | V21: ='Natural Gas - Transmission'!$H265 -> 0 | W21: ='Natural Gas - Transmission'!$H278 -> 0 | X21: ='Natural Gas - Transmission'!$H291 -> 0 | Y21: ='Natural Gas - Transmission'!$H304 -> 0 | Z21: ='Natural Gas - Transmission'!$H317 -> 0 | AA21: ='Natural Gas - Transmission'!$H330 -> 0 | AB21: ='Natural Gas - Transmission'!$H343 -> 0 | AC21: ='Natural Gas - Transmission'!$H356 -> 0 | AD21: ='Natural Gas - Transmission'!$H369 -> 0 | AE21: ='Natural Gas - Transmission'!$H382 -> 0 | AF21: ='Natural Gas - Transmission'!$H395 -> 0 | AG21: ='Natural Gas - Transmission'!$H408 -> 0 | AH21: ='Natural Gas - Transmission'!$H421 -> 0 | AI21: ='Natural Gas - Transmission'!$H434 -> 0 | AJ21: ='Natural Gas - Transmission'!$H447 -> 0 | AK21: ='Natural Gas - Transmission'!$H460 -> 0 | AL21: ='Natural Gas - Transmission'!$H473 -> 0
B22: Distribution | C22: ='Natural Gas - Distribution'!$H22 -> 0 | D22: ='Natural Gas - Distribution'!$H40 -> 0 | E22: ='Natural Gas - Distribution'!$H58 -> 0 | F22: ='Natural Gas - Distribution'!$H76 -> 0 | G22: ='Natural Gas - Distribution'!$H94 -> 0 | H22: ='Natural Gas - Distribution'!$H112 -> 0 | I22: ='Natural Gas - Distribution'!$H130 -> 0 | J22: ='Natural Gas - Distribution'!$H148 -> 0 | K22: ='Natural Gas - Distribution'!$H166 -> 0 | L22: ='Natural Gas - Distribution'!$H184 -> 0 | M22: ='Natural Gas - Distribution'!$H202 -> 0 | N22: ='Natural Gas - Distribution'!$H220 -> 0 | O22: ='Natural Gas - Distribution'!$H238 -> 0 | P22: ='Natural Gas - Distribution'!$H256 -> 0 | Q22: ='Natural Gas - Distribution'!$H274 -> 0 | R22: ='Natural Gas - Distribution'!$H292 -> 0 | S22: ='Natural Gas - Distribution'!$H310 -> 0 | T22: ='Natural Gas - Distribution'!$H328 -> 0 | U22: ='Natural Gas - Distribution'!$H346 -> 0 | V22: ='Natural Gas - Distribution'!$H364 -> 0 | W22: ='Natural Gas - Distribution'!$H382 -> 0 | X22: ='Natural Gas - Distribution'!$H400 -> 0 | Y22: ='Natural Gas - Distribution'!$H418 -> 0 | Z22: ='Natural Gas - Distribution'!$H436 -> 0 | AA22: ='Natural Gas - Distribution'!$H454 -> 0 | AB22: ='Natural Gas - Distribution'!$H472 -> 0 | AC22: ='Natural Gas - Distribution'!$H490 -> 0 | AD22: ='Natural Gas - Distribution'!$H508 -> 0 | AE22: ='Natural Gas - Distribution'!$H526 -> 0 | AF22: ='Natural Gas - Distribution'!$H544 -> 0 | AG22: ='Natural Gas - Distribution'!$H562 -> 0 | AH22: ='Natural Gas - Distribution'!$H580 -> 0 | AI22: ='Natural Gas - Distribution'!$H598 -> 0 | AJ22: ='Natural Gas - Distribution'!$H616 -> 0 | AK22: ='Natural Gas - Distribution'!$H634 -> 0 | AL22: ='Natural Gas - Distribution'!$H652 -> 0
B23: Oil | C23: ='Petroleum Systems'!$H11 -> 0 | D23: ='Petroleum Systems'!$H20 -> 0 | E23: ='Petroleum Systems'!$H29 -> 0 | F23: ='Petroleum Systems'!$H38 -> 0 | G23: ='Petroleum Systems'!$H47 -> 0 | H23: ='Petroleum Systems'!$H56 -> 0 | I23: ='Petroleum Systems'!$H65 -> 0 | J23: ='Petroleum Systems'!$H74 -> 0 | K23: ='Petroleum Systems'!$H83 -> 0 | L23: ='Petroleum Systems'!$H92 -> 0 | M23: ='Petroleum Systems'!$H101 -> 0 | N23: ='Petroleum Systems'!$H110 -> 0 | O23: ='Petroleum Systems'!$H119 -> 0 | P23: ='Petroleum Systems'!$H128 -> 0 | Q23: ='Petroleum Systems'!$H137 -> 0 | R23: ='Petroleum Systems'!$H146 -> 0 | S23: ='Petroleum Systems'!$H155 -> 0 | T23: ='Petroleum Systems'!$H164 -> 0 | U23: ='Petroleum Systems'!$H173 -> 0 | V23: ='Petroleum Systems'!$H182 -> 0 | W23: ='Petroleum Systems'!$H191 -> 0 | X23: ='Petroleum Systems'!$H200 -> 0 | Y23: ='Petroleum Systems'!$H209 -> 0 | Z23: ='Petroleum Systems'!$H218 -> 0 | AA23: ='Petroleum Systems'!$H227 -> 0 | AB23: ='Petroleum Systems'!$H236 -> 0 | AC23: ='Petroleum Systems'!$H245 -> 0 | AD23: ='Petroleum Systems'!$H254 -> 0 | AE23: ='Petroleum Systems'!$H263 -> 0 | AF23: ='Petroleum Systems'!$H272 -> 0 | AG23: ='Petroleum Systems'!$H281 -> 0 | AH23: ='Petroleum Systems'!$H290 -> 0 | AI23: ='Petroleum Systems'!$H299 -> 0 | AJ23: ='Petroleum Systems'!$H308 -> 0 | AK23: ='Petroleum Systems'!$H317 -> 0 | AL23: ='Petroleum Systems'!$H326 -> 0
B24: Additional Emission Sources* | C24: =('Additional Emission Sources'!D37/MethGWP)*10^6 -> 0 | D24: =('Additional Emission Sources'!E37/MethGWP)*10^6 -> 0 | E24: =('Additional Emission Sources'!F37/MethGWP)*10^6 -> 0 | F24: =('Additional Emission Sources'!G37/MethGWP)*10^6 -> 0 | G24: =('Additional Emission Sources'!H37/MethGWP)*10^6 -> 0 | H24: =('Additional Emission Sources'!I37/MethGWP)*10^6 -> 0 | I24: =('Additional Emission Sources'!J37/MethGWP)*10^6 -> 0 | J24: =('Additional Emission Sources'!K37/MethGWP)*10^6 -> 0 | K24: =('Additional Emission Sources'!L37/MethGWP)*10^6 -> 0 | L24: =('Additional Emission Sources'!M37/MethGWP)*10^6 -> 0 | M24: =('Additional Emission Sources'!N37/MethGWP)*10^6 -> 0 | N24: =('Additional Emission Sources'!O37/MethGWP)*10^6 -> 0 | O24: =('Additional Emission Sources'!P37/MethGWP)*10^6 -> 0 | P24: =('Additional Emission Sources'!Q37/MethGWP)*10^6 -> 0 | Q24: =('Additional Emission Sources'!R37/MethGWP)*10^6 -> 0 | R24: =('Additional Emission Sources'!S37/MethGWP)*10^6 -> 0 | S24: =('Additional Emission Sources'!T37/MethGWP)*10^6 -> 0 | T24: =('Additional Emission Sources'!U37/MethGWP)*10^6 -> 0 | U24: =('Additional Emission Sources'!V37/MethGWP)*10^6 -> 0 | V24: =('Additional Emission Sources'!W37/MethGWP)*10^6 -> 0 | W24: =('Additional Emission Sources'!X37/MethGWP)*10^6 -> 0 | X24: =('Additional Emission Sources'!Y37/MethGWP)*10^6 -> 0 | Y24: =('Additional Emission Sources'!Z37/MethGWP)*10^6 -> 0 | Z24: =('Additional Emission Sources'!AA37/MethGWP)*10^6 -> 0 | AA24: =('Additional Emission Sources'!AB37/MethGWP)*10^6 -> 0 | AB24: =('Additional Emission Sources'!AC37/MethGWP)*10^6 -> 0 | AC24: =('Additional Emission Sources'!AD37/MethGWP)*10^6 -> 0 | AD24: =('Additional Emission Sources'!AE37/MethGWP)*10^6 -> 0 | AE24: =('Additional Emission Sources'!AF37/MethGWP)*10^6 -> 0 | AF24: =('Additional Emission Sources'!AG37/MethGWP)*10^6 -> 0 | AG24: =('Additional Emission Sources'!AH37/MethGWP)*10^6 -> 0 | AH24: =('Additional Emission Sources'!AI37/MethGWP)*10^6 -> 0 | AI24: =('Additional Emission Sources'!AJ37/MethGWP)*10^6 -> 0 | AJ24: =('Additional Emission Sources'!AK37/MethGWP)*10^6 -> 0 | AK24: =('Additional Emission Sources'!AL37/MethGWP)*10^6 -> 0 | AL24: =('Additional Emission Sources'!AM37/MethGWP)*10^6 -> 0
B25: Emissions by Gas (MMTCO2)
C26: 1990 | D26: 1991 | E26: 1992 | F26: 1993 | G26: 1994 | H26: 1995 | I26: 1996 | J26: 1997 | K26: 1998 | L26: 1999 | M26: 2000 | N26: 2001 | O26: 2002 | P26: 2003 | Q26: 2004 | R26: 2005 | S26: 2006 | T26: 2007 | U26: 2008 | V26: 2009 | W26: 2010 | X26: 2011 | Y26: 2012 | Z26: 2013 | AA26: 2014 | AB26: 2015 | AC26: 2016 | AD26: 2017 | AE26: 2018 | AF26: 2019 | AG26: 2020 | AH26: 2021 | AI26: 2022 | AJ26: 2023 | AK26: 2024 | AL26: 2025
B27: Natural Gas Flaring | C27: ='Natural Gas - Venting_Flaring'!$N$8*CO2_C -> 0 | D27: ='Natural Gas - Venting_Flaring'!$N$15*CO2_C -> 0 | E27: ='Natural Gas - Venting_Flaring'!$N$22*CO2_C -> 0 | F27: ='Natural Gas - Venting_Flaring'!$N$29*CO2_C -> 0 | G27: ='Natural Gas - Venting_Flaring'!$N$36*CO2_C -> 0 | H27: ='Natural Gas - Venting_Flaring'!$N$43*CO2_C -> 0 | I27: ='Natural Gas - Venting_Flaring'!$N$50*CO2_C -> 0 | J27: ='Natural Gas - Venting_Flaring'!$N$57*CO2_C -> 0 | K27: ='Natural Gas - Venting_Flaring'!$N$64*CO2_C -> 0 | L27: ='Natural Gas - Venting_Flaring'!$N$71*CO2_C -> 0 | M27: ='Natural Gas - Venting_Flaring'!$N$78*CO2_C -> 0 | N27: ='Natural Gas - Venting_Flaring'!$N$85*CO2_C -> 0 | O27: ='Natural Gas - Venting_Flaring'!$N$92*CO2_C -> 0 | P27: ='Natural Gas - Venting_Flaring'!$N$99*CO2_C -> 0 | Q27: ='Natural Gas - Venting_Flaring'!$N$106*CO2_C -> 0 | R27: ='Natural Gas - Venting_Flaring'!$N$113*CO2_C -> 0 | S27: ='Natural Gas - Venting_Flaring'!$N$120*CO2_C -> 0 | T27: ='Natural Gas - Venting_Flaring'!$N$127*CO2_C -> 0 | U27: ='Natural Gas - Venting_Flaring'!$N$134*CO2_C -> 0 | V27: ='Natural Gas - Venting_Flaring'!$N$141*CO2_C -> 0 | W27: ='Natural Gas - Venting_Flaring'!$N$148*CO2_C -> 0 | X27: ='Natural Gas - Venting_Flaring'!$N$155*CO2_C -> 0 | Y27: ='Natural Gas - Venting_Flaring'!$N$162*CO2_C -> 0 | Z27: ='Natural Gas - Venting_Flaring'!$N$169*CO2_C -> 0 | AA27: ='Natural Gas - Venting_Flaring'!$N$176*CO2_C -> 0 | AB27: ='Natural Gas - Venting_Flaring'!$N$183*CO2_C -> 0 | AC27: ='Natural Gas - Venting_Flaring'!$N$190*CO2_C -> 0 | AD27: ='Natural Gas - Venting_Flaring'!$N$197*CO2_C -> 0 | AE27: ='Natural Gas - Venting_Flaring'!$N$204*CO2_C -> 0 | AF27: ='Natural Gas - Venting_Flaring'!$N$211*CO2_C -> 0 | AG27: ='Natural Gas - Venting_Flaring'!$N$218*CO2_C -> 0 | AH27: ='Natural Gas - Venting_Flaring'!$N$225*CO2_C -> 0 | AI27: ='Natural Gas - Venting_Flaring'!$N$232*CO2_C -> 0 | AJ27: ='Natural Gas - Venting_Flaring'!$N$239*CO2_C -> 0 | AK27: ='Natural Gas - Venting_Flaring'!$N$246*CO2_C -> 0 | AL27: ='Natural Gas - Venting_Flaring'!$N$253*CO2_C -> 0
B28: Additional Emission Sources* | C28: ='Additional Emission Sources'!D36 -> 0 | D28: ='Additional Emission Sources'!E36 -> 0 | E28: ='Additional Emission Sources'!F36 -> 0 | F28: ='Additional Emission Sources'!G36 -> 0 | G28: ='Additional Emission Sources'!H36 -> 0 | H28: ='Additional Emission Sources'!I36 -> 0 | I28: ='Additional Emission Sources'!J36 -> 0 | J28: ='Additional Emission Sources'!K36 -> 0 | K28: ='Additional Emission Sources'!L36 -> 0 | L28: ='Additional Emission Sources'!M36 -> 0 | M28: ='Additional Emission Sources'!N36 -> 0 | N28: ='Additional Emission Sources'!O36 -> 0 | O28: ='Additional Emission Sources'!P36 -> 0 | P28: ='Additional Emission Sources'!Q36 -> 0 | Q28: ='Additional Emission Sources'!R36 -> 0 | R28: ='Additional Emission Sources'!S36 -> 0 | S28: ='Additional Emission Sources'!T36 -> 0 | T28: ='Additional Emission Sources'!U36 -> 0 | U28: ='Additional Emission Sources'!V36 -> 0 | V28: ='Additional Emission Sources'!W36 -> 0 | W28: ='Additional Emission Sources'!X36 -> 0 | X28: ='Additional Emission Sources'!Y36 -> 0 | Y28: ='Additional Emission Sources'!Z36 -> 0 | Z28: ='Additional Emission Sources'!AA36 -> 0 | AA28: ='Additional Emission Sources'!AB36 -> 0 | AB28: ='Additional Emission Sources'!AC36 -> 0 | AC28: ='Additional Emission Sources'!AD36 -> 0 | AD28: ='Additional Emission Sources'!AE36 -> 0 | AE28: ='Additional Emission Sources'!AF36 -> 0 | AF28: ='Additional Emission Sources'!AG36 -> 0 | AG28: ='Additional Emission Sources'!AH36 -> 0 | AH28: ='Additional Emission Sources'!AI36 -> 0 | AI28: ='Additional Emission Sources'!AJ36 -> 0 | AJ28: ='Additional Emission Sources'!AK36 -> 0 | AK28: ='Additional Emission Sources'!AL36 -> 0 | AL28: ='Additional Emission Sources'!AM36 -> 0
N32: ="Greenhouse Gas Emissions from Natural Gas and Oil Activites, 1990-"&B51 -> Greenhouse Gas Emissions from Natural Gas and Oil Activites, 1990-1990
B51: =MAX(C51:AL51) -> 1990 | C51: 1990 | D51: =IFERROR((IF(D12+D13=0,0,D11)),0) -> 0 | E51: =IFERROR((IF(E12+E13=0,0,E11)),0) -> 0 | F51: 0 | G51: 0 | H51: 0 | I51: 0 | J51: 0 | K51: 0 | L51: 0 | M51: 0 | N51: 0 | O51: 0 | P51: 0 | Q51: 0 | R51: 0 | S51: 0 | T51: 0 | U51: 0 | V51: 0 | W51: 0 | X51: 0 | Y51: 0 | Z51: =IFERROR((IF(Z12+Z13=0,0,Z11)),0) -> 0 | AA51: 0 | AB51: 0 | AC51: 0 | AD51: 0 | AE51: 0 | AF51: 0 | AG51: 0 | AH51: 0 | AI51: 0 | AJ51: 0 | AK51: 0 | AL51: 0

Sheet Tracker (hidden)
A1: Sector | B1: Sum | C1: Not included? | D1: Text of missing sector | E1: "and"? | F1: Punctuation | G1: Text used
A2: Natural Gas Production | B2: =SUM(Summary!C20:AL20) ->  | C2: =IF(ISERROR(B2),TRUE,IF(B2=0,TRUE,FALSE)) -> TRUE | D2: =IF(C2=TRUE," "&A2,"") -> Natural Gas Production | E2: =IF(AND($C$10=A2,$C$9>1)," and","") ->  | F2: =IF(C2=TRUE,IF($C$10=A2,".",","),"") -> , | G2: =E2&D2&F2 -> Natural Gas Production,
A3: Natural Gas Flaring | B3: =SUM(Summary!C27:AL27) -> 0 | C3: =IF(ISERROR(B3),TRUE,IF(B3=0,TRUE,FALSE)) -> TRUE | D3: =IF(C3=TRUE," "&A3,"") -> Natural Gas Flaring | E3: =IF(AND($C$10=A3,$C$9>1)," and","") ->  | F3: =IF(C3=TRUE,IF($C$10=A3,".",","),"") -> , | G3: =E3&D3&F3 -> Natural Gas Flaring,
A4: Natural Gas Transmission | B4: =SUM(Summary!C21:AL21) -> 0 | C4: =IF(ISERROR(B4),TRUE,IF(B4=0,TRUE,FALSE)) -> TRUE | D4: =IF(C4=TRUE," "&A4,"") -> Natural Gas Transmission | E4: =IF(AND($C$10=A4,$C$9>1)," and","") ->  | F4: =IF(C4=TRUE,IF($C$10=A4,".",","),"") -> , | G4: =E4&D4&F4 -> Natural Gas Transmission,
A5: Natural Gas Distribution | B5: =SUM(Summary!C22:AL22) -> 0 | C5: =IF(ISERROR(B5),TRUE,IF(B5=0,TRUE,FALSE)) -> TRUE | D5: =IF(C5=TRUE," "&A5,"") -> Natural Gas Distribution | E5: =IF(AND($C$10=A5,$C$9>1)," and","") ->  | F5: =IF(C5=TRUE,IF($C$10=A5,".",","),"") -> , | G5: =E5&D5&F5 -> Natural Gas Distribution,
A6: Oil | B6: =SUM(Summary!C23:AL23) -> 0 | C6: =IF(ISERROR(B6),TRUE,IF(B6=0,TRUE,FALSE)) -> TRUE | D6: =IF(C6=TRUE," "&A6,"") -> Oil | E6: =IF(AND($C$10=A6,$C$9>1)," and","") -> and | F6: =IF(C6=TRUE,IF($C$10=A6,".",","),"") -> . | G6: =E6&D6&F6 -> and Oil.
B9: Count | C9: =COUNTIF(C2:C8,TRUE) -> 5
B10: Last | C10: =IF(C8=TRUE,A8,IF(C7=TRUE,A7,IF(C6=TRUE,A6,IF(C5=TRUE,A5,IF(C4=TRUE,A4,IF(C2=TRUE,A2,)))))) -> Oil
A12: Part A | B12: =IF(C9>1,"Emissions were not calculated for the following sources:","Emissions were not calculated for the following source:") -> Emissions were not calculated for the following sources:
A13: Part B | B13: =G2&G3&G4&G5&G6&G7&G8 -> Natural Gas Production, Natural Gas Flaring, Natural Gas Transmission, Natural Gas Distribution, and Oil.
A14: Final | B14: =IF(C9=0,0,B12&B13) -> Emissions were not calculated for the following sources: Natural Gas Production, Natural Gas Flaring, Natural Gas Transmission, Natural Gas Distribution, and Oil.

Sheet Uncertainty
A2: Uncertainty Associated With Natural Gas and Oil Emissions Estimates
B3: Excerpted from EIIP Guidance, Chapter 5.

Sheet Gas Data Sources
B4: Activity Factor for Natural Gas - Production | C4: Recommended Source
B6: Total number of wells | C6: EIA Natural Gas Navigator
B7: Data on the total number of wells are from EIA's Natural Gas Navigator. "Number of Producing Gas Wells" https://www.eia.gov/dnav/ng/NG_PROD_WELLS_S1_A.htm
B8: Number of off-shore platforms in the Gulf of Mexico | C8: BOEM*
B9: Number of off-shore platforms not including those in the Gulf of Mexico | C9: BOEM*
B17: Activity Factor for Natural Gas - Transmission | C17: Recommended Source
B18: Miles of gathering pipeline | C18: OPS**
B19: Number of gas processing plants | C19: Oil and Gas Journal
B20: Number of gas transmission compressor stations1 | C20: State Sources / EIAGIS2/ EIA†
B21: Number of gas storage compressor stations1 | C21: State Sources / EIAGIS/ EIA Natural Gas Annual
B22: Miles of transmission pipeline | C22: OPS
B23: Number of LNG storage compressor stations | C23: State Sources / EIAGIS/ EIA
B27: Activity Factor for Natural Gas - Distribution | C27: Recommended Source
B28: Miles of cast iron distribution pipeline | C28: OPS
B29: Miles of unprotected steel distribution pipeline | C29: OPS
B30: Miles of protected steel distribution pipeline | C30: OPS
B31: Miles of plastic distribution pipeline | C31: OPS
B32: Total number of services | C32: OPS
B33: Number of unprotected steel services | C33: OPS
B34: Number of protected steel services | C34: OPS
B37: Activity Factor for Natural Gas - Production | C37: Recommended Source
B38: Natural Gas Vented and Flared | C38: EIA Natural Gas Navigator
B41: Notes
B43: 1 If this data is not available, an alternate method using miles of transmission pipeline may be used. See the sheet "Natural Gas - Transmission"
B44: 2 After 9/11 the EIA GIS database is not publicly available.
B45: * Bureu of Ocean Energy Management (BOEM) is a comprehensive source of data for off-shore oil and gas production activities. The website is http://www.boem.gov.
B46: ** The Office of Pipeline Safety (OPS) has detailed and exhaustive data on all kinds of pipeline (transmission, gathering, distribution, services) and it is accessible to the public on the website https://www.phmsa.dot.gov/about-phmsa/offices/office-pipeline-safety. The phone number is 202-366-4595.
B47: † The Energy Information Administration is available online at http://eia.doe.gov, by phone at 202-586-8800, and by email at infoctr@eia.doe.gov.

Sheet Additional Data Sources
A1: Possible Data Sources for Additional Emission Sources
B4: Additional Emission Sources
C5: For state-level data on additional emission sources go to:
D6: https://www.epa.gov/ghgemissions/state-ghg-emissions-and-removals

Sheet Oil Data Sources
B3: Activity Data for Petroleum Systems | D3: Recommended Source
B5: All the activity data for petroleum systems | D5: EIA's Petroleum Supply Annual (PSA)†
B6: Oil Production | D6: PSA Table 14
B7: Oil Refined | D7: PSA Table 18 and Table 1*
B8: Oil Transported | D8: Assumed to equal the amount of oil refined as estimated above.
B9: EIA data available online at: http://www.eia.gov/dnav/pet/PET_CRD_CRPDN_ADC_MBBL_A.htm
B11: Petroleum Administration for Defense (PAD) Districts
B12: PAD District | C12: States Included
B14: I | C14: ME, NH, VT, MA, RI, CT, NJ, DE, MD, DC, VA, NC, SC, GA, FL, NY, PA, WV
B15: II | C15: IN,IL,KY,TN, MI, OH, MN, WI, ND, SD, OK, KS, MO, NE, IA
B16: III | C16: TX, MS, LA, AR, AL, NM
B17: IV | C17: MT, WY, CO, UT, ID
B18: V | C18: WA, OR, NV, CA, AZ, AK, HI
B19: Source | C19: Petroleum Supply Annual 2023, Appendix A, page 123
B22: Notes
B24: † The Energy Information Administration is available online at http://eia.doe.gov, by phone at 202-586-8800, and by email at infoctr@eia.doe.gov.
B25: *Table found in the EIA's Refinery Capacity Report. This method assumes that refining in your state equals the total input of crude oil into your PADD times the ratio of your state's refining capacity to your PADD's total refining capacity. Use the calculator below to estimate oil refined for your state.
B27: Calculator to Estimate Amount of Crude Oil Refined Annually
B28: User inputs are yellow, calculations are white, and the final product is gray.
B29: Daily Gross Crude Input into Refinery for PADD1 '000 bbl | C29: Annual Gross Crude Input into Refinery for PADD (Daily x 365) '000 bbl | D29: State Operating Refining Capacity '000 bbl Daily | E29: State Operating Refining Capacity '000 bbl Annual = Daily x 365 | F29: PADD Operating Refining Capacity Daily '000 Barrels | G29: PADD Operating Refining Capacity Annual = Daily x 365 | H29: Estimated Crude Refined Annually '000 bbl
C30: =365*B30 -> 0 | E30: =D30*365 -> 0 | G30: =F30*365 -> 0 | H30: =IF(G30=0,0,C30*E30/G30) -> 0
B31: 1 This is the Gross Input that goes into the Atmospheric Crude Distillation Unit of a Refinery (Data available from Table 16 of PSA for the respective year).

Sheet Emission Factors
A1: Note: The activity data and total emissions below are national, not state totals. They are used to calculate the implied emission factors that can be used at the state level when more specific data is not available.
A3: Implied Emission Factors for Oil Activities- From PetroleumSystems_90_22_FR.xlsx
A4: Year | B4: Activity Data | E4: Total Emissions (Gg/yr) from | H4: Implied Emissions Factor kg/1000 bbl
B5: Production ('000 Barrels/day) | C5: Refining ('000 Barrels/day) | D5: Transportation (MMBarrels/yr) | E5: Production | F5: Refining | G5: Transportation | H5: Production | I5: Refining | J5: Transportation
A6: 1990 | B6: 7355.306849 | C6: 13409.25753 | D6: 4894.285 | E6: 1626.337618 | F6: 25.74217089 | G6: 6.550431195 | H6: =E6*Control!$D$74/(B6*Control!$D$77) -> 605.7829527 | I6: =F6*Control!$D$74/(C6*Control!$D$77) -> 5.259537705 | J6: =G6*Control!$D$74/(D6*Control!$D$76) -> 1.338383685
A7: 1991 | B7: 7416.545205 | C7: 13301.4137 | D7: 4854.865 | E7: 1629.753215 | F7: 25.53513971 | G7: 6.508857571 | H7: =E7*Control!$D$74/(B7*Control!$D$77) -> 602.042754 | I7: =F7*Control!$D$74/(C7*Control!$D$77) -> 5.259537705 | J7: =G7*Control!$D$74/(D7*Control!$D$76) -> 1.340687655
A8: 1992 | B8: 7190.772603 | C8: 13448.2274 | D8: 4895.015 | E8: 1597.537739 | F8: 25.81698256 | G8: 6.295077638 | H8: =E8*Control!$D$74/(B8*Control!$D$77) -> 608.6711351 | I8: =F8*Control!$D$74/(C8*Control!$D$77) -> 5.259537705 | J8: =G8*Control!$D$74/(D8*Control!$D$76) -> 1.286018049
A9: 1993 | B9: 6846.665753 | C9: 13612.71507 | D9: 4968.745 | E9: 1595.721599 | F9: 26.13275468 | G9: 6.187346605 | H9: =E9*Control!$D$74/(B9*Control!$D$77) -> 638.5356253 | I9: =F9*Control!$D$74/(C9*Control!$D$77) -> 5.259537705 | J9: =G9*Control!$D$74/(D9*Control!$D$76) -> 1.2452534
A10: 1994 | B10: 6661.578082 | C10: 13866.05753 | D10: 5061.09 | E10: 1586.777616 | F10: 26.61910413 | G10: 6.074250607 | H10: =E10*Control!$D$74/(B10*Control!$D$77) -> 652.5985106 | I10: =F10*Control!$D$74/(C10*Control!$D$77) -> 5.259537705 | J10: =G10*Control!$D$74/(D10*Control!$D$76) -> 1.200186246
A11: 1995 | B11: 6559.638356 | C11: 13973.47123 | D11: 5099.78 | E11: 1599.486212 | F11: 26.82530957 | G11: 5.969509572 | H11: =E11*Control!$D$74/(B11*Control!$D$77) -> 668.0481097 | I11: =F11*Control!$D$74/(C11*Control!$D$77) -> 5.259537705 | J11: =G11*Control!$D$74/(D11*Control!$D$76) -> 1.170542567
A12: 1996 | B12: 6482.238356 | C12: 14233.60274 | D12: 5181.175 | E12: 1650.391104 | F12: 27.32469216 | G12: 5.923855567 | H12: =E12*Control!$D$74/(B12*Control!$D$77) -> 697.5398336 | I12: =F12*Control!$D$74/(C12*Control!$D$77) -> 5.259537705 | J12: =G12*Control!$D$74/(D12*Control!$D$76) -> 1.143342112
A13: 1997 | B13: 6451.591781 | C13: 14661.55068 | D13: 5338.49 | E13: 1656.50777 | F13: 28.14623721 | G13: 5.894194015 | H13: =E13*Control!$D$74/(B13*Control!$D$77) -> 703.4508083 | I13: =F13*Control!$D$74/(C13*Control!$D$77) -> 5.259537705 | J13: =G13*Control!$D$74/(D13*Control!$D$76) -> 1.104093857 | M13: https://www.eia.gov/dnav/pet/pet_pnp_caprec_dcu_nus_a.htm
A14: 1998 | B14: 6251.832877 | C14: 14888.72055 | D14: 5434.485 | E14: 1618.899634 | F14: 28.58234229 | G14: 5.94575341 | H14: =E14*Control!$D$74/(B14*Control!$D$77) -> 709.4465816 | I14: =F14*Control!$D$74/(C14*Control!$D$77) -> 5.259537705 | J14: =G14*Control!$D$74/(D14*Control!$D$76) -> 1.094078539 | M14: 2570879
A15: 1999 | B15: 5881.457534 | C15: 14803.9726 | D15: 5403.45 | E15: 1577.57775 | F15: 28.41964901 | G15: 5.536271035 | H15: =E15*Control!$D$74/(B15*Control!$D$77) -> 734.8741018 | I15: =F15*Control!$D$74/(C15*Control!$D$77) -> 5.259537705 | J15: =G15*Control!$D$74/(D15*Control!$D$76) -> 1.024580784 | M15: 110284
A16: 2000 | B16: 5837.553425 | C16: 15107.93151 | D16: 5514.395 | E16: 1585.727359 | F16: 29.00316842 | G16: 5.195252603 | H16: =E16*Control!$D$74/(B16*Control!$D$77) -> 744.2259116 | I16: =F16*Control!$D$74/(C16*Control!$D$77) -> 5.259537705 | J16: =G16*Control!$D$74/(D16*Control!$D$76) -> 0.9421255827 | M16: 164278
A17: 2001 | B17: 5801.4 | C17: 15127.7726 | D17: 5521.637 | E17: 1584.267718 | F17: 29.041258 | G17: 5.159057884 | H17: =E17*Control!$D$74/(B17*Control!$D$77) -> 748.1744928 | I17: =F17*Control!$D$74/(C17*Control!$D$77) -> 5.259537705 | J17: =G17*Control!$D$74/(D17*Control!$D$76) -> 0.934334851 | M17: =SUM(M14:M16)/365 -> 7795.728767 | N17: 000 barrels/day
A18: 2002 | B18: 5744.076712 | C18: 14946.65753 | D18: 5456 | E18: 1577.502471 | F18: 28.69356574 | G18: 5.179858831 | H18: =E18*Control!$D$74/(B18*Control!$D$77) -> 752.4141468 | I18: =F18*Control!$D$74/(C18*Control!$D$77) -> 5.259537705 | J18: =G18*Control!$D$74/(D18*Control!$D$76) -> 0.9493876156
A19: 2003 | B19: 5649.30137 | C19: 15303.76712 | D19: 5585.875 | E19: 1589.640821 | F19: 29.37912018 | G19: 5.269801447 | H19: =E19*Control!$D$74/(B19*Control!$D$77) -> 770.923703 | I19: =F19*Control!$D$74/(C19*Control!$D$77) -> 5.259537705 | J19: =G19*Control!$D$74/(D19*Control!$D$76) -> 0.9434155699
A20: 2004 | B20: 5455.873973 | C20: 15517.4274 | D20: 5663.861 | E20: 1591.72111 | F20: 29.78929049 | G20: 5.212345053 | H20: =E20*Control!$D$74/(B20*Control!$D$77) -> 799.2999426 | I20: =F20*Control!$D$74/(C20*Control!$D$77) -> 5.259537705 | J20: =G20*Control!$D$74/(D20*Control!$D$76) -> 0.9202812451
A21: 2005 | B21: 5183.821918 | C21: 15220.08767 | D21: 5555.332 | E21: 1499.527179 | F21: 29.21847812 | G21: 5.122682427 | H21: =E21*Control!$D$74/(B21*Control!$D$77) -> 792.5221401 | I21: =F21*Control!$D$74/(C21*Control!$D$77) -> 5.259537705 | J21: =G21*Control!$D$74/(D21*Control!$D$76) -> 0.9221199429
A22: 2006 | B22: 5085.863014 | C22: 15242.06575 | D22: 5563.354 | E22: 1591.325806 | F22: 29.26067013 | G22: 5.033601976 | H22: =E22*Control!$D$74/(B22*Control!$D$77) -> 857.2383324 | I22: =F22*Control!$D$74/(C22*Control!$D$77) -> 5.259537705 | J22: =G22*Control!$D$74/(D22*Control!$D$76) -> 0.9047783002
A23: 2007 | B23: 5073.90137 | C23: 15156.43014 | D23: 5532.097 | E23: 1573.497101 | F23: 29.09627276 | G23: 5.111267687 | H23: =E23*Control!$D$74/(B23*Control!$D$77) -> 849.6323928 | I23: =F23*Control!$D$74/(C23*Control!$D$77) -> 5.259537705 | J23: =G23*Control!$D$74/(D23*Control!$D$76) -> 0.923929513
A24: 2008 | B24: 5013.369863 | C24: 14688.45753 | D24: 5361.287 | E24: 1626.055692 | F24: 28.19789113 | G24: 5.049683208 | H24: =E24*Control!$D$74/(B24*Control!$D$77) -> 888.6132929 | I24: =F24*Control!$D$74/(C24*Control!$D$77) -> 5.259537705 | J24: =G24*Control!$D$74/(D24*Control!$D$76) -> 0.9418789197
A25: 2009 | B25: 5356.69589 | C25: 14336.04384 | D25: 5232.656 | E25: 1580.770174 | F25: 27.52135153 | G25: 4.940161364 | H25: =E25*Control!$D$74/(B25*Control!$D$77) -> 808.4978648 | I25: =F25*Control!$D$74/(C25*Control!$D$77) -> 5.259537705 | J25: =G25*Control!$D$74/(D25*Control!$D$76) -> 0.9441020705
A26: 2010 | B26: 5484.39726 | C26: 14723.54521 | D26: 5374.094 | E26: 1577.584007 | F26: 28.05982133 | G26: 4.9908631 | H26: =E26*Control!$D$74/(B26*Control!$D$77) -> 788.0807605 | I26: =F26*Control!$D$74/(C26*Control!$D$77) -> 5.22131197 | J26: =G26*Control!$D$74/(D26*Control!$D$76) -> 0.928689208
A27: 2011 | B27: 5674.205479 | C27: 14806.43014 | D27: 5404.347 | E27: 1609.413252 | F27: 30.08360162 | G27: 5.243657021 | H27: =E27*Control!$D$74/(B27*Control!$D$77) -> 777.0870112 | I27: =F27*Control!$D$74/(C27*Control!$D$77) -> 5.56655626 | J27: =G27*Control!$D$74/(D27*Control!$D$76) -> 0.9702665319
A28: 2012 | B28: 6541.643836 | C28: 15039.76986 | D28: 5489.516 | E28: 1555.873947 | F28: 29.29831673 | G28: 6.165354774 | H28: =E28*Control!$D$74/(B28*Control!$D$77) -> 651.6203658 | I28: =F28*Control!$D$74/(C28*Control!$D$77) -> 5.337140238 | J28: =G28*Control!$D$74/(D28*Control!$D$76) -> 1.123114456
A29: 2013 | B29: 7495.4 | C29: 15312.34521 | D29: 5589.006 | E29: 1954.895734 | F29: 27.51578133 | G29: 7.171774409 | H29: =E29*Control!$D$74/(B29*Control!$D$77) -> 714.5554239 | I29: =F29*Control!$D$74/(C29*Control!$D$77) -> 4.923197672 | J29: =G29*Control!$D$74/(D29*Control!$D$76) -> 1.283193185
A30: 2014 | B30: 8781.449315 | C30: 15848.32055 | D30: 5784.637 | E30: 2070.043998 | F30: 26.99164457 | G30: 8.21378898 | H30: =E30*Control!$D$74/(B30*Control!$D$77) -> 645.8334172 | I30: =F30*Control!$D$74/(C30*Control!$D$77) -> 4.666091334 | J30: =G30*Control!$D$74/(D30*Control!$D$76) -> 1.419931619
A31: 2015 | B31: 9431.961644 | C31: 16187.80822 | D31: 5908.55 | E31: 2071.540315 | F31: 29.10786147 | G31: 8.356579139 | H31: =E31*Control!$D$74/(B31*Control!$D$77) -> 601.7256145 | I31: =F31*Control!$D$74/(C31*Control!$D$77) -> 4.926396743 | J31: =G31*Control!$D$74/(D31*Control!$D$76) -> 1.414319781
A32: 2016 | B32: 8874.29863 | C32: 16231.21918 | D32: 5924.395 | E32: 1763.371655 | F32: 28.13823677 | G32: 8.043757903 | H32: 439.4263339 | I32: 6.260167236 | J32: =G32*Control!$D$74/(D32*Control!$D$76) -> 1.357734908
A33: 2017 | B33: 9359.580822 | C33: 16589.70137 | D33: 6055.241 | E33: 2115.128368 | F33: 29.77304723 | G33: 7.593364497 | H33: =E33*Control!$D$74/(B33*Control!$D$77) -> 619.1380096 | I33: =F33*Control!$D$74/(C33*Control!$D$77) -> 4.916905409 | J33: =G33*Control!$D$74/(D33*Control!$D$76) -> 1.25401524
A34: 2018 | B34: 10959.47123 | C34: 16969.40274 | D34: 6193.832 | E34: 2052.390428 | F34: 27.80435162 | G34: 8.301590342 | H34: =E34*Control!$D$74/(B34*Control!$D$77) -> 513.0710557 | I34: =F34*Control!$D$74/(C34*Control!$D$77) -> 4.489038711 | J34: =G34*Control!$D$74/(D34*Control!$D$76) -> 1.340299566
A35: 2019 | B35: 12313.95068 | C35: 16562.72877 | D35: 6045.396 | E35: 1808.850791 | F35: 30.81379566 | G35: 9.020999039 | H35: =E35*Control!$D$74/(B35*Control!$D$77) -> 402.4504985 | I35: =F35*Control!$D$74/(C35*Control!$D$77) -> 5.097068193 | J35: =G35*Control!$D$74/(D35*Control!$D$76) -> 1.492209781
A36: 2020 | B36: 11353.92877 | C36: 14250.94795 | D36: 5201.596 | E36: 1858.292722 | F36: 25.86063808 | G36: 8.231576646 | H36: =E36*Control!$D$74/(B36*Control!$D$77) -> 448.4098009 | I36: =F36*Control!$D$74/(C36*Control!$D$77) -> 4.97167371 | J36: =G36*Control!$D$74/(D36*Control!$D$76) -> 1.5825098
A37: 2021 | B37: 11308.1589 | C37: 15146.50411 | D37: 5528.474 | E37: 1696.415636 | F37: 25.36621719 | G37: 7.866423015 | H37: =E37*Control!$D$74/(B37*Control!$D$77) -> 411.0053734 | I37: =F37*Control!$D$74/(C37*Control!$D$77) -> 4.588285517 | J37: =G37*Control!$D$74/(D37*Control!$D$76) -> 1.422892287
A38: 2022 | B38: 11992.24658 | C38: 15977.24658 | D38: 5831.695 | E38: 1377.426637 | F38: 24.6846469 | G38: 8.325999186 | H38: =E38*Control!$D$74/(B38*Control!$D$77) -> 314.6842907 | I38: =F38*Control!$D$74/(C38*Control!$D$77) -> 4.232842579 | J38: =G38*Control!$D$74/(D38*Control!$D$76) -> 1.42771513
A39: 2023 | B39: =B38 -> 11992.24658 | C39: 15977.24658 | D39: 5831.695 | E39: 1377.426637 | F39: 24.6846469 | G39: 8.325999186 | H39: =E39*Control!$D$74/(B39*Control!$D$77) -> 314.6842907 | I39: =F39*Control!$D$74/(C39*Control!$D$77) -> 4.232842579 | J39: =G39*Control!$D$74/(D39*Control!$D$76) -> 1.42771513
A40: 2024 | B40: =B39 -> 11992.24658 | C40: =C39 -> 15977.24658 | D40: =D39 -> 5831.695 | E40: =E39 -> 1377.426637 | F40: =F39 -> 24.6846469 | G40: =G39 -> 8.325999186 | H40: =H39 -> 314.6842907 | I40: =I39 -> 4.232842579 | J40: =J39 -> 1.42771513
A41: 2025 | B41: 11992.24658 | C41: 15977.24658 | D41: 5831.695 | E41: 1377.426637 | F41: 24.6846469 | G41: 8.325999186 | H41: 314.6842907 | I41: 4.232842579 | J41: 1.42771513
A43: Sources for activity data
A44: Production: PSA website http://www.eia.gov/petroleum/supply/annual/volume1/pdf/table2.pdf. Field production of crude oil column
A45: Refining: PSA website http://www.eia.gov/petroleum/supply/annual/volume1/pdf/table2.pdf. Refinery and Blender Net Inputs column
A46: Transportation: Petroleum Model at ICF (PetroleumSystems_90_22_FR.xlsx, Transportation Emissions, Row 132 - Refinery Feed)
A48: Sources for Emissions
A49: Petroleum Model at ICF (PetroleumSystems_90_22_FR.xlsx), CH4 Summary Tab, Converted to Gg from MMT (MMT * 1000)
A52: Natural Gas Well Emission Factors by Region from Natural Gas Systems 1990-2011.xls; and from the file NG EF's NEW.xls
A53: Scfd/well are converted to MTCH4/well by using the conversion that 1 scfd/well = 0.0070299 metric tons CH4/well
B54: Production Emission Factors Metric Tons CH4/well
C55: 1990 | D55: 1991 | E55: 1992 | F55: 1993 | G55: 1994 | H55: 1995 | I55: 1996 | J55: 1997 | K55: 1998 | L55: 1999 | M55: 2000 | N55: 2001 | O55: 2002 | P55: 2003 | Q55: 2004 | R55: 2005 | S55: 2006 | T55: 2007 | U55: 2008 | V55: 2009 | W55: 2010 | X55: 2011 | Y55: 2012 | Z55: 2013 | AA55: 2014 | AB55: 2015 | AC55: 2016 | AD55: 2017 | AE55: 2018 | AF55: 2019 | AG55: 2020 | AH55: 2021 | AI55: 2022 | AJ55: 2023 | AK55: 2024 | AL55: 2025
B56: NE | C56: =E72 -> 4.02 | D56: =AVERAGE(F72:F73) -> 4.02 | E56: 4.03 | F56: 4.03 | G56: 4.05 | H56: 4.06 | I56: 4.08 | J56: 4.05 | K56: 4.07 | L56: =AVERAGE(N72:N73) -> 4.09 | M56: =AVERAGE(O72:O73) -> 4.08 | N56: =AVERAGE(P72:P73) -> 4.08 | O56: 4.09 | P56: 4.1 | Q56: 4.11 | R56: 4.1 | S56: 4.1 | T56: =AVERAGE(V72:V73) -> 4.1 | U56: 4.1 | V56: 4.1 | W56: 4.1 | X56: 4.1 | Y56: 4.1 | Z56: 4.1 | AA56: 4.1 | AB56: 4.1 | AC56: 4.1 | AD56: 4.1 | AE56: 4.1 | AF56: 4.1 | AG56: 4.1 | AH56: =AVERAGE(AJ72:AJ73) -> 4.1 | AI56: =AVERAGE(AK72:AK73) -> 4.1 | AJ56: =AI56 -> 4.1 | AK56: =AJ56 -> 4.1 | AL56: 4.1
B57: MC | C57: =E77 -> 8.88 | D57: =AVERAGE(F77:F77) -> 8.93 | E57: 8.97 | F57: 9.06 | G57: 9.15 | H57: 9.24 | I57: 9.34 | J57: 9.33 | K57: 9.33 | L57: =AVERAGE(N77:N77) -> 9.34 | M57: =AVERAGE(O77:O77) -> 9.34 | N57: =AVERAGE(P77:P77) -> 9.34 | O57: 9.34 | P57: 9.35 | Q57: 9.36 | R57: 9.36 | S57: 9.36 | T57: =AVERAGE(V77:V77) -> 9.36 | U57: 9.36 | V57: 9.36 | W57: 9.36 | X57: 9.36 | Y57: 9.36 | Z57: 9.36 | AA57: 9.36 | AB57: 9.36 | AC57: 9.36 | AD57: 9.36 | AE57: 9.36 | AF57: 9.36 | AG57: 9.36 | AH57: =AVERAGE(AJ77:AJ77) -> 9.36 | AI57: =AVERAGE(AK77:AK77) -> 9.36 | AJ57: =AI57 -> 9.36 | AK57: =AJ57 -> 9.36 | AL57: 9.36
B58: RM | C58: =E81 -> 9.07 | D58: =AVERAGE(F81:F81) -> 9.33 | E58: 9.59 | F58: 9.88 | G58: 10.16 | H58: 10.45 | I58: 11.88 | J58: 10.81 | K58: 10.82 | L58: =AVERAGE(N81:N81) -> 10.81 | M58: =AVERAGE(O81:O81) -> 10.78 | N58: =AVERAGE(P81:P81) -> 10.69 | O58: 10.66 | P58: 10.64 | Q58: 10.63 | R58: 10.62 | S58: 10.62 | T58: =AVERAGE(V81:V81) -> 10.62 | U58: 10.62 | V58: 10.62 | W58: 10.62 | X58: 10.62 | Y58: 10.62 | Z58: 10.62 | AA58: 10.62 | AB58: 10.62 | AC58: 10.62 | AD58: 10.62 | AE58: 10.62 | AF58: 10.62 | AG58: 10.62 | AH58: =AVERAGE(AJ81:AJ81) -> 10.62 | AI58: =AVERAGE(AK81:AK81) -> 10.62 | AJ58: 10.62 | AK58: 10.62 | AL58: 10.62
B59: SW | C59: =E85 -> 8.63 | D59: =AVERAGE(F85:F85) -> 8.98 | E59: 9.96 | F59: 10.19 | G59: 10.37 | H59: 10.58 | I59: 10.78 | J59: 10.78 | K59: 10.78 | L59: =AVERAGE(N85:N85) -> 10.78 | M59: =AVERAGE(O85:O85) -> 10.78 | N59: =AVERAGE(P85:P85) -> 10.78 | O59: 10.78 | P59: 10.78 | Q59: 10.78 | R59: 10.78 | S59: 10.78 | T59: =AVERAGE(V85:V85) -> 10.78 | U59: 10.78 | V59: 10.78 | W59: 10.78 | X59: 10.78 | Y59: 10.78 | Z59: 10.78 | AA59: 10.78 | AB59: 10.78 | AC59: 10.78 | AD59: 10.78 | AE59: 10.78 | AF59: 10.78 | AG59: 10.78 | AH59: =AVERAGE(AJ85:AJ85) -> 10.78 | AI59: =AVERAGE(AK85:AK85) -> 10.78 | AJ59: 10.78 | AK59: 10.78 | AL59: 10.78
B60: WC | C60: =E89 -> 10.09 | D60: =AVERAGE(F89:F89) -> 10.46 | E60: 10.83 | F60: 11.2 | G60: 11.57 | H60: 11.94 | I60: 12.31 | J60: 12.31 | K60: 12.31 | L60: =AVERAGE(N89:N89) -> 12.31 | M60: =AVERAGE(O89:O89) -> 12.31 | N60: =AVERAGE(P89:P89) -> 12.31 | O60: 12.31 | P60: 12.31 | Q60: 12.31 | R60: 12.31 | S60: 12.31 | T60: =AVERAGE(V89:V89) -> 12.31 | U60: 12.31 | V60: 12.31 | W60: 12.31 | X60: 12.31 | Y60: 12.31 | Z60: 12.31 | AA60: 12.31 | AB60: 12.31 | AC60: 12.31 | AD60: 12.31 | AE60: 12.31 | AF60: 12.31 | AG60: 12.31 | AH60: =AVERAGE(AJ89:AJ89) -> 12.31 | AI60: =AVERAGE(AK89:AK89) -> 12.31 | AJ60: 12.31 | AK60: 12.31 | AL60: 12.31
B61: GC | C61: =E93 -> 10.69 | D61: =AVERAGE(F93:F93) -> 10.73 | E61: 11.08 | F61: 11.27 | G61: 11.47 | H61: 11.67 | I61: 11.87 | J61: 11.87 | K61: 11.87 | L61: =AVERAGE(N93:N93) -> 11.87 | M61: =AVERAGE(O93:O93) -> 11.88 | N61: =AVERAGE(P93:P93) -> 11.87 | O61: 11.87 | P61: 11.87 | Q61: 11.87 | R61: 11.87 | S61: 11.87 | T61: =AVERAGE(V93:V93) -> 11.87 | U61: 11.87 | V61: 11.87 | W61: 11.87 | X61: 11.87 | Y61: 11.87 | Z61: 11.87 | AA61: 11.87 | AB61: 11.87 | AC61: 11.87 | AD61: 11.87 | AE61: 11.87 | AF61: 11.87 | AG61: 11.87 | AH61: =AVERAGE(AJ93:AJ93) -> 11.87 | AI61: =AVERAGE(AK93:AK93) -> 11.87 | AJ61: 11.87 | AK61: 11.87 | AL61: 11.87
B62: Offshore
B63: Shallow water | C63: =E96 -> 8899 | D63: =F96 -> 8899 | E63: 8899 | F63: 8899 | G63: 8899 | H63: 8899 | I63: 8899 | J63: 8899 | K63: 8899 | L63: =N96 -> 8899 | M63: 8899 | N63: 8899 | O63: 8899 | P63: 8899 | Q63: 8899 | R63: 8899 | S63: 8899 | T63: =V96 -> 8899 | U63: 8899 | V63: 8899 | W63: 8899 | X63: 8899 | Y63: 8899 | Z63: 8899 | AA63: 8899 | AB63: 8899 | AC63: 8899 | AD63: 8899 | AE63: 8899 | AF63: 8899 | AG63: 8899 | AH63: =AJ96 -> 8899 | AI63: =AK96 -> 8899 | AJ63: =AI63 -> 8899 | AK63: =AJ63 -> 8899 | AL63: 8899
B64: Deep Water | C64: =E97 -> 93836 | D64: 93836 | E64: 93836 | F64: 93836 | G64: 93836 | H64: 93836 | I64: 93836 | J64: 93836 | K64: 93836 | L64: 93836 | M64: 93836 | N64: 93836 | O64: 93836 | P64: 93836 | Q64: 93836 | R64: 93836 | S64: 93836 | T64: 93836 | U64: 93836 | V64: 93836 | W64: 93836 | X64: 93836 | Y64: 93836 | Z64: 93836 | AA64: 93836 | AB64: 93836 | AC64: 93836 | AD64: 93836 | AE64: 93836 | AF64: 93836 | AG64: 93836 | AH64: 93836 | AI64: 93836 | AJ64: =AI64 -> 93836 | AK64: =AJ64 -> 93836 | AL64: 93836
A67: 0.0070299 | B67: scfd/well conversion to tonne/well
A68: Source Hyperlink | B68: Region | C68: Source | D68: Units
A69: EF | E69: 1990 | F69: 1991 | G69: 1992 | H69: 1993 | I69: 1994 | J69: 1995 | K69: 1996 | L69: 1997 | M69: 1998 | N69: 1999 | O69: 2000 | P69: 2001 | Q69: 2002 | R69: 2003 | S69: 2004 | T69: 2005 | U69: 2006 | V69: 2007 | W69: 2008 | X69: 2009 | Y69: 2010 | Z69: 2011 | AA69: 2012 | AB69: 2013 | AC69: 2014 | AD69: 2015 | AE69: 2016 | AF69: 2017 | AG69: 2018 | AH69: 2019 | AI69: 2020 | AJ69: 2021 | AK69: 2022 | AL69: 2023 | AM69: 2024 | AN69: 2025
B70: North East
C71: Gas Wells
A72: EF - 1 | C72: NE - Associated Gas Wells | D72: scfd/well | E72: 4.02 | F72: 4.02 | G72: 4.03 | H72: 4.03 | I72: 4.05 | J72: 4.06 | K72: 4.08 | L72: 4.05 | M72: 4.07 | N72: 4.09 | O72: 4.08 | P72: 4.08 | Q72: 4.09 | R72: 4.1 | S72: 4.11 | T72: 4.1 | U72: 4.1 | V72: =U72 -> 4.1 | W72: =V72 -> 4.1 | X72: 4.1 | Y72: 4.1 | Z72: 4.1 | AA72: 4.1 | AB72: 4.1 | AC72: 4.1 | AD72: 4.1 | AE72: =AD72 -> 4.1 | AF72: =AE72 -> 4.1 | AG72: 4.1 | AH72: 4.1 | AI72: 4.1 | AJ72: =AI72 -> 4.1 | AK72: =AJ72 -> 4.1 | AL72: =AK72 -> 4.1 | AM72: =AL72 -> 4.1 | AN72: =AM72 -> 4.1
C73: Drilling and Well Completion
B75: Mid-Central
C76: Gas Wells
A77: 29 | C77: MC - Associated Gas Wells | D77: scfd/well | E77: 8.88 | F77: 8.93 | G77: 8.97 | H77: 9.06 | I77: 9.15 | J77: 9.24 | K77: 9.34 | L77: 9.33 | M77: 9.33 | N77: 9.34 | O77: 9.34 | P77: 9.34 | Q77: 9.34 | R77: 9.35 | S77: 9.36 | T77: 9.36 | U77: 9.36 | V77: =U77 -> 9.36 | W77: =V77 -> 9.36 | X77: 9.36 | Y77: 9.36 | Z77: 9.36 | AA77: 9.36 | AB77: 9.36 | AC77: 9.36 | AD77: 9.36 | AE77: =AD77 -> 9.36 | AF77: 9.36 | AG77: 9.36 | AH77: 9.36 | AI77: 9.36 | AJ77: =AI77 -> 9.36 | AK77: =AJ77 -> 9.36 | AL77: =AK77 -> 9.36 | AM77: =AL77 -> 9.36 | AN77: =AM77 -> 9.36
B79: Rocky Mountain
C80: Gas Wells
A81: 57 | C81: RM - Associated Gas Wells | E81: 9.07 | F81: 9.33 | G81: 9.59 | H81: 9.88 | I81: 10.16 | J81: 10.45 | K81: 11.88 | L81: 10.81 | M81: 10.82 | N81: 10.81 | O81: 10.78 | P81: 10.69 | Q81: 10.66 | R81: 10.64 | S81: 10.63 | T81: 10.62 | U81: 10.62 | V81: =U81 -> 10.62 | W81: =V81 -> 10.62 | X81: 10.62 | Y81: 10.62 | Z81: 10.62 | AA81: 10.62 | AB81: 10.62 | AC81: 10.62 | AD81: 10.62 | AE81: =AD81 -> 10.62 | AF81: =AE81 -> 10.62 | AG81: 10.62 | AH81: 10.62 | AI81: 10.62 | AJ81: =AI81 -> 10.62 | AK81: =AJ81 -> 10.62 | AL81: =AK81 -> 10.62 | AM81: =AL81 -> 10.62 | AN81: =AM81 -> 10.62
B83: South West
C84: Gas Wells
A85: 86 | C85: SW - Associated Gas Wells | E85: 8.63 | F85: 8.98 | G85: 9.96 | H85: 10.19 | I85: 10.37 | J85: 10.58 | K85: 10.78 | L85: 10.78 | M85: 10.78 | N85: 10.78 | O85: 10.78 | P85: 10.78 | Q85: 10.78 | R85: 10.78 | S85: 10.78 | T85: 10.78 | U85: 10.78 | V85: =U85 -> 10.78 | W85: =V85 -> 10.78 | X85: 10.78 | Y85: 10.78 | Z85: 10.78 | AA85: 10.78 | AB85: 10.78 | AC85: 10.78 | AD85: 10.78 | AE85: =AD85 -> 10.78 | AF85: =AE85 -> 10.78 | AG85: 10.78 | AH85: 10.78 | AI85: 10.78 | AJ85: =AI85 -> 10.78 | AK85: =AJ85 -> 10.78 | AL85: =AK85 -> 10.78 | AM85: =AL85 -> 10.78 | AN85: =AM85 -> 10.78
B87: West Coast
C88: Gas Wells
A89: 114 | C89: WC - Associated Gas Wells | E89: 10.09 | F89: 10.46 | G89: 10.83 | H89: 11.2 | I89: 11.57 | J89: 11.94 | K89: 12.31 | L89: 12.31 | M89: 12.31 | N89: 12.31 | O89: 12.31 | P89: 12.31 | Q89: 12.31 | R89: 12.31 | S89: 12.31 | T89: 12.31 | U89: 12.31 | V89: =U89 -> 12.31 | W89: =V89 -> 12.31 | X89: 12.31 | Y89: 12.31 | Z89: 12.31 | AA89: 12.31 | AB89: 12.31 | AC89: 12.31 | AD89: 12.31 | AE89: =AD89 -> 12.31 | AF89: =AE89 -> 12.31 | AG89: 12.31 | AH89: 12.31 | AI89: 12.31 | AJ89: =AI89 -> 12.31 | AK89: =AJ89 -> 12.31 | AL89: =AK89 -> 12.31 | AM89: =AL89 -> 12.31 | AN89: =AM89 -> 12.31
B91: Gulf Coast
C92: Gas Wells
A93: 142 | C93: GC - Associated Gas Wells | E93: 10.69 | F93: 10.73 | G93: 11.08 | H93: 11.27 | I93: 11.47 | J93: 11.67 | K93: 11.87 | L93: 11.87 | M93: 11.87 | N93: 11.87 | O93: 11.88 | P93: 11.87 | Q93: 11.87 | R93: 11.87 | S93: 11.87 | T93: 11.87 | U93: 11.87 | V93: =U93 -> 11.87 | W93: =V93 -> 11.87 | X93: 11.87 | Y93: 11.87 | Z93: 11.87 | AA93: 11.87 | AB93: 11.87 | AC93: 11.87 | AD93: 11.87 | AE93: =AD93 -> 11.87 | AF93: =AE93 -> 11.87 | AG93: 11.87 | AH93: 11.87 | AI93: 11.87 | AJ93: =AI93 -> 11.87 | AK93: =AJ93 -> 11.87 | AL93: =AK93 -> 11.87 | AM93: =AL93 -> 11.87 | AN93: =AM93 -> 11.87
B95: Offshore
A96: 171 | C96: Shallow water Gas Platforms (GoM and Pacific) | D96: scfd/platform | E96: 8899 | F96: 8899 | G96: 8899 | H96: 8899 | I96: 8899 | J96: 8899 | K96: 8899 | L96: 8899 | M96: 8899 | N96: 8899 | O96: 8899 | P96: 8899 | Q96: 8899 | R96: 8899 | S96: 8899 | T96: 8899 | U96: 8899 | V96: 8899 | W96: 8899 | X96: 8899 | Y96: 8899 | Z96: 8899 | AA96: 8899 | AB96: 8899 | AC96: 8899 | AD96: =AC96 -> 8899 | AE96: =AD96 -> 8899 | AF96: 8899 | AG96: 8899 | AH96: 8899 | AI96: 8899 | AJ96: =AI96 -> 8899 | AK96: =AJ96 -> 8899 | AL96: =AK96 -> 8899 | AM96: =AL96 -> 8899 | AN96: =AM96 -> 8899
A97: 172 | C97: Deepwater Gas Platforms (GoM and Pacific) | D97: scfd/platform | E97: 93836 | F97: 93836 | G97: 93836 | H97: 93836 | I97: 93836 | J97: 93836 | K97: 93836 | L97: 93836 | M97: 93836 | N97: 93836 | O97: 93836 | P97: 93836 | Q97: 93836 | R97: 93836 | S97: 93836 | T97: 93836 | U97: 93836 | V97: 93836 | W97: 93836 | X97: 93836 | Y97: 93836 | Z97: 93836 | AA97: 93836 | AB97: 93836 | AC97: 93836 | AD97: 93836 | AE97: 93836 | AF97: 93836 | AG97: 93836 | AH97: 93836 | AI97: 93836 | AJ97: 93836 | AK97: 93836 | AL97: 93836 | AM97: 93836 | AN97: 93836

Sheet Production Data
A1: Oil Production ('000 barrels)
B2: 1990 | C2: 1991 | D2: 1992 | E2: 1993 | F2: 1994 | G2: 1995 | H2: 1996 | I2: 1997 | J2: 1998 | K2: 1999 | L2: 2000 | M2: 2001 | N2: 2002 | O2: 2003 | P2: 2004 | Q2: 2005 | R2: 2006 | S2: 2007 | T2: 2008 | U2: 2009 | V2: 2010 | W2: 2011 | X2: 2012 | Y2: 2013 | Z2: 2014 | AA2: 2015 | AB2: 2016 | AC2: 2017 | AD2: 2018 | AE2: 2019 | AF2: 2020 | AG2: 2021 | AH2: 2022 | AI2: 2023 | AJ2: 2024 | AK2: 2025
A3: AK | B3: 647309 | C3: 656349 | D3: 627322 | E3: 577495 | F3: 568951 | G3: 541654 | H3: 509999 | I3: 472949 | J3: 428850 | K3: 383199 | L3: 355199 | M3: 351411 | N3: 359382 | O3: 355603 | P3: 332441 | Q3: 315387 | R3: 270481 | S3: 263595 | T3: 249893 | U3: 235510 | V3: 218904 | W3: 204829 | X3: 192401 | Y3: 187923 | Z3: 181130 | AA3: 176229 | AB3: 179378 | AC3: 180547 | AD3: 174801 | AE3: 169947 | AF3: 163852 | AG3: 159623 | AH3: 159611
A4: AL | B4: 18538 | C4: 18637 | D4: 19025 | E4: 18677 | F4: 18345 | G4: 18731 | H4: 16868 | I4: 14832 | J4: 12398 | K4: 11123 | L4: 10457 | M4: 9334 | N4: 8636 | O4: 7894 | P4: 7443 | Q4: 7861 | R4: 7539 | S4: 7171 | T4: 7696 | U4: 7189 | V4: 7155 | W4: 8373 | X4: 9525 | Y4: 10408 | Z4: 9831 | AA4: 9694 | AB4: 8112 | AC4: 6832 | AD4: 5887 | AE4: 4859 | AF4: 4295 | AG4: 4291 | AH4: 3820
A5: AR | B5: 10386 | C5: 10305 | D5: 10260 | E5: 9975 | F5: 9568 | G5: 8910 | H5: 8814 | I5: 8429 | J5: 7998 | K5: 7150 | L5: 7154 | M5: 7592 | N5: 7252 | O5: 7209 | P5: 6747 | Q5: 6175 | R5: 5948 | S5: 6031 | T5: 6079 | U5: 5755 | V5: 5733 | W5: 7938 | X5: 6604 | Y5: 6669 | Z5: 6775 | AA5: 6229 | AB5: 5519 | AC5: 5288 | AD5: 5004 | AE5: 4833 | AF5: 4143 | AG5: 4213 | AH5: 4445
A6: AZ | B6: 121 | C6: 111 | D6: 94 | E6: 73 | F6: 65 | G6: 71 | H6: 84 | I6: 82 | J6: 78 | K6: 66 | L6: 59 | M6: 59 | N6: 63 | O6: 47 | P6: 54 | Q6: 50 | R6: 55 | S6: 43 | T6: 54 | U6: 46 | V6: 37 | W6: 37 | X6: 52 | Y6: 60 | Z6: 56 | AA6: 37 | AB6: 8 | AC6: 13 | AD6: 10 | AE6: 7 | AF6: 5 | AG6: 6 | AH6: 6
A7: CA | B7: 320868 | C7: 319497 | D7: 305488 | E7: 293090 | F7: 286060 | G7: 278977 | H7: 282409 | I7: 285172 | J7: 283627 | K7: 273017 | L7: 271132 | M7: 260663 | N7: 257898 | O7: 248093 | P7: 240138 | Q7: 230230 | R7: 223015 | S7: 218518 | T7: 214533 | U7: 207262 | V7: 200370 | W7: 196172 | X7: 197211 | Y7: 198928 | Z7: 204766 | AA7: 201284 | AB7: 186079 | AC7: 173403 | AD7: 160658 | AE7: 156350 | AF7: 142221 | AG7: 136520 | AH7: 124727
A8: CO | B8: 30453 | C8: 31382 | D8: 29787 | E8: 29398 | F8: 28613 | G8: 27977 | H8: 24953 | I8: 25617 | J8: 22364 | K8: 18469 | L8: 18481 | M8: 16520 | N8: 20522 | O8: 21508 | P8: 22532 | Q8: 23227 | R8: 24501 | S8: 26183 | T8: 29946 | U8: 30394 | V8: 33068 | W8: 39517 | X8: 49760 | Y8: 66219 | Z8: 95661 | AA8: 122196 | AB8: 115993 | AC8: 129957 | AD8: 169160 | AE8: 192238 | AF8: 171635 | AG8: 153423 | AH8: 160149
A9: FL | B9: 5675 | C9: 4725 | D9: 5425 | E9: 5604 | F9: 6093 | G9: 5693 | H9: 6292 | I9: 6381 | J9: 5971 | K9: 4895 | L9: 4626 | M9: 4426 | N9: 3634 | O9: 3263 | P9: 2904 | Q9: 2585 | R9: 2360 | S9: 2078 | T9: 1953 | U9: 696 | V9: 1777 | W9: 2023 | X9: 2135 | Y9: 2174 | Z9: 2227 | AA9: 2208 | AB9: 1934 | AC9: 1923 | AD9: 1839 | AE9: 1937 | AF9: 1488 | AG9: 1490 | AH9: 1214
A10: IL | B10: 19954 | C10: 19068 | D10: 19303 | E10: 17406 | F10: 17148 | G10: 16190 | H10: 15575 | I10: 16115 | J10: 13732 | K10: 12065 | L10: 12206 | M10: 10092 | N10: 11100 | O10: 11697 | P10: 10984 | Q10: 10207 | R10: 10324 | S10: 9609 | T10: 9430 | U10: 9099 | V10: 9067 | W10: 9158 | X10: 9733 | Y10: 9539 | Z10: 9546 | AA10: 9520 | AB10: 8639 | AC10: 8313 | AD10: 8420 | AE10: 8243 | AF10: 7150 | AG10: 7057 | AH10: 6925
A11: IN | B11: 3000 | C11: 3014 | D11: 3016 | E11: 2761 | F11: 2492 | G11: 2778 | H11: 2523 | I11: 2430 | J11: 2208 | K11: 1964 | L11: 2098 | M11: 2022 | N11: 1962 | O11: 1865 | P11: 1755 | Q11: 1727 | R11: 1773 | S11: 1727 | T11: 1859 | U11: 1803 | V11: 1835 | W11: 1987 | X11: 2350 | Y11: 2399 | Z11: 2507 | AA11: 2219 | AB11: 1817 | AC11: 1779 | AD11: 1684 | AE11: 1579 | AF11: 1402 | AG11: 1523 | AH11: 1689
A12: KS | B12: 55428 | C12: 56928 | D12: 53613 | E12: 49625 | F12: 46732 | G12: 43767 | H12: 41789 | I12: 39835 | J12: 35541 | K12: 29046 | L12: 34463 | M12: 33942 | N12: 33380 | O12: 33973 | P12: 33879 | Q12: 33620 | R12: 35668 | S12: 36590 | T12: 39663 | U12: 39466 | V12: 40470 | W12: 41500 | X12: 43751 | Y12: 46846 | Z12: 49518 | AA12: 45481 | AB12: 37944 | AC12: 35825 | AD12: 34715 | AE12: 33206 | AF12: 28261 | AG12: 27905 | AH12: 28161
A13: KY | B13: 5409 | C13: 5485 | D13: 5479 | E13: 4595 | F13: 4013 | G13: 3492 | H13: 3602 | I13: 2988 | J13: 2921 | K13: 2777 | L13: 3465 | M13: 2969 | N13: 2721 | O13: 2538 | P13: 2548 | Q13: 2535 | R13: 2340 | S13: 2666 | T13: 2645 | U13: 2609 | V13: 2519 | W13: 2326 | X13: 3198 | Y13: 2305 | Z13: 2626 | AA13: 2862 | AB13: 2595 | AC13: 2477 | AD13: 2265 | AE13: 2505 | AF13: 2265 | AG13: 2464 | AH13: 2252
A14: LA | B14: 147582 | C14: 147070 | D14: 143075 | E14: 138673 | F14: 126484 | G14: 122885 | H14: 132151 | I14: 134134 | J14: 134220 | K14: 120008 | L14: 105425 | M14: 104610 | N14: 93321 | O14: 90018 | P14: 83272 | Q14: 75199 | R14: 73619 | S14: 76978 | T14: 72346 | U14: 68967 | V14: 67590 | W14: 69278 | X14: 71007 | Y14: 72215 | Z14: 69173 | AA14: 63738 | AB14: 57433 | AC14: 51548 | AD14: 48087 | AE14: 45817 | AF14: 36420 | AG14: 34286 | AH14: 36493
A15: MI | B15: 19676 | C15: 17520 | D15: 15579 | E15: 13799 | F15: 12207 | G15: 11383 | H15: 10837 | I15: 10053 | J15: 8994 | K15: 7836 | L15: 7907 | M15: 7375 | N15: 7218 | O15: 6468 | P15: 5951 | Q15: 5734 | R15: 5849 | S15: 5726 | T15: 6370 | U15: 6258 | V15: 6980 | W15: 7038 | X15: 7449 | Y15: 7790 | Z15: 7426 | AA15: 6565 | AB15: 5652 | AC15: 5571 | AD15: 5518 | AE15: 5220 | AF15: 4181 | AG15: 4591 | AH15: 4570
A16: MO | B16: 146 | C16: 149 | D16: 143 | E16: 135 | F16: 123 | G16: 120 | H16: 115 | I16: 114 | J16: 93 | K16: 92 | L16: 94 | M16: 91 | N16: 95 | O16: 87 | P16: 88 | Q16: 86 | R16: 87 | S16: 80 | T16: 99 | U16: 106 | V16: 146 | W16: 118 | X16: 175 | Y16: 199 | Z16: 196 | AA16: 149 | AB16: 123 | AC16: 116 | AD16: 96 | AE16: 85 | AF16: 62 | AG16: 60 | AH16: 69
A17: MS | B17: 27034 | C17: 27055 | D17: 25182 | E17: 22613 | F17: 20124 | G17: 19910 | H17: 19509 | I17: 21037 | J17: 22031 | K17: 17951 | L17: 19844 | M17: 19528 | N17: 19371 | O17: 19301 | P17: 19242 | Q17: 17695 | R17: 17356 | S17: 20672 | T17: 22104 | U17: 23328 | V17: 23981 | W17: 24043 | X17: 24137 | Y17: 24057 | Z17: 24395 | AA17: 24923 | AB17: 20386 | AC17: 17783 | AD17: 16953 | AE17: 16878 | AF17: 14166 | AG17: 13434 | AH17: 12667
A18: MT | B18: 19810 | C18: 19579 | D18: 18482 | E18: 17448 | F18: 16528 | G18: 16530 | H18: 15919 | I18: 15526 | J18: 16483 | K18: 14937 | L18: 15428 | M18: 15920 | N18: 16990 | O18: 19420 | P18: 24718 | Q18: 32787 | R18: 36294 | S18: 34907 | T18: 31596 | U18: 27835 | V18: 25332 | W18: 24155 | X18: 26494 | Y18: 29288 | Z18: 29896 | AA18: 28555 | AB18: 23177 | AC18: 20717 | AD18: 21553 | AE18: 22992 | AF18: 19082 | AG18: 18972 | AH18: 20585
A19: ND | B19: 36717 | C19: 35891 | D19: 32894 | E19: 30915 | F19: 27575 | G19: 29335 | H19: 32317 | I19: 35832 | J19: 35562 | K19: 32882 | L19: 32719 | M19: 31691 | N19: 30803 | O19: 29411 | P19: 31152 | Q19: 35675 | R19: 39591 | S19: 44788 | T19: 62322 | U19: 79792 | V19: 112555 | W19: 152436 | X19: 242354 | Y19: 312357 | Z19: 394623 | AA19: 429627 | AB19: 377817 | AC19: 390605 | AD19: 460428 | AE19: 517687 | AF19: 433563 | AG19: 405138 | AH19: 386203
A20: NE | B20: 5889 | C20: 5832 | D20: 5474 | E20: 4868 | F20: 4216 | G20: 3793 | H20: 3541 | I20: 3337 | J20: 3174 | K20: 2663 | L20: 2957 | M20: 2922 | N20: 2782 | O20: 2753 | P20: 2506 | Q20: 2408 | R20: 2313 | S20: 2335 | T20: 2394 | U20: 2239 | V20: 2331 | W20: 2544 | X20: 3025 | Y20: 2366 | Z20: 2487 | AA20: 2400 | AB20: 1983 | AC20: 1936 | AD20: 1962 | AE20: 1866 | AF20: 1673 | AG20: 1592 | AH20: 1489
A21: NM | B21: 67250 | C21: 70417 | D21: 69972 | E21: 68422 | F21: 65846 | G21: 64508 | H21: 64479 | I21: 69834 | J21: 72328 | K21: 64376 | L21: 67198 | M21: 68001 | N21: 67562 | O21: 66589 | P21: 64517 | Q21: 60963 | R21: 59452 | S21: 59179 | T21: 60155 | U21: 61178 | V21: 65569 | W21: 71518 | X21: 85551 | Y21: 102789 | Z21: 125061 | AA21: 148095 | AB21: 146634 | AC21: 172378 | AD21: 249211 | AE21: 336535 | AF21: 375419 | AG21: 450353 | AH21: 579837
A22: NV | B22: 4011 | C22: 3413 | D22: 3721 | E22: 1880 | F22: 1698 | G22: 1342 | H22: 1058 | I22: 980 | J22: 799 | K22: 706 | L22: 621 | M22: 572 | N22: 553 | O22: 493 | P22: 463 | Q22: 447 | R22: 426 | S22: 408 | T22: 436 | U22: 438 | V22: 426 | W22: 408 | X22: 368 | Y22: 334 | Z22: 316 | AA22: 281 | AB22: 277 | AC22: 286 | AD22: 255 | AE22: 268 | AF22: 196 | AG22: 218 | AH22: 219
A23: NY | B23: 415 | C23: 427 | D23: 404 | E23: 335 | F23: 299 | G23: 304 | H23: 309 | I23: 276 | J23: 217 | K23: 206 | L23: 210 | M23: 166 | N23: 164 | O23: 143 | P23: 170 | Q23: 202 | R23: 312 | S23: 379 | T23: 387 | U23: 333 | V23: 381 | W23: 375 | X23: 362 | Y23: 366 | Z23: 356 | AA23: 286 | AB23: 225 | AC23: 193 | AD23: 221 | AE23: 274 | AF23: 238 | AG23: 266 | AH23: 266
A24: OH | B24: 10008 | C24: 9156 | D24: 9197 | E24: 8282 | F24: 8758 | G24: 8258 | H24: 8305 | I24: 8593 | J24: 6541 | K24: 5970 | L24: 6575 | M24: 6051 | N24: 5631 | O24: 5658 | P24: 5783 | Q24: 5658 | R24: 5439 | S24: 5155 | T24: 5088 | U24: 4890 | V24: 4772 | W24: 4657 | X24: 5123 | Y24: 8038 | Z24: 15091 | AA24: 26848 | AB24: 21718 | AC24: 19755 | AD24: 22743 | AE24: 27585 | AF24: 23864 | AG24: 18812 | AH24: 22280
A25: OK | B25: 112273 | C25: 108094 | D25: 101807 | E25: 96625 | F25: 90973 | G25: 87490 | H25: 85379 | I25: 83364 | J25: 77578 | K25: 70556 | L25: 69976 | M25: 68531 | N25: 66421 | O25: 64916 | P25: 63977 | Q25: 61262 | R25: 64236 | S25: 62901 | T25: 67299 | U25: 67174 | V25: 70196 | W25: 82022 | X25: 100999 | Y25: 124371 | Z25: 150112 | AA25: 165550 | AB25: 155034 | AC25: 165480 | AD25: 200711 | AE25: 216930 | AF25: 172804 | AG25: 147837 | AH25: 151537
A26: PA | B26: 2641 | C26: 2531 | D26: 2137 | E26: 2036 | F26: 2518 | G26: 1939 | H26: 1692 | I26: 1321 | J26: 1980 | K26: 1471 | L26: 1500 | M26: 1620 | N26: 2324 | O26: 2466 | P26: 2396 | Q26: 2460 | R26: 2589 | S26: 2788 | T26: 2999 | U26: 2967 | V26: 3238 | W26: 3431 | X26: 4319 | Y26: 5303 | Z26: 6850 | AA26: 7091 | AB26: 6183 | AC26: 6461 | AD26: 6389 | AE26: 6486 | AF26: 5532 | AG26: 6253 | AH26: 4509
A27: SD | B27: 1648 | C27: 1662 | D27: 1557 | E27: 1500 | F27: 1453 | G27: 1344 | H27: 1257 | I27: 1335 | J27: 1206 | K27: 1100 | L27: 1170 | M27: 1255 | N27: 1214 | O27: 1237 | P27: 1357 | Q27: 1394 | R27: 1390 | S27: 1664 | T27: 1700 | U27: 1664 | V27: 1607 | W27: 1634 | X27: 1754 | Y27: 1850 | Z27: 1798 | AA27: 1663 | AB27: 1406 | AC27: 1304 | AD27: 1273 | AE27: 1166 | AF27: 1047 | AG27: 1028 | AH27: 961
A28: TN | B28: 506 | C28: 485 | D28: 501 | E28: 419 | F28: 417 | G28: 383 | H28: 381 | I28: 367 | J28: 287 | K28: 344 | L28: 346 | M28: 351 | N28: 275 | O28: 311 | P28: 361 | Q28: 324 | R28: 192 | S28: 284 | T28: 338 | U28: 268 | V28: 257 | W28: 296 | X28: 371 | Y28: 334 | Z28: 330 | AA28: 296 | AB28: 257 | AC28: 271 | AD28: 210 | AE28: 211 | AF28: 152 | AG28: 141 | AH28: 146
A29: TX | B29: 678478 | C29: 682616 | D29: 650623 | E29: 619090 | F29: 590735 | G29: 559646 | H29: 543342 | I29: 536584 | J29: 504662 | K29: 449233 | L29: 443397 | M29: 424297 | N29: 405776 | O29: 400664 | P29: 392714 | Q29: 392601 | R29: 392481 | S29: 391261 | T29: 405938 | U29: 399327 | V29: 426767 | W29: 529813 | X29: 725940 | Y29: 928358 | Z29: 1160097 | AA29: 1261782 | AB29: 1168696 | AC29: 1275904 | AD29: 1612374 | AE29: 1864363 | AF29: 1773072 | AG29: 1744882 | AH29: 1846806
A30: UT | B30: 27604 | C30: 24467 | D30: 22720 | E30: 21821 | F30: 20661 | G30: 19988 | H30: 19401 | I30: 19317 | J30: 19199 | K30: 16253 | L30: 15636 | M30: 15252 | N30: 13771 | O30: 13097 | P30: 14744 | Q30: 16673 | R30: 17927 | S30: 19535 | T30: 22039 | U30: 22942 | V30: 24663 | W30: 26276 | X30: 30210 | Y30: 35016 | Z30: 40909 | AA30: 37136 | AB30: 30528 | AC30: 34438 | AD30: 37117 | AE30: 36933 | AF30: 31001 | AG30: 35774 | AH30: 45251
A31: VA | B31: 16 | C31: 13 | D31: 12 | E31: 12 | F31: 11 | G31: 11 | H31: 13 | I31: 10 | J31: 5 | K31: 8 | L31: 9 | M31: 11 | N31: 25 | O31: 18 | P31: 19 | Q31: 26 | R31: 17 | S31: 19 | T31: 16 | U31: 12 | V31: 12 | W31: 11 | X31: 9 | Y31: 10 | Z31: 14 | AA31: 11 | AB31: 8 | AC31: 7 | AD31: 5 | AE31: 6 | AF31: 5 | AG31: 5 | AH31: 7
A32: WV | B32: 2143 | C32: 1963 | D32: 2068 | E32: 2048 | F32: 1918 | G32: 1948 | H32: 1680 | I32: 1509 | J32: 1471 | K32: 1471 | L32: 1400 | M32: 1226 | N32: 1456 | O32: 1481 | P32: 1735 | Q32: 1696 | R32: 1726 | S32: 1992 | T32: 2126 | U32: 1501 | V32: 1842 | W32: 2146 | X32: 2573 | Y32: 7239 | Z32: 10330 | AA32: 11572 | AB32: 7636 | AC32: 9081 | AD32: 12739 | AE32: 17256 | AF32: 19484 | AG32: 17964 | AH32: 15204
A33: WY | B33: 103856 | C33: 99928 | D33: 96810 | E33: 87667 | F33: 79528 | G33: 78884 | H33: 73365 | I33: 70176 | J33: 64782 | K33: 61126 | L33: 60726 | M33: 57433 | N33: 54801 | O33: 52970 | P33: 51940 | Q33: 51770 | R33: 52974 | S33: 54116 | T33: 53045 | U33: 51531 | V33: 53890 | W33: 54515 | X33: 57808 | Y33: 63478 | Z33: 76091 | AA33: 86456 | AB33: 72659 | AC33: 75746 | AD33: 87960 | AE33: 102165 | AF33: 89076 | AG33: 85455 | AH33: 90906
A34: Gulf Coast (PADD 3) Crude Oil Production (Thousand Barrels) | B34: 1219071 | C34: 1247848 | D34: 1219046 | E34: 1178566 | F34: 1144925 | G34: 1138908 | H34: 1158802 | I34: 1197018 | J34: 1202022 | K34: 1163910 | L34: 1176723 | M34: 1193844 | N34: 1169338 | O34: 1152741 | P34: 1109290 | Q34: 1027420 | R34: 1028473 | S34: 1029263 | T34: 997620 | U34: 1136054 | V34: 1163423 | W34: 1191654 | X34: 1386037 | Y34: 1602524 | Z34: 1905273 | AA34: 2067390 | AB34: 1992364 | AC34: 2143439 | AD34: 2579485 | AE34: 2965928 | AF34: 2817695 | AG34: 2874587 | AH34: 3115721
A35: Federal Offshore (PADD 3) Crude Oil Production (Thousand Barrels) | B35: 269804 | C35: 291755 | D35: 300909 | E35: 301118 | F35: 313822 | G35: 344318 | H35: 373644 | I35: 412168 | J35: 448388 | K35: 494064 | L35: 523250 | M35: 560485 | N35: 567420 | O35: 561065 | P35: 535355 | Q35: 466926 | R35: 472078 | S35: 467971 | T35: 423301 | U35: 570309 | V35: 566628 | W35: 480692 | X35: 463272 | Y35: 458027 | Z35: 509941 | AA35: 552929 | AB35: 585583 | AC35: 613707 | AD35: 641970 | AE35: 692644 | AF35: 610181 | AG35: 623127 | AH35: 631653
A36: Gulf Coast (PADD 3) Crude Oil Field Production Adjustment (Thousand Barrels), Source: http://www.eia.gov/dnav/pet/PET_CRD_CRPDN_ADC_MBBL_A.htm
A37: Source: U.S. Crude oil field production, http://www.eia.gov/dnav/pet/PET_CRD_CRPDN_ADC_MBBL_A.htm

Sheet Data
B2: Natural Gas Vented and Flared (TBtu)
C3: 1990 | D3: 1991 | E3: 1992 | F3: 1993 | G3: 1994 | H3: 1995 | I3: 1996 | J3: 1997 | K3: 1998 | L3: 1999 | M3: 2000 | N3: 2001 | O3: 2002 | P3: 2003 | Q3: 2004 | R3: 2005 | S3: 2006 | T3: 2007 | U3: 2008 | V3: 2009 | W3: 2010 | X3: 2011 | Y3: 2012 | Z3: 2013 | AA3: 2014 | AB3: 2015 | AC3: 2016 | AD3: 2017 | AE3: 2018 | AF3: 2019 | AG3: 2020 | AH3: 2021 | AI3: 2022 | AJ3: 2023 | AK3: 2024 | AL3: 2025
B4: Alabama | C4: =(C43*C40)/(10^3) -> 2135.965 | D4: =(D43*$D$40)/(10^3) -> 2429.844 | E4: =(E43*$E$40)/(10^3) -> 1996.89 | F4: =(F43*$F$40)/(10^3) -> 1988.588 | G4: =(G43*$G$40)/(10^3) -> 2928.25 | H4: =(H43*$H$40)/(10^3) -> 3246.11 | I4: =(I43*$I$40)/(10^3) -> 2054.977 | J4: =(J43*$J$40)/(10^3) -> 1730.241 | K4: =(K43*$K$40)/(10^3) -> 1621.358 | L4: =(L43*$L$40)/(10^3) -> 1201.095 | M4: =(M43*$M$40)/(10^3) -> 1397.034 | N4: =(N43*$N$40)/(10^3) -> 1148.095 | O4: =(O43*$O$40)/(10^3) -> 1468.093 | P4: =(P43*$P$40)/(10^3) -> 1776.933 | Q4: =(Q43*$Q$40)/(10^3) -> 2556.864 | R4: =(R43*R$40)/(10^3) -> 2743.44 | S4: 3888.075 | T4: 2613.944 | U4: 1981.1 | V4: 2746.995 | W4: 2873.466 | X4: =(X43*X$40)/(10^3) -> 3986.722 | Y4: =(Y43*Y$40)/(10^3) -> 0 | Z4: 0 | AA4: 0 | AB4: 0 | AC4: 0 | AD4: 0 | AE4: =(AE43*AE$40)/(10^3) -> 0 | AF4: =(AF43*AF$40)/(10^3) -> 0 | AG4: =(AG43*AG$40)/(10^3) -> 0 | AH4: =(AH43*AH$40)/(10^3) -> 0 | AI4: =(AI43*AI$40)/(10^3) -> 0
B5: Alaska | C5: =(C44*$C$40)/(10^3) -> 11853.335 | D5: 11948.672 | E5: 15647.67 | F5: 24868.41 | G5: 14630.2 | H5: 9662.016 | I5: 7840.63 | J5: 9153.783 | K5: 9061.639 | L5: 7857.486 | M5: 8353.422 | N5: 8493.03 | O5: 8065.136 | P5: 6998.535 | Q5: 6721.152 | R5: =(R44*$R$40)/(10^3) -> 7097.616 | S5: =(S44*S$40)/(10^3) -> 7858.875 | T5: 7116.716 | U5: =(U44*U$40)/(10^3) -> 11025.3 | V5: 7135.581 | W5: 11169.954 | X5: 12523.172 | Y5: 12839.979 | Z5: =(Z44*Z$40)/(10^3) -> 7948.119 | AA5: 7314.264 | AB5: =(AB44*AB$40)/(10^3) -> 6052.74 | AC5: 9634.248 | AD5: 8586.045 | AE5: =(AE44*AE$40)/(10^3) -> 9310.14 | AF5: 8262.72 | AG5: =(AG44*AG$40)/(10^3) -> 6534.515 | AH5: 6840.474 | AI5: =(AI44*AI$40)/(10^3) -> 8172.837
B6: Arizona | C6: 24.31 | D6: 62.048 | E6: 25.53 | F6: 23.226 | G6: 8.84 | H6: 0 | I6: 0 | J6: 1.107 | K6: 0 | L6: 0 | M6: 0 | N6: 0 | O6: 0 | P6: 0 | Q6: 0 | R6: 0 | S6: 0 | T6: 0 | U6: 0 | V6: 0 | W6: 0 | X6: 0 | Y6: 0 | Z6: 0 | AA6: 0 | AB6: 0 | AC6: 0 | AD6: 0 | AE6: =(AE45*AE$40)/(10^3) -> 0 | AF6: 0 | AG6: =(AG45*AG$40)/(10^3) -> 0 | AH6: 0 | AI6: =(AI45*AI$40)/(10^3) -> 0
B7: Arkansas | C7: 313.82 | D7: 230.464 | E7: 411.81 | F7: 452.354 | G7: 345.865 | H7: 346.178 | I7: 299.43 | J7: 148.338 | K7: 49.905 | L7: 6647.535 | M7: 228.042 | N7: 476.255 | O7: 276.853 | P7: 390.462 | Q7: 266.064 | R7: 266.064 | S7: 13.236 | T7: 12.122 | U7: 125.4 | V7: 155.241 | W7: 466.65 | X7: 564.148 | Y7: 0 | Z7: 0 | AA7: 0 | AB7: 0 | AC7: 0 | AD7: 0 | AE7: =(AE46*AE$40)/(10^3) -> 0 | AF7: 0 | AG7: =(AG46*AG$40)/(10^3) -> 0 | AH7: 0 | AI7: =(AI46*AI$40)/(10^3) -> 0
B8: California | C8: 1374.62 | D8: 1583.332 | E8: 833.61 | F8: 641.48 | G8: 917.15 | H8: 1382.5 | I8: 1406.212 | J8: 1760.13 | K8: 2164.768 | L8: 1513.269 | M8: 2446.47 | N8: 1897.285 | O8: 2967.07 | P8: 4345.82 | Q8: 3549.36 | R8: 2340.48 | S8: 1722.886 | T8: 2070.658 | U8: 2339.7 | V8: 2753.601 | W8: 3063.42 | X8: 2768.208 | Y8: 0 | Z8: 0 | AA8: 0 | AB8: 0 | AC8: 0 | AD8: 0 | AE8: =(AE47*AE$40)/(10^3) -> 0 | AF8: 0 | AG8: =(AG47*AG$40)/(10^3) -> 1780.475 | AH8: 1725.876 | AI8: =(AI47*AI$40)/(10^3) -> 1762.566
B9: Colorado | C9: 5214.495 | D9: 3202.12 | E9: 2073.48 | F9: 2238.544 | G9: 2735.98 | H9: 1670.06 | I9: 1364.07 | J9: 2411.046 | K9: 1379.596 | L9: 887.814 | M9: 891.135 | N9: 1003.34 | O9: 1031.305 | P9: 1238.669 | Q9: 1278.432 | R9: 1341.36 | S9: 1423.973 | T9: 1468.966 | U9: 1651.1 | V9: 1553.511 | W9: 1363.716 | X9: 1474.322 | Y9: 0 | Z9: 0 | AA9: 0 | AB9: 0 | AC9: 2955.36 | AD9: 4830.991 | AE9: =(AE48*AE$40)/(10^3) -> 6827.814 | AF9: 4878.06 | AG9: =(AG48*AG$40)/(10^3) -> 3485.38 | AH9: 1894.338 | AI9: =(AI48*AI$40)/(10^3) -> 650.334
B10: Florida | C10: 316.03 | D10: 534.056 | E10: 271.95 | F10: 226.73 | G10: 243.1 | H10: 30.968 | I10: 0 | J10: 0 | K10: 0 | L10: 0 | M10: 0 | N10: 0 | O10: 0 | P10: 0 | Q10: 0 | R10: 0 | S10: 0 | T10: 0 | U10: 0 | V10: 0 | W10: 0 | X10: 0 | Y10: 0 | Z10: 0 | AA10: 0 | AB10: 0 | AC10: 0 | AD10: 0 | AE10: =(AE49*AE$40)/(10^3) -> 0 | AF10: 0 | AG10: =(AG49*AG$40)/(10^3) -> 0 | AH10: 0 | AI10: =(AI49*AI$40)/(10^3) -> 0
B11: Illinois | C11: 0 | D11: 0 | E11: 0 | F11: 0 | G11: 0 | H11: 0 | I11: 0 | J11: 0 | K11: 0 | L11: 0 | M11: 0 | N11: 0 | O11: 0 | P11: 0 | Q11: 0 | R11: 0 | S11: 0 | T11: 0 | U11: 0 | V11: 0 | W11: 0 | X11: 0 | Y11: 0 | Z11: 0 | AA11: 0 | AB11: 0 | AC11: 0 | AD11: 0 | AE11: =(AE50*AE$40)/(10^3) -> 0 | AF11: 0 | AG11: =(AG50*AG$40)/(10^3) -> 0 | AH11: 0 | AI11: =(AI50*AI$40)/(10^3) -> 0
B12: Indiana | C12: 0 | D12: 0 | E12: 0 | F12: 0 | G12: 0 | H12: 0 | I12: 0 | J12: 0 | K12: 0 | L12: 0 | M12: 0 | N12: 0 | O12: 0 | P12: 0 | Q12: 0 | R12: 0 | S12: 0 | T12: 0 | U12: 0 | V12: 0 | W12: 0 | X12: 0 | Y12: 0 | Z12: 0 | AA12: 0 | AB12: 0 | AC12: 0 | AD12: 0 | AE12: =(AE51*AE$40)/(10^3) -> 0 | AF12: 0 | AG12: =(AG51*AG$40)/(10^3) -> 0 | AH12: 0 | AI12: =(AI51*AI$40)/(10^3) -> 0
B13: Kansas | C13: 615.485 | D13: 695.824 | E13: 712.62 | F13: 741.02 | G13: 790.075 | H13: 799.638 | I13: 794.044 | J13: 752.76 | K13: 670.945 | L13: 614.385 | M13: 583.389 | N13: 531.505 | O13: 502.968 | P13: 463.26 | Q13: 439.392 | R13: 417.312 | S13: 402.595 | T13: 400.026 | U13: 410.3 | V13: 388.653 | W13: 354.654 | X13: 350.594 | Y13: 0 | Z13: 0 | AA13: 0 | AB13: 0 | AC13: 0 | AD13: 0 | AE13: =(AE52*AE$40)/(10^3) -> 0 | AF13: 0 | AG13: =(AG52*AG$40)/(10^3) -> 0 | AH13: 0 | AI13: =(AI52*AI$40)/(10^3) -> 0
B14: Kentucky | C14: 0 | D14: 0 | E14: 0 | F14: 0 | G14: 0 | H14: 0 | I14: 0 | J14: 0 | K14: 0 | L14: 0 | M14: 0 | N14: 0 | O14: 0 | P14: 0 | Q14: 0 | R14: 0 | S14: 0 | T14: 0 | U14: 0 | V14: 0 | W14: 0 | X14: 0 | Y14: 0 | Z14: 0 | AA14: 0 | AB14: 0 | AC14: 0 | AD14: 0 | AE14: =(AE53*AE$40)/(10^3) -> 0 | AF14: 0 | AG14: =(AG53*AG$40)/(10^3) -> 0 | AH14: 0 | AI14: =(AI53*AI$40)/(10^3) -> 0
B15: Louisiana | C15: 22829.3 | D15: 22619.82 | E15: 22797.18 | F15: 21655.48 | G15: 21756.345 | H15: 20714.274 | I15: 24070.845 | J15: 24274.296 | K15: 21673.187 | L15: 23810.463 | M15: 22434.462 | N15: 12983.75 | O15: 12085.571 | P15: 10239.149 | Q15: 5536.56 | R15: 5771.712 | S15: 7351.495 | T15: 7158.592 | U15: 4423.1 | V15: 4773.936 | W15: 5026.644 | X15: 7196.884 | Y15: 0 | Z15: 4307.112 | AA15: 5140.296 | AB15: 4256.588 | AC15: 5759.568 | AD15: 6026.602 | AE15: =(AE54*AE$40)/(10^3) -> 6765.444 | AF15: 5815.14 | AG15: =(AG54*AG$40)/(10^3) -> 5142.195 | AH15: 4009.854 | AI15: =(AI54*AI$40)/(10^3) -> 4384.584
B16: Maryland | C16: 0 | D16: 0 | E16: 0 | F16: 0 | G16: 0 | H16: 0 | I16: 0 | J16: 0 | K16: 0 | L16: 0 | M16: 0 | N16: 0 | O16: 0 | P16: 0 | Q16: 0 | R16: 0 | S16: 0 | T16: 0 | U16: 0 | V16: 0 | W16: 0 | X16: 0 | Y16: 0 | Z16: 0 | AA16: 0 | AB16: 0 | AC16: 0 | AD16: 0 | AE16: =(AE55*AE$40)/(10^3) -> 0 | AF16: 0 | AG16: =(AG55*AG$40)/(10^3) -> 0 | AH16: 0 | AI16: =(AI55*AI$40)/(10^3) -> 0
B17: Michigan | C17: 3673.02 | D17: 3682.992 | E17: 3689.64 | F17: 3676.344 | G17: 3673.02 | H17: 3676.344 | I17: 3686.316 | J17: 3679.668 | K17: 3686.316 | L17: 3679.668 | M17: 3679.668 | N17: 3673.02 | O17: 3666.372 | P17: 3666.372 | Q17: 3669.696 | R17: 3669.696 | S17: 3666.372 | T17: 3663.048 | U17: 3656.4 | V17: 3659.724 | W17: 3649.752 | X17: 3796.008 | Y17: 0 | Z17: 0 | AA17: 0 | AB17: 0 | AC17: 0 | AD17: 0 | AE17: =(AE56*AE$40)/(10^3) -> 0 | AF17: 0 | AG17: =(AG56*AG$40)/(10^3) -> 0 | AH17: 0 | AI17: =(AI56*AI$40)/(10^3) -> 0
B18: Mississippi | C18: 4008.94 | D18: 3101.292 | E18: 3414.36 | F18: 2457.532 | G18: 2130.44 | H18: 2470.804 | I18: 2968.793 | J18: 3035.394 | K18: 3102.982 | L18: 3038.715 | M18: 2742.039 | N18: 3271.905 | O18: 3603.501 | P18: 3861.603 | Q18: 4208.448 | R18: 4354.176 | S18: 5046.225 | T18: 6511.718 | U18: 8254.4 | V18: 8670.375 | W18: 9536.13 | X18: 10955.206 | Y18: 0 | Z18: 0 | AA18: 0 | AB18: 0 | AC18: 0 | AD18: 0 | AE18: =(AE57*AE$40)/(10^3) -> 0 | AF18: 0 | AG18: =(AG57*AG$40)/(10^3) -> 0 | AH18: 0 | AI18: =(AI57*AI$40)/(10^3) -> 0
B19: Missouri | C19: 0 | D19: 0 | E19: 0 | F19: 0 | G19: 0 | H19: 0 | I19: 0 | J19: 0 | K19: 0 | L19: 0 | M19: 0 | N19: 0 | O19: 0 | P19: 0 | Q19: 0 | R19: 0 | S19: 0 | T19: 0 | U19: 0 | V19: 0 | W19: 0 | X19: 0 | Y19: 0 | Z19: =(Z58*Z$40)/(10^3) -> 0 | AA19: =(AA58*AA$40)/(10^3) -> 0 | AB19: 0 | AC19: 0 | AD19: 0 | AE19: =(AE58*AE$40)/(10^3) -> 0 | AF19: 0 | AG19: =(AG58*AG$40)/(10^3) -> 0 | AH19: 0 | AI19: =(AI58*AI$40)/(10^3) -> 0
B20: Montana | C20: 979.03 | D20: 855.376 | E20: 846.93 | F20: 838.348 | G20: 608.855 | H20: 461.202 | I20: 660.964 | J20: 1239.84 | K20: 1412.866 | L20: 350.919 | M20: 540.216 | N20: 446.42 | O20: 384.947 | P20: 444.509 | Q20: 1182.384 | R20: 694.416 | S20: 1293.819 | T20: 4100.542 | U20: 7549.3 | V20: 7708.101 | W20: 6282.756 | X20: 5570.676 | Y20: 0 | Z20: 0 | AA20: 0 | AB20: 7737.616 | AC20: 4753.392 | AD20: 3523.609 | AE20: =(AE59*AE$40)/(10^3) -> 4014.36 | AF20: 5788.92 | AG20: =(AG59*AG$40)/(10^3) -> 4431.15 | AH20: 3582.396 | AI20: =(AI59*AI$40)/(10^3) -> 3452.745
B21: Nebraska | C21: 0 | D21: 0 | E21: 0 | F21: 0 | G21: 0 | H21: 0 | I21: 0 | J21: 0 | K21: 0 | L21: 0 | M21: 0 | N21: 0 | O21: 5.515 | P21: 13.236 | Q21: 25.392 | R21: 32.016 | S21: 18.751 | T21: 5.51 | U21: 2.2 | V21: 9.909 | W21: 26.352 | X21: 23.982 | Y21: 0 | Z21: 0 | AA21: 0 | AB21: 0 | AC21: 0 | AD21: 0 | AE21: =(AE60*AE$40)/(10^3) -> 0 | AF21: 0 | AG21: =(AG60*AG$40)/(10^3) -> 0 | AH21: 0 | AI21: =(AI60*AI$40)/(10^3) -> 0
B22: Nevada | C22: 0 | D22: 0 | E22: 0 | F22: 0 | G22: 0 | H22: 0 | I22: 0 | J22: 0 | K22: 0 | L22: 0 | M22: 0 | N22: 0 | O22: 0 | P22: 0 | Q22: 0 | R22: 0 | S22: 0 | T22: 0 | U22: 0 | V22: 0 | W22: 0 | X22: 0 | Y22: 0 | Z22: 0 | AA22: 0 | AB22: 0 | AC22: 0 | AD22: 0 | AE22: =(AE61*AE$40)/(10^3) -> 0 | AF22: 0 | AG22: =(AG61*AG$40)/(10^3) -> 0 | AH22: 0 | AI22: =(AI61*AI$40)/(10^3) -> 0
B23: New Mexico | C23: 1855.295 | D23: 1512.42 | E23: 1804.86 | F23: 1748.586 | G23: 2169.115 | H23: 2371.264 | I23: 2994.3 | J23: 3084.102 | K23: 2964.357 | L23: 3005.505 | M23: 3464.91 | N23: 3597.88 | O23: 3142.447 | P23: 2588.741 | Q23: 3891.6 | R23: 3900.432 | S23: 3164.507 | T23: 1023.758 | U23: 883.3 | V23: 529.581 | W23: 1741.428 | X23: 4979.12 | Y23: 13374.569 | Z23: 23179.353 | AA23: 21336.804 | AB23: 27931.4 | AC23: 28967.04 | AD23: 19750.726 | AE23: =(AE62*AE$40)/(10^3) -> 42426.342 | AF23: 42515.16 | AG23: =(AG62*AG$40)/(10^3) -> 25802.575 | AH23: 19799.442 | AI23: =(AI62*AI$40)/(10^3) -> 23983.077
B24: New York | C24: 414.375 | D24: 1.108 | E24: 14.43 | F24: 15.484 | G24: 12.155 | H24: 0 | I24: 3.327 | J24: 5.535 | K24: 5.545 | L24: 5.535 | M24: 0 | N24: 0 | O24: 0 | P24: 0 | Q24: 0 | R24: 0 | S24: 0 | T24: 0 | U24: 0 | V24: 0 | W24: 0 | X24: 0 | Y24: 0 | Z24: 0 | AA24: 0 | AB24: 0 | AC24: 0 | AD24: 0 | AE24: =(AE63*AE$40)/(10^3) -> 0 | AF24: 0 | AG24: =(AG63*AG$40)/(10^3) -> 0 | AH24: 0 | AI24: =(AI63*AI$40)/(10^3) -> 0
B25: North Dakota | C25: 4024.41 | D25: 2884.124 | E25: 2438.67 | F25: 2584.722 | G25: 2753.66 | H25: 4755.8 | I25: 3279.313 | J25: 3912.138 | K25: 4847.439 | L25: 2981.151 | M25: 3642.03 | N25: 3498.43 | O25: 3078.473 | P25: 2283.21 | Q25: 2426.592 | R25: 3599.04 | S25: 8228.38 | T25: 11571 | U25: 28270 | V25: 29590.476 | W25: 26991.036 | X25: 56702.584 | Y25: 86804.324 | Z25: 113243.355 | AA25: 144764.172 | AB25: 119779.06 | AC25: 79010.76 | AD25: 99978.595 | AE25: =(AE64*AE$40)/(10^3) -> 168400.134 | AF25: 234016.92 | AG25: =(AG64*AG$40)/(10^3) -> 113964.14 | AH25: 87622.014 | AI25: =(AI64*AI$40)/(10^3) -> 73533.702
B26: Ohio | C26: 0 | D26: 0 | E26: 0 | F26: 0 | G26: 0 | H26: 0 | I26: 0 | J26: 0 | K26: 0 | L26: 0 | M26: 0 | N26: 0 | O26: 0 | P26: 0 | Q26: 0 | R26: 0 | S26: 0 | T26: 0 | U26: 0 | V26: 0 | W26: 0 | X26: 0 | Y26: 0 | Z26: 0 | AA26: 0 | AB26: 0 | AC26: 0 | AD26: 0 | AE26: =(AE65*AE$40)/(10^3) -> 0 | AF26: 0 | AG26: =(AG65*AG$40)/(10^3) -> 0 | AH26: 0 | AI26: =(AI65*AI$40)/(10^3) -> 0
B27: Oklahoma | C27: 0 | D27: 0 | E27: 0 | F27: 0 | G27: 0 | H27: 0 | I27: 0 | J27: 0 | K27: 0 | L27: 0 | M27: 0 | N27: 0 | O27: 0 | P27: 0 | Q27: 0 | R27: 0 | S27: 0 | T27: 0 | U27: 0 | V27: 0 | W27: 0 | X27: 0 | Y27: 0 | Z27: 0 | AA27: 0 | AB27: 0 | AC27: 0 | AD27: 0 | AE27: =(AE66*AE$40)/(10^3) -> 0 | AF27: 0 | AG27: =(AG66*AG$40)/(10^3) -> 0 | AH27: 0 | AI27: =(AI66*AI$40)/(10^3) -> 0
B28: Oregon | C28: 0 | D28: 0 | E28: 0 | F28: 0 | G28: 0 | H28: 0 | I28: 0 | J28: 0 | K28: 0 | L28: 0 | M28: 0 | N28: 0 | O28: 0 | P28: 0 | Q28: 0 | R28: 0 | S28: 0 | T28: 0 | U28: 0 | V28: 0 | W28: 0 | X28: 0 | Y28: 0 | Z28: 0 | AA28: 0 | AB28: 0 | AC28: 0 | AD28: 0 | AE28: =(AE67*AE$40)/(10^3) -> 0 | AF28: 0 | AG28: =(AG67*AG$40)/(10^3) -> 0 | AH28: 0 | AI28: =(AI67*AI$40)/(10^3) -> 0
B29: Other States | C29: 0 | D29: 5660.772 | E29: 6530.13 | F29: 6830.656 | G29: 6781.385 | H29: 8223.11 | I29: 8771.081 | J29: 1968.246 | K29: 1747.784 | L29: 8373.348 | M29: 2227.284 | N29: 2732.665 | O29: 2354.905 | P29: 2721.101 | Q29: 2648.496 | R29: 2585.568 | S29: 14749.316 | T29: 15192.172 | U29: 16174.4 | V29: 17465.163 | W29: 18429.93 | X29: 21182.958 | Y29: 0 | Z29: 0 | AA29: 0 | AB29: 15687.668 | AC29: 0 | AD29: 0 | AE29: =(AE68*AE$40)/(10^3) -> 7.938 | AF29: 0 | AG29: =(AG68*AG$40)/(10^3) -> 0 | AH29: 0 | AI29: =(AI68*AI$40)/(10^3) -> 0
B30: Pennsylvania | C30: 0 | D30: 0 | E30: 0 | F30: 0 | G30: 0 | H30: 0 | I30: 0 | J30: 0 | K30: 0 | L30: 0 | M30: 0 | N30: 0 | O30: 0 | P30: 0 | Q30: 0 | R30: 0 | S30: 0 | T30: 0 | U30: 0 | V30: 0 | W30: 0 | X30: 0 | Y30: 0 | Z30: 0 | AA30: 0 | AB30: 0 | AC30: 0 | AD30: 0 | AE30: =(AE69*AE$40)/(10^3) -> 0 | AF30: 0 | AG30: =(AG69*AG$40)/(10^3) -> 0 | AH30: 0 | AI30: =(AI69*AI$40)/(10^3) -> 0
B31: South Dakota | C31: 4031.04 | D31: 5367.152 | E31: 6078.36 | F31: 6339.592 | G31: 6414.525 | H31: 7876.932 | I31: 8468.324 | J31: 1814.373 | K31: 1692.334 | L31: 1721.385 | M31: 1999.242 | N31: 2257.515 | O31: 2073.64 | P31: 2316.3 | Q31: 2357.04 | R31: 2286.384 | S31: 2129.893 | T31: 2399.054 | U31: 2280.3 | V31: 2378.16 | W31: 2345.328 | X31: 2421.04 | Y31: 0 | Z31: 0 | AA31: 0 | AB31: 15687.668 | AC31: 0 | AD31: 0 | AE31: =(AE70*AE$40)/(10^3) -> 0 | AF31: 0 | AG31: =(AG70*AG$40)/(10^3) -> 0 | AH31: 0 | AI31: =(AI70*AI$40)/(10^3) -> 0
B32: Tennessee | C32: 0 | D32: 0 | E32: 0 | F32: 0 | G32: 0 | H32: 0 | I32: 0 | J32: 0 | K32: 0 | L32: 0 | M32: 0 | N32: 0 | O32: 0 | P32: 0 | Q32: 0 | R32: 0 | S32: 0 | T32: 0 | U32: 0 | V32: 0 | W32: 0 | X32: 0 | Y32: 0 | Z32: 0 | AA32: 0 | AB32: 0 | AC32: 0 | AD32: 0 | AE32: =(AE71*AE$40)/(10^3) -> 0 | AF32: 0 | AG32: =(AG71*AG$40)/(10^3) -> 0 | AH32: 0 | AI32: =(AI71*AI$40)/(10^3) -> 0
B33: Texas | C33: 31212.935 | D33: 33946.904 | E33: 21854.79 | F33: 38141.516 | G33: 46450.885 | H33: 51078.398 | I33: 50328.638 | J33: 53049.654 | K33: 28777.441 | L33: 39492.225 | M33: 35435.07 | N33: 29639.415 | O33: 30199.037 | P33: 26230.443 | Q33: 29749.488 | R33: 42674.016 | S33: 47615.407 | T33: 40423.564 | U33: 46795.1 | V33: 45398.634 | W33: 43446.762 | X33: 40253.216 | Y33: 51855.23 | Z33: 83800.413 | AA33: 100579.5 | AB33: 127895.464 | AC33: 98730.456 | AD33: 109452.034 | AE33: =(AE72*AE$40)/(10^3) -> 269953.236 | AF33: 286352.04 | AG33: =(AG72*AG$40)/(10^3) -> 143509.72 | AH33: 117197.982 | AI33: =(AI72*AI$40)/(10^3) -> 114553.002
B34: Utah | C34: 1478.49 | D34: 1800.5 | E34: 1425.24 | F34: 2381.218 | G34: 3716.115 | H34: 38786.314 | I34: 30250.193 | J34: 18586.53 | K34: 21475.785 | L34: 15315.345 | M34: 2148.687 | N34: =(N73*$N$40)/(10^3) -> 2040.935 | O34: 1053.365 | P34: 777.615 | Q34: 759.552 | R34: 656.88 | S34: 645.255 | T34: 1107.51 | U34: 1413.5 | V34: 1539.198 | W34: 2283.84 | X34: 2004.21 | Y34: 0 | Z34: 0 | AA34: 0 | AB34: 0 | AC34: 0 | AD34: 0 | AE34: =(AE73*AE$40)/(10^3) -> 0 | AF34: 1076.16 | AG34: =(AG73*AG$40)/(10^3) -> 681.275 | AH34: 606.234 | AI34: =(AI73*AI$40)/(10^3) -> 1191.513
B35: West Virginia | C35: 0 | D35: 0 | E35: 0 | F35: 0 | G35: 0 | H35: 0 | I35: 0 | J35: 0 | K35: 0 | L35: 0 | M35: 0 | N35: 0 | O35: 0 | P35: 0 | Q35: 0 | R35: 0 | S35: 0 | T35: 0 | U35: 0 | V35: 0 | W35: 0 | X35: 0 | Y35: 0 | Z35: 0 | AA35: 0 | AB35: 0 | AC35: 0 | AD35: 0 | AE35: =(AE74*AE$40)/(10^3) -> 0 | AF35: 0 | AG35: =(AG74*AG$40)/(10^3) -> 0 | AH35: 0 | AI35: =(AI74*AI$40)/(10^3) -> 0
B36: Wyoming | C36: 69853.68 | D36: 91802.232 | E36: 99606.96 | F36: 139756.372 | G36: 140027.81 | H36: 164485.426 | I36: 161306.268 | J36: 155142.729 | K36: 9660.499 | L36: 9965.214 | M36: 11009.115 | N36: 8245.51 | O36: 13628.668 | P36: 18403.555 | Q36: 18600.192 | R36: 34401.744 | S36: 34922.083 | T36: 52656.866 | U36: 46580.6 | V36: 46825.53 | W36: 46226.898 | X36: 65905.962 | Y36: 49563.039 | Z36: 38118.822 | AA36: 30377.52 | AB36: 3903.652 | AC36: 13096.08 | AD36: 20792.793 | AE36: =(AE75*AE$40)/(10^3) -> 10158.372 | AF36: 9886.08 | AG36: =(AG75*AG$40)/(10^3) -> 69175.175 | AH36: 75340.332 | AI36: =(AI75*AI$40)/(10^3) -> 67417.575
B38: Thermal Conversion Factors (Btu/Ft3) (Source: Monthly Energy Review: Table A4 Approximate Heat Content of Natural Gas, 1950-2021 (Btu per Cubic Foot))
C39: 1990 | D39: 1991 | E39: 1992 | F39: 1993 | G39: 1994 | H39: 1995 | I39: 1996 | J39: 1997 | K39: 1998 | L39: 1999 | M39: 2000 | N39: 2001 | O39: 2002 | P39: 2003 | Q39: 2004 | R39: 2005 | S39: 2006 | T39: 2007 | U39: 2008 | V39: 2009 | W39: 2010 | X39: 2011 | Y39: 2012 | Z39: 2013 | AA39: 2014 | AB39: 2015 | AC39: 2016 | AD39: 2017 | AE39: 2018 | AF39: 2019 | AG39: 2020 | AH39: 2021 | AI39: 2022 | AJ39: 2023 | AK39: 2024 | AL39: 2025
B40: Factor | C40: 1105 | D40: 1108 | E40: 1110 | F40: 1106 | G40: 1105 | H40: 1106 | I40: 1109 | J40: 1107 | K40: 1109 | L40: 1107 | M40: 1107 | N40: 1105 | O40: 1103 | P40: 1103 | Q40: 1104 | R40: 1104 | S40: 1103 | T40: 1102 | U40: 1100 | V40: 1101 | W40: 1098 | X40: 1142 | Y40: 1091 | Z40: 1101 | AA40: 1116 | AB40: 1124 | AC40: 1128 | AD40: 1129 | AE40: 1134 | AF40: 1140 | AG40: 1145 | AH40: 1146 | AI40: 1149
B41: Natural Gas Vented and Flared (MMcf) (Source: EIA's Natural Gas Navigator - Gross Withdrawals and Production. Available online at: http://www.eia.gov/dnav/ng/ng_prod_sum_a_EPG0_vgv_mmcf_a.htm
C42: 1990 | D42: 1991 | E42: 1992 | F42: 1993 | G42: 1994 | H42: 1995 | I42: 1996 | J42: 1997 | K42: 1998 | L42: 1999 | M42: 2000 | N42: 2001 | O42: 2002 | P42: 2003 | Q42: 2004 | R42: 2005 | S42: 2006 | T42: 2007 | U42: 2008 | V42: 2009 | W42: 2010 | X42: 2011 | Y42: 2012 | Z42: 2013 | AA42: 2014 | AB42: 2015 | AC42: 2016 | AD42: 2017 | AE42: 2018 | AF42: 2019 | AG42: 2020 | AH42: 2021 | AI42: 2022 | AJ42: 2023 | AK42: 2024 | AL42: 2025
A43: AL | B43: Alabama | C43: 1933 | D43: 2193 | E43: 1799 | F43: 1798 | G43: 2650 | H43: 2935 | I43: 1853 | J43: 1563 | K43: 1462 | L43: 1085 | M43: 1262 | N43: 1039 | O43: 1331 | P43: 1611 | Q43: 2316 | R43: 2485 | S43: 3525 | T43: 2372 | U43: 1801 | V43: 2495 | W43: 2617 | X43: 3491 | Y43: 0 | Z43: 0 | AA43: 0 | AB43: 0 | AC43: 0 | AD43: 0 | AE43: 0 | AF43: 0 | AG43: 0 | AH43: 0 | AI43: 0
A44: AK | B44: Alaska | C44: 10727 | D44: 10784 | E44: 14097 | F44: 22485 | G44: 13240 | H44: 8736 | I44: 7070 | J44: 8269 | K44: 8171 | L44: 7098 | M44: 7546 | N44: 7686 | O44: 7312 | P44: 6345 | Q44: 6088 | R44: 6429 | S44: 7125 | T44: 6458 | U44: 10023 | V44: 6481 | W44: 10173 | X44: 10966 | Y44: 11769 | Z44: 7219 | AA44: 6554 | AB44: 5385 | AC44: 8541 | AD44: 7605 | AE44: 8210 | AF44: 7248 | AG44: 5707 | AH44: 5969 | AI44: 7113
A45: AZ | B45: Arizona | C45: 22 | D45: 56 | E45: 23 | F45: 21 | G45: 8 | H45: 0 | I45: 0 | J45: 1 | K45: 0 | L45: 0 | M45: 0 | N45: 0 | O45: 0 | P45: 0 | Q45: 0 | R45: 0 | S45: 0 | T45: 0 | U45: 0 | V45: 0 | W45: 0 | X45: 0 | Y45: 0 | Z45: 0 | AA45: 0 | AB45: 0 | AC45: 0 | AD45: 0 | AE45: 0 | AF45: 0 | AG45: 0 | AH45: 0 | AI45: 0
A46: AR | B46: Arkansas | C46: 284 | D46: 208 | E46: 371 | F46: 409 | G46: 313 | H46: 313 | I46: 270 | J46: 134 | K46: 45 | L46: 6005 | M46: 206 | N46: 431 | O46: 251 | P46: 354 | Q46: 241 | R46: 241 | S46: 12 | T46: 11 | U46: 114 | V46: 141 | W46: 425 | X46: 494 | Y46: 0 | Z46: 0 | AA46: 0 | AB46: 0 | AC46: 0 | AD46: 0 | AE46: 0 | AF46: 0 | AG46: 0 | AH46: 0 | AI46: 0
A47: CA | B47: California | C47: 1244 | D47: 1429 | E47: 751 | F47: 580 | G47: 830 | H47: 1250 | I47: 1268 | J47: 1590 | K47: 1952 | L47: 1367 | M47: 2210 | N47: 1717 | O47: 2690 | P47: 3940 | Q47: 3215 | R47: 2120 | S47: 1562 | T47: 1879 | U47: 2127 | V47: 2501 | W47: 2790 | X47: 2424 | Y47: 0 | Z47: 0 | AA47: 0 | AB47: 0 | AC47: 0 | AD47: 0 | AE47: 0 | AF47: 0 | AG47: 1555 | AH47: 1506 | AI47: 1534
A48: CO | B48: Colorado | C48: 4719 | D48: 2890 | E48: 1868 | F48: 2024 | G48: 2476 | H48: 1510 | I48: 1230 | J48: 2178 | K48: 1244 | L48: 802 | M48: 805 | N48: 908 | O48: 935 | P48: 1123 | Q48: 1158 | R48: 1215 | S48: 1291 | T48: 1333 | U48: 1501 | V48: 1411 | W48: 1242 | X48: 1291 | Y48: 0 | Z48: 0 | AA48: 0 | AB48: 0 | AC48: 2620 | AD48: 4279 | AE48: 6021 | AF48: 4279 | AG48: 3044 | AH48: 1653 | AI48: 566
A49: FL | B49: Florida | C49: 286 | D49: 482 | E49: 245 | F49: 205 | G49: 220 | H49: 28 | I49: 0 | J49: 0 | K49: 0 | L49: 0 | M49: 0 | N49: 0 | O49: 0 | P49: 0 | Q49: 0 | R49: 0 | S49: 0 | T49: 0 | U49: 0 | V49: 0 | W49: 0 | X49: 0 | Y49: 0 | Z49: 0 | AA49: 0 | AB49: 0 | AC49: 0 | AD49: 0 | AE49: 0 | AF49: 0 | AG49: 0 | AH49: 0 | AI49: 0
A50: IL | B50: Illinois | C50: 0 | D50: 0 | E50: 0 | F50: 0 | G50: 0 | H50: 0 | I50: 0 | J50: 0 | K50: 0 | L50: 0 | M50: 0 | N50: 0 | O50: 0 | P50: 0 | Q50: 0 | R50: 0 | S50: 0 | T50: 0 | U50: 0 | V50: 0 | W50: 0 | X50: 0 | Y50: 0 | Z50: 0 | AA50: 0 | AB50: 0 | AC50: 0 | AD50: 0 | AE50: 0 | AF50: 0 | AG50: 0 | AH50: 0 | AI50: 0
A51: IN | B51: Indiana | C51: 0 | D51: 0 | E51: 0 | F51: 0 | G51: 0 | H51: 0 | I51: 0 | J51: 0 | K51: 0 | L51: 0 | M51: 0 | N51: 0 | O51: 0 | P51: 0 | Q51: 0 | R51: 0 | S51: 0 | T51: 0 | U51: 0 | V51: 0 | W51: 0 | X51: 0 | Y51: 0 | Z51: 0 | AA51: 0 | AB51: 0 | AC51: 0 | AD51: 0 | AE51: 0 | AF51: 0 | AG51: 0 | AH51: 0 | AI51: 0
A52: KS | B52: Kansas | C52: 557 | D52: 628 | E52: 642 | F52: 670 | G52: 715 | H52: 723 | I52: 716 | J52: 680 | K52: 605 | L52: 555 | M52: 527 | N52: 481 | O52: 456 | P52: 420 | Q52: 398 | R52: 378 | S52: 365 | T52: 363 | U52: 373 | V52: 353 | W52: 323 | X52: 307 | Y52: 0 | Z52: 0 | AA52: 0 | AB52: 0 | AC52: 0 | AD52: 0 | AE52: 0 | AF52: 0 | AG52: 0 | AH52: 0 | AI52: 0
A53: KY | B53: Kentucky | C53: 0 | D53: 0 | E53: 0 | F53: 0 | G53: 0 | H53: 0 | I53: 0 | J53: 0 | K53: 0 | L53: 0 | M53: 0 | N53: 0 | O53: 0 | P53: 0 | Q53: 0 | R53: 0 | S53: 0 | T53: 0 | U53: 0 | V53: 0 | W53: 0 | X53: 0 | Y53: 0 | Z53: 0 | AA53: 0 | AB53: 0 | AC53: 0 | AD53: 0 | AE53: 0 | AF53: 0 | AG53: 0 | AH53: 0 | AI53: 0
A54: LA | B54: Louisiana | C54: 20660 | D54: 20415 | E54: 20538 | F54: 19580 | G54: 19689 | H54: 18729 | I54: 21705 | J54: 21928 | K54: 19543 | L54: 21509 | M54: 20266 | N54: 11750 | O54: 10957 | P54: 9283 | Q54: 5015 | R54: 5228 | S54: 6665 | T54: 6496 | U54: 4021 | V54: 4336 | W54: 4578 | X54: 6302 | Y54: 0 | Z54: 3912 | AA54: 4606 | AB54: 3787 | AC54: 5106 | AD54: 5338 | AE54: 5966 | AF54: 5101 | AG54: 4491 | AH54: 3499 | AI54: 3816
A55: MD | B55: Maryland | C55: 0 | D55: 0 | E55: 0 | F55: 0 | G55: 0 | H55: 0 | I55: 0 | J55: 0 | K55: 0 | L55: 0 | M55: 0 | N55: 0 | O55: 0 | P55: 0 | Q55: 0 | R55: 0 | S55: 0 | T55: 0 | U55: 0 | V55: 0 | W55: 0 | X55: 0 | Y55: 0 | Z55: 0 | AA55: 0 | AB55: 0 | AC55: 0 | AD55: 0 | AE55: 0 | AF55: 0 | AG55: 0 | AH55: 0 | AI55: 0
A56: MI | B56: Michigan | C56: 3324 | D56: 3324 | E56: 3324 | F56: 3324 | G56: 3324 | H56: 3324 | I56: 3324 | J56: 3324 | K56: 3324 | L56: 3324 | M56: 3324 | N56: 3324 | O56: 3324 | P56: 3324 | Q56: 3324 | R56: 3324 | S56: 3324 | T56: 3324 | U56: 3324 | V56: 3324 | W56: 3324 | X56: 3324 | Y56: 0 | Z56: 0 | AA56: 0 | AB56: 0 | AC56: 0 | AD56: 0 | AE56: 0 | AF56: 0 | AG56: 0 | AH56: 0 | AI56: 0
A57: MS | B57: Mississippi | C57: 3628 | D57: 2799 | E57: 3076 | F57: 2222 | G57: 1928 | H57: 2234 | I57: 2677 | J57: 2742 | K57: 2798 | L57: 2745 | M57: 2477 | N57: 2961 | O57: 3267 | P57: 3501 | Q57: 3812 | R57: 3944 | S57: 4575 | T57: 5909 | U57: 7504 | V57: 7875 | W57: 8685 | X57: 9593 | Y57: 0 | Z57: 0 | AA57: 0 | AB57: 0 | AC57: 0 | AD57: 0 | AE57: 0 | AF57: 0 | AG57: 0 | AH57: 0 | AI57: 0
A58: MO | B58: Missouri | C58: 0 | D58: 0 | E58: 0 | F58: 0 | G58: 0 | H58: 0 | I58: 0 | J58: 0 | K58: 0 | L58: 0 | M58: 0 | N58: 0 | O58: 0 | P58: 0 | Q58: 0 | R58: 0 | S58: 0 | T58: 0 | U58: 0 | V58: 0 | W58: 0 | X58: 0 | Y58: 0 | Z58: 0 | AA58: 0 | AB58: 0 | AC58: 0 | AD58: 0 | AE58: 0 | AF58: 0 | AG58: 0 | AH58: 0 | AI58: 0
A59: MT | B59: Montana | C59: 886 | D59: 772 | E59: 763 | F59: 758 | G59: 551 | H59: 417 | I59: 596 | J59: 1120 | K59: 1274 | L59: 317 | M59: 488 | N59: 404 | O59: 349 | P59: 403 | Q59: 1071 | R59: 629 | S59: 1173 | T59: 3721 | U59: 6863 | V59: 7001 | W59: 5722 | X59: 4878 | Y59: 0 | Z59: 0 | AA59: 0 | AB59: 6884 | AC59: 4214 | AD59: 3121 | AE59: 3540 | AF59: 5078 | AG59: 3870 | AH59: 3126 | AI59: 3005
A60: NE | B60: Nebraska | C60: 0 | D60: 0 | E60: 0 | F60: 0 | G60: 0 | H60: 0 | I60: 0 | J60: 0 | K60: 0 | L60: 0 | M60: 0 | N60: 0 | O60: 5 | P60: 12 | Q60: 23 | R60: 29 | S60: 17 | T60: 5 | U60: 2 | V60: 9 | W60: 24 | X60: 21 | Y60: 0 | Z60: 0 | AA60: 0 | AB60: 0 | AC60: 0 | AD60: 0 | AE60: 0 | AF60: 0 | AG60: 0 | AH60: 0 | AI60: 0
A61: NV | B61: Nevada | C61: 0 | D61: 0 | E61: 0 | F61: 0 | G61: 0 | H61: 0 | I61: 0 | J61: 0 | K61: 0 | L61: 0 | M61: 0 | N61: 0 | O61: 0 | P61: 0 | Q61: 0 | R61: 0 | S61: 0 | T61: 0 | U61: 0 | V61: 0 | W61: 0 | X61: 0 | Y61: 0 | Z61: 0 | AA61: 0 | AB61: 0 | AC61: 0 | AD61: 0 | AE61: 0 | AF61: 0 | AG61: 0 | AH61: 0 | AI61: 0
A62: NM | B62: New Mexico | C62: 1679 | D62: 1365 | E62: 1626 | F62: 1581 | G62: 1963 | H62: 2144 | I62: 2700 | J62: 2786 | K62: 2673 | L62: 2715 | M62: 3130 | N62: 3256 | O62: 2849 | P62: 2347 | Q62: 3525 | R62: 3533 | S62: 2869 | T62: 929 | U62: 803 | V62: 481 | W62: 1586 | X62: 4360 | Y62: 12259 | Z62: 21053 | AA62: 19119 | AB62: 24850 | AC62: 25680 | AD62: 17494 | AE62: 37413 | AF62: 37294 | AG62: 22535 | AH62: 17277 | AI62: 20873
A63: NY | B63: New York | C63: 375 | D63: 1 | E63: 13 | F63: 14 | G63: 11 | H63: 0 | I63: 3 | J63: 5 | K63: 5 | L63: 5 | M63: 0 | N63: 0 | O63: 0 | P63: 0 | Q63: 0 | R63: 0 | S63: 0 | T63: 0 | U63: 0 | V63: 0 | W63: 0 | X63: 0 | Y63: 0 | Z63: 0 | AA63: 0 | AB63: 0 | AC63: 0 | AD63: 0 | AE63: 0 | AF63: 0 | AG63: 0 | AH63: 0 | AI63: 0
A64: ND | B64: North Dakota | C64: 3642 | D64: 2603 | E64: 2197 | F64: 2337 | G64: 2492 | H64: 4300 | I64: 2957 | J64: 3534 | K64: 4371 | L64: 2693 | M64: 3290 | N64: 3166 | O64: 2791 | P64: 2070 | Q64: 2198 | R64: 3260 | S64: 7460 | T64: 10500 | U64: 25700 | V64: 26876 | W64: 24582 | X64: 49652 | Y64: 79564 | Z64: 102855 | AA64: 129717 | AB64: 106565 | AC64: 70045 | AD64: 88555 | AE64: 148501 | AF64: 205278 | AG64: 99532 | AH64: 76459 | AI64: 63998
A65: OH | B65: Ohio | C65: 0 | D65: 0 | E65: 0 | F65: 0 | G65: 0 | H65: 0 | I65: 0 | J65: 0 | K65: 0 | L65: 0 | M65: 0 | N65: 0 | O65: 0 | P65: 0 | Q65: 0 | R65: 0 | S65: 0 | T65: 0 | U65: 0 | V65: 0 | W65: 0 | X65: 0 | Y65: 0 | Z65: 0 | AA65: 0 | AB65: 0 | AC65: 0 | AD65: 0 | AE65: 0 | AF65: 0 | AG65: 0 | AH65: 0 | AI65: 0
A66: OK | B66: Oklahoma | C66: 0 | D66: 0 | E66: 0 | F66: 0 | G66: 0 | H66: 0 | I66: 0 | J66: 0 | K66: 0 | L66: 0 | M66: 0 | N66: 0 | O66: 0 | P66: 0 | Q66: 0 | R66: 0 | S66: 0 | T66: 0 | U66: 0 | V66: 0 | W66: 0 | X66: 0 | Y66: 0 | Z66: 0 | AA66: 0 | AB66: 0 | AC66: 0 | AD66: 0 | AE66: 0 | AF66: 0 | AG66: 0 | AH66: 0 | AI66: 0
A67: OR | B67: Oregon | C67: 0 | D67: 0 | E67: 0 | F67: 0 | G67: 0 | H67: 0 | I67: 0 | J67: 0 | K67: 0 | L67: 0 | M67: 0 | N67: 0 | O67: 0 | P67: 0 | Q67: 0 | R67: 0 | S67: 0 | T67: 0 | U67: 0 | V67: 0 | W67: 0 | X67: 0 | Y67: 0 | Z67: 0 | AA67: 0 | AB67: 0 | AC67: 0 | AD67: 0 | AE67: 0 | AF67: 0 | AG67: 0 | AH67: 0 | AI67: 0
A68: other states | B68: Other States | C68: 0 | D68: 5109 | E68: 5883 | F68: 6176 | G68: 6137 | H68: 7435 | I68: 7909 | J68: 1778 | K68: 1576 | L68: 7564 | M68: 2012 | N68: 2473 | O68: 2135 | P68: 2467 | Q68: 2399 | R68: 2342 | S68: 13372 | T68: 13786 | U68: 14704 | V68: 15863 | W68: 16785 | X68: 18549 | Y68: 0 | Z68: 0 | AA68: 0 | AB68: 13957 | AC68: 0 | AD68: 0 | AE68: 7 | AF68: 0 | AG68: 0 | AH68: 0 | AI68: 0
A69: PA | B69: Pennsylvania | C69: 0 | D69: 0 | E69: 0 | F69: 0 | G69: 0 | H69: 0 | I69: 0 | J69: 0 | K69: 0 | L69: 0 | M69: 0 | N69: 0 | O69: 0 | P69: 0 | Q69: 0 | R69: 0 | S69: 0 | T69: 0 | U69: 0 | V69: 0 | W69: 0 | X69: 0 | Y69: 0 | Z69: 0 | AA69: 0 | AB69: 0 | AC69: 0 | AD69: 0 | AE69: 0 | AF69: 0 | AG69: 0 | AH69: 0 | AI69: 0
A70: SD | B70: South Dakota | C70: 3648 | D70: 4844 | E70: 5476 | F70: 5732 | G70: 5805 | H70: 7122 | I70: 7636 | J70: 1639 | K70: 1526 | L70: 1555 | M70: 1806 | N70: 2043 | O70: 1880 | P70: 2100 | Q70: 2135 | R70: 2071 | S70: 1931 | T70: 2177 | U70: 2073 | V70: 2160 | W70: 2136 | X70: 2120 | Y70: 0 | Z70: 0 | AA70: 0 | AB70: 13957 | AC70: 0 | AD70: 0 | AE70: 0 | AF70: 0 | AG70: 0 | AH70: 0 | AI70: 0
A71: TN | B71: Tennessee | C71: 0 | D71: 0 | E71: 0 | F71: 0 | G71: 0 | H71: 0 | I71: 0 | J71: 0 | K71: 0 | L71: 0 | M71: 0 | N71: 0 | O71: 0 | P71: 0 | Q71: 0 | R71: 0 | S71: 0 | T71: 0 | U71: 0 | V71: 0 | W71: 0 | X71: 0 | Y71: 0 | Z71: 0 | AA71: 0 | AB71: 0 | AC71: 0 | AD71: 0 | AE71: 0 | AF71: 0 | AG71: 0 | AH71: 0 | AI71: 0
A72: TX | B72: Texas | C72: 28247 | D72: 30638 | E72: 19689 | F72: 34486 | G72: 42037 | H72: 46183 | I72: 45382 | J72: 47922 | K72: 25949 | L72: 35675 | M72: 32010 | N72: 26823 | O72: 27379 | P72: 23781 | Q72: 26947 | R72: 38654 | S72: 43169 | T72: 36682 | U72: 42541 | V72: 41234 | W72: 39569 | X72: 35248 | Y72: 47530 | Z72: 76113 | AA72: 90125 | AB72: 113786 | AC72: 87527 | AD72: 96946 | AE72: 238054 | AF72: 251186 | AG72: 125336 | AH72: 102267 | AI72: 99698
A73: UT | B73: Utah | C73: 1338 | D73: 1625 | E73: 1284 | F73: 2153 | G73: 3363 | H73: 35069 | I73: 27277 | J73: 16790 | K73: 19365 | L73: 13835 | M73: 1941 | N73: 1847 | O73: 955 | P73: 705 | Q73: 688 | R73: 595 | S73: 585 | T73: 1005 | U73: 1285 | V73: 1398 | W73: 2080 | X73: 1755 | Y73: 0 | Z73: 0 | AA73: 0 | AB73: 0 | AC73: 0 | AD73: 0 | AE73: 0 | AF73: 944 | AG73: 595 | AH73: 529 | AI73: 1037
A74: WV | B74: West Virginia | C74: 0 | D74: 0 | E74: 0 | F74: 0 | G74: 0 | H74: 0 | I74: 0 | J74: 0 | K74: 0 | L74: 0 | M74: 0 | N74: 0 | O74: 0 | P74: 0 | Q74: 0 | R74: 0 | S74: 0 | T74: 0 | U74: 0 | V74: 0 | W74: 0 | X74: 0 | Y74: 0 | Z74: 0 | AA74: 0 | AB74: 0 | AC74: 0 | AD74: 0 | AE74: 0 | AF74: 0 | AG74: 0 | AH74: 0 | AI74: 0
A75: WY | B75: Wyoming | C75: 63216 | D75: 82854 | E75: 89736 | F75: 126362 | G75: 126722 | H75: 148721 | I75: 145452 | J75: 140147 | K75: 8711 | L75: 9002 | M75: 9945 | N75: 7462 | O75: 12356 | P75: 16685 | Q75: 16848 | R75: 31161 | S75: 31661 | T75: 47783 | U75: 42346 | V75: 42530 | W75: 42101 | X75: 57711 | Y75: 45429 | Z75: 34622 | AA75: 27220 | AB75: 3473 | AC75: 11610 | AD75: 18417 | AE75: 8958 | AF75: 8672 | AG75: 60415 | AH75: 65742 | AI75: 58675

Sheet ListData
E1: Region Code | F1: Region
B2: 1 | C2: =VLOOKUP(StateID,B3:E53,3,FALSE) -> XX | D2: =VLOOKUP(StateID,B3:E53,2,FALSE) -> Select a State . . . | E2: =VLOOKUP(StateID,B3:E53,4,FALSE) -> 0 | F2: =VLOOKUP(C2,$H$17:$I$67,2,FALSE) ->  | H2: Region Code | I2: Tons CH4/Well
B3: 1 | C3: Select a State . . . | D3: XX | E3: 0 | H3: 1 | I3: 2.780166822 | J3: Appalachian States Only (as defined in the text - WV, PA, KY, NY, MD, VA)
B4: 2 | C4: Alabama | D4: AL | E4: 3 | H4: 2 | I4: 2.782094639 | J4: East North Central States Only (Illinois, Indiana, Michigan, Ohio, and Wisconsin)
B5: 3 | C5: Alaska | D5: AK | E5: 3 | H5: 3 | I5: 3.713731809 | J5: Rest of the U.S.(States not covered under Appalachian or East N. Central States' Category)
B6: 4 | C6: Arizona | D6: AZ | E6: 3
B7: 5 | C7: Arkansas | D7: AR | E7: 3
B8: 6 | C8: California | D8: CA | E8: 3
B9: 7 | C9: Colorado | D9: CO | E9: 3 | H9: VersionNumber | I9: 2
B10: 8 | C10: Connecticut | D10: CT | E10: 3 | H10: VersionDate | I10: 2025-01-31
B11: 9 | C11: Delaware | D11: DE | E11: 3
B12: 10 | C12: Florida | D12: FL | E12: 3
B13: 11 | C13: Georgia | D13: GA | E13: 3
B14: 12 | C14: Hawaii | D14: HI | E14: 3
B15: 13 | C15: Idaho | D15: ID | E15: 3
B16: 14 | C16: Illinois | D16: IL | E16: 2 | H16: State | I16: Region
B17: 15 | C17: Indiana | D17: IN | E17: 2 | H17: IL | I17: NE
B18: 16 | C18: Iowa | D18: IA | E18: 3 | H18: IN | I18: NE
B19: 17 | C19: Kansas | D19: KS | E19: 3 | H19: KY | I19: NE
B20: 18 | C20: Kentucky | D20: KY | E20: 1 | H20: MI | I20: NE
B21: 19 | C21: Louisiana | D21: LA | E21: 3 | H21: NY | I21: NE
B22: 20 | C22: Maine | D22: ME | E22: 3 | H22: OH | I22: NE
B23: 21 | C23: Maryland | D23: MD | E23: 1 | H23: PA | I23: NE
B24: 22 | C24: Massachusetts | D24: MA | E24: 3 | H24: TN | I24: NE
B25: 23 | C25: Michigan | D25: MI | E25: 2 | H25: VA | I25: NE
B26: 24 | C26: Minnesota | D26: MN | E26: 3 | H26: WV | I26: NE
B27: 25 | C27: Mississippi | D27: MS | E27: 3 | H27: VT | I27: NE
B28: 26 | C28: Missouri | D28: MO | E28: 3 | H28: ME | I28: NE
B29: 27 | C29: Montana | D29: MT | E29: 3 | H29: MA | I29: NE
B30: 28 | C30: Nebraska | D30: NE | E30: 3 | H30: NH | I30: NE
B31: 29 | C31: Nevada | D31: NV | E31: 3 | H31: NJ | I31: NE
B32: 30 | C32: New Hampshire | D32: NH | E32: 3 | H32: MD | I32: NE
B33: 31 | C33: New Jersey | D33: NJ | E33: 3 | H33: WI | I33: NE
B34: 32 | C34: New Mexico | D34: NM | E34: 3 | H34: NC | I34: NE
B35: 33 | C35: New York | D35: NY | E35: 1 | H35: SC | I35: NE
B36: 34 | C36: North Carolina | D36: NC | E36: 3 | H36: RI | I36: NE
B37: 35 | C37: North Dakota | D37: ND | E37: 3 | H37: DE | I37: NE
B38: 36 | C38: Ohio | D38: OH | E38: 2 | H38: GA | I38: NE
B39: 37 | C39: Oklahoma | D39: OK | E39: 3 | H39: CT | I39: NE
B40: 38 | C40: Oregon | D40: OR | E40: 3 | H40: DC | I40: NE
B41: 39 | C41: Pennsylvania | D41: PA | E41: 1 | H41: AL | I41: GC
B42: 40 | C42: Rhode Island | D42: RI | E42: 3 | H42: FL | I42: GC
B43: 41 | C43: South Carolina | D43: SC | E43: 3 | H43: LA | I43: GC
B44: 42 | C44: South Dakota | D44: SD | E44: 3 | H44: MS | I44: GC
B45: 43 | C45: Tennessee | D45: TN | E45: 3 | H45: NM | I45: SW
B46: 44 | C46: Texas | D46: TX | E46: 3 | H46: TX | I46: SW
B47: 45 | C47: Utah | D47: UT | E47: 3 | H47: AR | I47: MC
B48: 46 | C48: Vermont | D48: VT | E48: 3 | H48: KS | I48: MC
B49: 47 | C49: Virginia | D49: VA | E49: 1 | H49: MO | I49: MC
B50: 48 | C50: Washington | D50: WA | E50: 3 | H50: NE | I50: MC
B51: 49 | C51: West Virginia | D51: WV | E51: 1 | H51: OK | I51: MC
B52: 50 | C52: Wisconsin | D52: WI | E52: 2 | H52: MN | I52: MC
B53: 51 | C53: Wyoming | D53: WY | E53: 3 | H53: IA | I53: MC
H54: AZ | I54: RM
H55: CO | I55: RM
H56: MT | I56: RM
H57: NV | I57: RM
H58: ND | I58: RM
H59: SD | I59: RM
H60: UT | I60: RM
H61: WY | I61: RM
H62: ID | I62: RM
H63: AK | I63: WC
H64: CA | I64: WC
H65: OR | I65: WC
H66: WA | I66: WC
H67: HI | I67: WC

Sheet Notes
Z1: Summary
Z2: $D$6
A3: Notes and Comments
A4: Use this sheet to keep a record of data sources, edits, or any other useful notes about the use of this tool.

Sheet Number of Wells
B2: Number of Natural Gas wells by state
C3: 1990 | D3: 1991 | E3: 1992 | F3: 1993 | G3: 1994 | H3: 1995 | I3: 1996 | J3: 1997 | K3: 1998 | L3: 1999 | M3: 2000 | N3: 2001 | O3: 2002 | P3: 2003 | Q3: 2004 | R3: 2005 | S3: 2006 | T3: 2007 | U3: 2008 | V3: 2009 | W3: 2010 | X3: 2011 | Y3: 2012 | Z3: 2013 | AA3: 2014 | AB3: 2015 | AC3: 2016 | AD3: 2017 | AE3: 2018 | AF3: 2019 | AG3: 2020 | AH3: 2021 | AI3: 2022 | AJ3: 2023 | AK3: 2024 | AL3: 2025
A4: Alabama | B4: AL | C4: 2362 | D4: 3392 | E4: 3350 | F4: 3514 | G4: 3565 | H4: 3526 | I4: 4105 | J4: 4156 | K4: 4171 | L4: 4204 | M4: 4359 | N4: 4597 | O4: 4803 | P4: 5157 | Q4: 5526 | R4: 5523 | S4: 6227 | T4: 6591 | U4: 6860 | V4: 6913 | W4: 7026 | X4: 6243 | Y4: 6203 | Z4: 6174 | AA4: 6117 | AB4: 6047 | AC4: 5980 | AD4: 5910 | AE4: 5754 | AF4: 5573 | AG4: 5387 | AH4: =AG4 -> 5387 | AI4: =AH4 -> 5387
A5: Alaska | B5: AK | C5: 111 | D5: 110 | E5: 112 | F5: 113 | G5: 104 | H5: 100 | I5: 102 | J5: 141 | K5: 148 | L5: 99 | M5: 152 | N5: 170 | O5: 165 | P5: 195 | Q5: 224 | R5: 227 | S5: 231 | T5: 239 | U5: 261 | V5: 261 | W5: 269 | X5: 274 | Y5: 281 | Z5: 300 | AA5: 338 | AB5: 323 | AC5: 303 | AD5: 352 | AE5: 824 | AF5: 798 | AG5: 827 | AH5: =AG5 -> 827 | AI5: 827
A6: Arizona | B6: AZ | C6: 5 | D6: 6 | E6: 6 | F6: 6 | G6: 6 | H6: 7 | I6: 7 | J6: 8 | K6: 8 | L6: 8 | M6: 9 | N6: 8 | O6: 7 | P6: 9 | Q6: 6 | R6: 6 | S6: 7 | T6: 7 | U6: 6 | V6: 6 | W6: 5 | X6: 5 | Y6: 4 | Z6: 3 | AA6: 6 | AB6: 6 | AC6: 3 | AD6: 3 | AE6: 0 | AF6: 0 | AG6: 0 | AH6: 0 | AI6: 0
A7: Arkansas | B7: AR | C7: 2952 | D7: 2780 | E7: 3500 | F7: 3500 | G7: 3500 | H7: 3988 | I7: 4020 | J7: 3700 | K7: 3900 | L7: 3650 | M7: 4000 | N7: 4825 | O7: 6755 | P7: 7606 | Q7: 3460 | R7: 3462 | S7: 3814 | T7: 4773 | U7: 5592 | V7: 6314 | W7: 7397 | X7: 8428 | Y7: 9012 | Z7: 9324 | AA7: 9778 | AB7: 9959 | AC7: 9796 | AD7: 9730 | AE7: 9432 | AF7: 9334 | AG7: 9043 | AH7: 9043 | AI7: 9043
A8: California | B8: CA | C8: 1162 | D8: 1377 | E8: 1126 | F8: 1092 | G8: 1261 | H8: 997 | I8: 978 | J8: 930 | K8: 847 | L8: 1152 | M8: 1169 | N8: 1244 | O8: 1232 | P8: 1249 | Q8: 1272 | R8: 1356 | S8: 1451 | T8: 1540 | U8: 1645 | V8: 1643 | W8: 1580 | X8: 4240 | Y8: 4356 | Z8: 4183 | AA8: 4211 | AB8: 4210 | AC8: 3997 | AD8: 3768 | AE8: 3631 | AF8: 3627 | AG8: 3583 | AH8: 3583 | AI8: 3583
A9: Colorado | B9: CO | C9: 5741 | D9: 5562 | E9: 5912 | F9: 6372 | G9: 7056 | H9: 7017 | I9: 8251 | J9: 12433 | K9: 13838 | L9: 13838 | M9: 22442 | N9: 22117 | O9: 23554 | P9: 18774 | Q9: 16718 | R9: 22691 | S9: 20568 | T9: 22949 | U9: 25716 | V9: 27021 | W9: 28813 | X9: 43792 | Y9: 46141 | Z9: 46883 | AA9: 46876 | AB9: 46268 | AC9: 45943 | AD9: 45263 | AE9: 37913 | AF9: 32482 | AG9: 31939 | AH9: 31939 | AI9: 31939
B10: Federal Offshore--Gulf of Mexico Natural Gas Number of Gas and Gas Condensate Wells (Count) | C10: 0 | D10: 0 | E10: 0 | F10: 0 | G10: 0 | H10: 0 | I10: 0 | J10: 0 | K10: 0 | L10: 0 | M10: 0 | N10: 3271 | O10: 3245 | P10: 3039 | Q10: 2781 | R10: 2123 | S10: 2419 | T10: 2552 | U10: 1527 | V10: 1984 | W10: 1852 | X10: 2226 | Y10: 1892 | Z10: 1588 | AA10: 1377 | AB10: 1156 | AC10: 988 | AD10: 872 | AE10: 634 | AF10: 565 | AG10: 499 | AH10: 499 | AI10: 499
B11: FL | C11: 0 | D11: 0 | E11: 0 | F11: 0 | G11: 0 | H11: 0 | I11: 0 | J11: 0 | K11: 0 | L11: 0 | M11: 0 | N11: 0 | O11: 0 | P11: 0 | Q11: 0 | R11: 0 | S11: 0 | T11: 0 | U11: 0 | V11: 0 | W11: 0 | X11: 46 | Y11: 41 | Z11: 40 | AA11: 43 | AB11: 44 | AC11: 43 | AD11: 40 | AE11: 35 | AF11: 35 | AG11: 35 | AH11: 35 | AI11: 35
A12: Illinois | B12: IL | C12: 356 | D12: 373 | E12: 382 | F12: 385 | G12: 390 | H12: 372 | I12: 370 | J12: 372 | K12: 185 | L12: 300 | M12: 280 | N12: 300 | O12: 225 | P12: 240 | Q12: 251 | R12: 316 | S12: 316 | T12: 43 | U12: 45 | V12: 51 | W12: 50 | X12: 40 | Y12: 40 | Z12: 34 | AA12: 36 | AB12: 35 | AC12: 36 | AD12: 0 | AE12: 0 | AF12: 0 | AG12: 0 | AH12: 0 | AI12: 0
A13: Indiana | B13: IN | C13: 1307 | D13: 1334 | E13: 1333 | F13: 1336 | G13: 1348 | H13: 1347 | I13: 1367 | J13: 1458 | K13: 1479 | L13: 1498 | M13: 1502 | N13: 1533 | O13: 1545 | P13: 2291 | Q13: 2386 | R13: 2321 | S13: 2336 | T13: 2350 | U13: 525 | V13: 563 | W13: 620 | X13: 914 | Y13: 819 | Z13: 921 | AA13: 895 | AB13: 899 | AC13: 807 | AD13: 0 | AE13: 0 | AF13: 0 | AG13: 0 | AH13: 0 | AI13: 0
A14: Kansas | B14: KS | C14: 16980 | D14: 17948 | E14: 18400 | F14: 19472 | G14: 19365 | H14: 22020 | I14: 21388 | J14: 21500 | K14: 21000 | L14: 17568 | M14: 15206 | N14: 15357 | O14: 16957 | P14: 17387 | Q14: 18120 | R14: 18946 | S14: 19713 | T14: 19713 | U14: 17862 | V14: 21243 | W14: 22145 | X14: 25362 | Y14: 25013 | Z14: 24802 | AA14: 24840 | AB14: 24468 | AC14: 23472 | AD14: 22740 | AE14: 18627 | AF14: 17949 | AG14: 17362 | AH14: 17362 | AI14: 17362
A15: Kentucky | B15: KY | C15: 11713 | D15: 12169 | E15: 12483 | F15: 12836 | G15: 13036 | H15: 13311 | I15: 13501 | J15: 13825 | K15: 14381 | L15: 14750 | M15: 13487 | N15: 14370 | O15: 14367 | P15: 12900 | Q15: 13920 | R15: 14175 | S15: 15892 | T15: 16563 | U15: 16290 | V15: 17152 | W15: 17670 | X15: 12708 | Y15: 13179 | Z15: 14557 | AA15: 19256 | AB15: 18698 | AC15: 18246 | AD15: 0 | AE15: 10516 | AF15: 13329 | AG15: 12711 | AH15: 12711 | AI15: 12711
A16: Louisiana | B16: LA | C16: 16889 | D16: 15271 | E16: 13512 | F16: 15569 | G16: 12958 | H16: 14169 | I16: 15295 | J16: 14958 | K16: 18399 | L16: 16717 | M16: 15700 | N16: 16350 | O16: 17100 | P16: 16939 | Q16: 20734 | R16: 18838 | S16: 17459 | T16: 18145 | U16: 19213 | V16: 18860 | W16: 19137 | X16: 19318 | Y16: 19345 | Z16: 18802 | AA16: 18660 | AB16: 18347 | AC16: 17774 | AD16: 17452 | AE16: 16153 | AF16: 15741 | AG16: 14867 | AH16: 14867 | AI16: 14867
A17: Maryland | B17: MD | C17: 7 | D17: 7 | E17: 9 | F17: 7 | G17: 7 | H17: 7 | I17: 8 | J17: 8 | K17: 8 | L17: 8 | M17: 7 | N17: 7 | O17: 5 | P17: 7 | Q17: 7 | R17: 7 | S17: 7 | T17: 7 | U17: 7 | V17: 7 | W17: 7 | X17: 7 | Y17: 7 | Z17: 7 | AA17: 5 | AB17: 5 | AC17: 5 | AD17: 1 | AE17: 0 | AF17: 0 | AG17: 0 | AH17: 0 | AI17: 0
A18: Michigan | B18: MI | C18: 1438 | D18: 2620 | E18: 3257 | F18: 5500 | G18: 6000 | H18: 5258 | I18: 5826 | J18: 6825 | K18: 7000 | L18: 6750 | M18: 7068 | N18: 7425 | O18: 7700 | P18: 8600 | Q18: 8500 | R18: 8900 | S18: 9200 | T18: 9712 | U18: 9995 | V18: 10600 | W18: 10100 | X18: 10480 | Y18: 10381 | Z18: 10322 | AA18: 10246 | AB18: 10028 | AC18: 9935 | AD18: 9809 | AE18: 1891 | AF18: 1838 | AG18: 1308 | AH18: 1308 | AI18: 1308
A19: Mississippi | B19: MS | C19: 585 | D19: 629 | E19: 507 | F19: 620 | G19: 583 | H19: 535 | I19: 568 | J19: 560 | K19: 527 | L19: 560 | M19: 997 | N19: 1143 | O19: 979 | P19: 427 | Q19: 1536 | R19: 1676 | S19: 1836 | T19: 2315 | U19: 2343 | V19: 2320 | W19: 1979 | X19: 1703 | Y19: 1666 | Z19: 1632 | AA19: 1594 | AB19: 1566 | AC19: 1499 | AD19: 1469 | AE19: 1364 | AF19: 1331 | AG19: 1257 | AH19: 1257 | AI19: 1257
A20: Missouri | B20: MO | C20: 8 | D20: 6 | E20: 5 | F20: 8 | G20: 12 | H20: 15 | I20: 24 | J20: 0 | K20: 0 | L20: 0 | M20: 0 | N20: 0 | O20: 0 | P20: 0 | Q20: 0 | R20: 0 | S20: 0 | T20: 0 | U20: 0 | V20: 0 | W20: 0 | X20: 19 | Y20: 15 | Z20: 7 | AA20: 6 | AB20: 0 | AC20: 5 | AD20: 5 | AE20: 5 | AF20: 3 | AG20: 3 | AH20: 3 | AI20: =AH20 -> 3
A21: montana | B21: MT | C21: 2607 | D21: 2802 | E21: 2890 | F21: 3075 | G21: 2940 | H21: 2918 | I21: 2990 | J21: 3071 | K21: 3423 | L21: 3634 | M21: 3321 | N21: 4331 | O21: 4544 | P21: 4539 | Q21: 4971 | R21: 5751 | S21: 6578 | T21: 6925 | U21: 7095 | V21: 7031 | W21: 6059 | X21: 6615 | Y21: 6366 | Z21: 5870 | AA21: 5682 | AB21: 5651 | AC21: 5528 | AD21: 5440 | AE21: 5133 | AF21: 4976 | AG21: 5043 | AH21: 5043 | AI21: 5043
A22: nebraska | B22: NE | C22: 11 | D22: 12 | E22: 22 | F22: 59 | G22: 87 | H22: 87 | I22: 88 | J22: 91 | K22: 95 | L22: 96 | M22: 98 | N22: 96 | O22: 106 | P22: 109 | Q22: 111 | R22: 114 | S22: 114 | T22: 186 | U22: 322 | V22: 285 | W22: 276 | X22: 307 | Y22: 299 | Z22: 246 | AA22: 109 | AB22: 140 | AC22: 149 | AD22: 150 | AE22: 153 | AF22: 147 | AG22: 131 | AH22: 131 | AI22: 131
A23: nevada | B23: NV | C23: 0 | D23: 0 | E23: 0 | F23: 0 | G23: 0 | H23: 0 | I23: 5 | J23: 5 | K23: 4 | L23: 4 | M23: 4 | N23: 4 | O23: 4 | P23: 4 | Q23: 4 | R23: 4 | S23: 4 | T23: 4 | U23: 0 | V23: 0 | W23: 0 | X23: 0 | Y23: 0 | Z23: 0 | AA23: 1 | AB23: 1 | AC23: 0 | AD23: 1 | AE23: 0 | AF23: 0 | AG23: 0 | AH23: 0 | AI23: 0
A24: new mexico | B24: NM | C24: 17124 | D24: 20021 | E24: 18040 | F24: 20846 | G24: 23292 | H24: 23510 | I24: 24134 | J24: 27421 | K24: 28200 | L24: 26007 | M24: 33948 | N24: 35217 | O24: 35873 | P24: 37100 | Q24: 38574 | R24: 40157 | S24: 41634 | T24: 42644 | U24: 44241 | V24: 44784 | W24: 44748 | X24: 40231 | Y24: 40441 | Z24: 40119 | AA24: 40244 | AB24: 40578 | AC24: 40502 | AD24: 40409 | AE24: 39152 | AF24: 33130 | AG24: 32529 | AH24: 32529 | AI24: 32529
A25: new york | B25: NY | C25: 5525 | D25: 5737 | E25: 5906 | F25: 5757 | G25: 5884 | H25: 6134 | I25: 6208 | J25: 5731 | K25: 5903 | L25: 6422 | M25: 5775 | N25: 5913 | O25: 6496 | P25: 5878 | Q25: 5781 | R25: 5449 | S25: 5985 | T25: 6680 | U25: 6675 | V25: 6628 | W25: 6736 | X25: 7372 | Y25: 7731 | Z25: 7553 | AA25: 7619 | AB25: 7605 | AC25: 7624 | AD25: 7334 | AE25: 7192 | AF25: 7124 | AG25: 6372 | AH25: 6372 | AI25: 6372
A26: north dakota | B26: ND | C26: 103 | D26: 100 | E26: 104 | F26: 101 | G26: 104 | H26: 99 | I26: 108 | J26: 104 | K26: 99 | L26: 96 | M26: 94 | N26: 95 | O26: 100 | P26: 117 | Q26: 117 | R26: 148 | S26: 200 | T26: 200 | U26: 194 | V26: 196 | W26: 188 | X26: 526 | Y26: 451 | Z26: 423 | AA26: 398 | AB26: 455 | AC26: 454 | AD26: 506 | AE26: 923 | AF26: 1261 | AG26: 1548 | AH26: 1548 | AI26: 1548
A27: ohio | B27: OH | C27: 34586 | D27: 34760 | E27: 34784 | F27: 34782 | G27: 34731 | H27: 34520 | I27: 34380 | J27: 34238 | K27: 34098 | L27: 33982 | M27: 33897 | N27: 33917 | O27: 34593 | P27: 33828 | Q27: 33828 | R27: 33735 | S27: 33945 | T27: 34416 | U27: 34416 | V27: 34963 | W27: 34931 | X27: 31966 | Y27: 31647 | Z27: 30804 | AA27: 31060 | AB27: 30794 | AC27: 32013 | AD27: 30487 | AE27: 29633 | AF27: 29736 | AG27: 27225 | AH27: 27225 | AI27: 27225
A28: oklahoma | B28: OK | C28: 24547 | D28: 28216 | E28: 28902 | F28: 29118 | G28: 29121 | H28: 29733 | I28: 29733 | J28: 29734 | K28: 30101 | L28: 21790 | M28: 21507 | N28: 32672 | O28: 33279 | P28: 34334 | Q28: 35612 | R28: 36704 | S28: 38060 | T28: 38364 | U28: 41921 | V28: 43600 | W28: 44000 | X28: 51712 | Y28: 51472 | Z28: 50606 | AA28: 50044 | AB28: 49522 | AC28: 48595 | AD28: 46987 | AE28: 44647 | AF28: 42640 | AG28: 40360 | AH28: 40360 | AI28: 40360
A29: oregon | B29: OR | C29: 19 | D29: 16 | E29: 16 | F29: 18 | G29: 19 | H29: 17 | I29: 18 | J29: 17 | K29: 15 | L29: 19 | M29: 17 | N29: 20 | O29: 18 | P29: 15 | Q29: 15 | R29: 15 | S29: 14 | T29: 18 | U29: 21 | V29: 24 | W29: 26 | X29: 28 | Y29: 24 | Z29: 24 | AA29: 12 | AB29: 13 | AC29: 16 | AD29: 14 | AE29: 14 | AF29: 13 | AG29: 10 | AH29: 10 | AI29: 10
A30: pennyslvania | B30: PA | C30: 30300 | D30: 31000 | E30: 31000 | F30: 31100 | G30: 31150 | H30: 31025 | I30: 31792 | J30: 32692 | K30: 21576 | L30: 23822 | M30: 36000 | N30: 40100 | O30: 40830 | P30: 42437 | Q30: 44227 | R30: 46654 | S30: 49750 | T30: 52700 | U30: 55631 | V30: 57356 | W30: 44500 | X30: 61815 | Y30: 62922 | Z30: 61838 | AA30: 67621 | AB30: 70051 | AC30: 68412 | AD30: 68807 | AE30: 69430 | AF30: 70144 | AG30: 68929 | AH30: 68929 | AI30: 68929
A31: south dakota | B31: SD | C31: 54 | D31: 54 | E31: 38 | F31: 47 | G31: 55 | H31: 56 | I31: 61 | J31: 60 | K31: 59 | L31: 60 | M31: 71 | N31: 68 | O31: 69 | P31: 61 | Q31: 61 | R31: 69 | S31: 69 | T31: 71 | U31: 71 | V31: 89 | W31: 102 | X31: 155 | Y31: 159 | Z31: 133 | AA31: 128 | AB31: 122 | AC31: 105 | AD31: 94 | AE31: 88 | AF31: 92 | AG31: 91 | AH31: 91 | AI31: 91
A32: tennessee | B32: TN | C32: 690 | D32: 650 | E32: 600 | F32: 0 | G32: 0 | H32: 0 | I32: 0 | J32: 505 | K32: 460 | L32: 420 | M32: 380 | N32: 350 | O32: 400 | P32: 430 | Q32: 280 | R32: 400 | S32: 330 | T32: 305 | U32: 285 | V32: 310 | W32: 230 | X32: 1027 | Y32: 1027 | Z32: 1089 | AA32: 1006 | AB32: 1005 | AC32: 923 | AD32: 0 | AE32: 0 | AF32: 0 | AG32: 0 | AH32: 0 | AI32: 0
A33: texas | B33: TX | C33: 50867 | D33: 47615 | E33: 46298 | F33: 47101 | G33: 48654 | H33: 54635 | I33: 53816 | J33: 56747 | K33: 58736 | L33: 58712 | M33: 60577 | N33: 63704 | O33: 65779 | P33: 68572 | Q33: 72237 | R33: 74827 | S33: 74265 | T33: 76436 | U33: 87556 | V33: 93507 | W33: 95014 | X33: 139368 | Y33: 140087 | Z33: 140964 | AA33: 142292 | AB33: 135560 | AC33: 134958 | AD33: 130033 | AE33: 123928 | AF33: 120576 | AG33: 118957 | AH33: 118957 | AI33: 118957
A34: utah | B34: UT | C34: 822 | D34: 913 | E34: 1006 | F34: 1061 | G34: 1303 | H34: 1127 | I34: 1339 | J34: 1475 | K34: 1643 | L34: 1978 | M34: 4178 | N34: 4601 | O34: 3005 | P34: 3220 | Q34: 3657 | R34: 4092 | S34: 4858 | T34: 5197 | U34: 5578 | V34: 5774 | W34: 6075 | X34: 7603 | Y34: 8121 | Z34: 8300 | AA34: 8537 | AB34: 8583 | AC34: 8430 | AD34: 8261 | AE34: 7951 | AF34: 7625 | AG34: 7756 | AH34: 7756 | AI34: 7756
A35: virginia | B35: VA | C35: 819 | D35: 886 | E35: 1153 | F35: 1426 | G35: 1470 | H35: 1671 | I35: 1671 | J35: 2046 | K35: 2388 | L35: 2752 | M35: 3051 | N35: 3521 | O35: 3429 | P35: 3506 | Q35: 3870 | R35: 4132 | S35: 5179 | T35: 5735 | U35: 6426 | V35: 7303 | W35: 7470 | X35: 7781 | Y35: 7874 | Z35: 7956 | AA35: 8061 | AB35: 8111 | AC35: 8152 | AD35: 7980 | AE35: 7958 | AF35: 7973 | AG35: 7974 | AH35: 7974 | AI35: 7974
A36: west virginia | B36: WV | C36: 37500 | D36: 37800 | E36: 38250 | F36: 33716 | G36: 39830 | H36: 36144 | I36: 35148 | J36: 31000 | K36: 39072 | L36: 36575 | M36: 42475 | N36: 42000 | O36: 45000 | P36: 46203 | Q36: 47117 | R36: 49335 | S36: 53003 | T36: 48215 | U36: 49364 | V36: 50602 | W36: 52498 | X36: 51629 | Y36: 51646 | Z36: 50097 | AA36: 53060 | AB36: 48977 | AC36: 53267 | AD36: 52497 | AE36: 47717 | AF36: 49530 | AG36: 47934 | AH36: 47934 | AI36: 47934
A37: wyoming | B37: WY | C37: 2600 | D37: 2821 | E37: 3111 | F37: 3615 | G37: 3942 | H37: 4196 | I37: 4510 | J37: 5160 | K37: 5166 | L37: 4950 | M37: 9907 | N37: 13978 | O37: 15608 | P37: 18154 | Q37: 20244 | R37: 23734 | S37: 25052 | T37: 27350 | U37: 28969 | V37: 25710 | W37: 26124 | X37: 30653 | Y37: 29254 | Z37: 27141 | AA37: 26055 | AB37: 25297 | AC37: 23693 | AD37: 23453 | AE37: 21969 | AF37: 20494 | AG37: 19641 | AH37: 19641 | AI37: 19641
B38: Source: EIA's Natural Gas Navigator. "Number of Producing Gas and Gas Condensate Wells" https://www.eia.gov/dnav/ng/NG_PROD_WELLS_S1_A.htm
B39: **Well count data discontinued in 2021.
